Local authority department which incurred the expenditure,Service Division,Cost Centre,Summary of the Purpose of Expenditure,Expense Type,Expense Code,Detailed Expense Type,Date of Transaction,Transaction Number,Beneficiary,Merchant Category Number,Merchant Category,Gross Amount,VAT,Net Amount
Regeneration and Local Services,Economic Development and Housing,030699,Business Growth and Innovation General,Supplies and Services,342033,Computers and Communications,01-Sep-2017,000006432719735,AdRoll_EMEA,7372,Computer hardware,0.07,0.00,0.07
Children and Young Peoples Services,Head of Looked After Provision Permanence and Care Leavers,085352,Tow Law CU,Supplies and Services,308011,Furniture,01-Sep-2017,000006432719919,globalvillagestore,5719,Furniture repair and replacement,2.30,0.00,2.30
Children and Young Peoples Services,Head of Education,071801,Selby Cottage Childcare Centre,Supplies and Services,324117,Provisions,01-Sep-2017,000006438104587,TESCO STORES 2278,5411,Catering costs - provisions,110.25,0.00,110.25
Children and Young Peoples Services,Head of Education,071801,Selby Cottage Childcare Centre,Supplies and Services,328041,Clothing Uniforms and Laundry,01-Sep-2017,000006438104589,THE WORKS,5310,Clothing uniforms and laundry,29.55,0.00,29.55
Regeneration and Local Services,Direct Services,021242,Catering - County Hall,Supplies and Services,324117,Provisions,01-Sep-2017,000006438104629,WWW.ADELIEFOODS.CO.UK,5499,Catering costs - provisions,162.67,0.00,162.67
Regeneration and Local Services,Direct Services,021242,Catering - County Hall,Supplies and Services,324117,Provisions,01-Sep-2017,000006438104631,WWW.ADELIEFOODS.CO.UK,5499,Catering costs - provisions,76.98,0.00,76.98
Regeneration and Local Services,Direct Services,021242,Catering - County Hall,Supplies and Services,324117,Provisions,01-Sep-2017,000006438104633,WWW.ADELIEFOODS.CO.UK,5499,Catering costs - provisions,68.02,0.00,68.02
Regeneration and Local Services,Direct Services,021242,Catering - County Hall,Supplies and Services,324117,Provisions,01-Sep-2017,000006438104635,WWW.ADELIEFOODS.CO.UK,5499,Catering costs - provisions,58.61,0.00,58.61
Regeneration and Local Services,Direct Services,021242,Catering - County Hall,Supplies and Services,324117,Provisions,01-Sep-2017,000006438104637,WWW.ADELIEFOODS.CO.UK,5499,Catering costs - provisions,56.52,0.00,56.52
Regeneration and Local Services,Direct Services,021242,Catering - County Hall,Supplies and Services,324117,Provisions,01-Sep-2017,000006438104639,JR HOLLAND FOODSERVICE,5422,Catering costs - provisions,118.20,0.00,118.20
Regeneration and Local Services,Direct Services,021242,Catering - County Hall,Supplies and Services,324117,Provisions,01-Sep-2017,000006438104641,JR HOLLAND FOODSERVICE,5422,Catering costs - provisions,13.16,0.00,13.16
Regeneration and Local Services,Culture & Sport,054812,Gala Theatre - Catering etc,Supplies and Services,324117,Provisions,01-Sep-2017,000006438104649,JR HOLLAND FOODSERVICE,5422,Catering costs - provisions,26.98,0.00,26.98
Regeneration and Local Services,Economic Development and Housing,030544,Rural Employability - Client Engagement,Transport,235057,Public Transport,01-Sep-2017,000006438104661,ARRIVA NORTH EAST,4131,Staff travelling,85.50,0.00,85.50
Children and Young Peoples Services,Head of Looked After Provision Permanence and Care Leavers,085361,LAC & Permanence Team 1,Supplies and Services,384999,Miscellaneous Expenses,01-Sep-2017,000006438104663,NAS SCOTLAND PEOPLE,9399,Other expenses,13.95,0.00,13.95
Children and Young Peoples Services,Head of Early Help Assessment and Safeguarding,088033,Durham 0 - 5,Supplies and Services,338099,Services,01-Sep-2017,000006438104683,GATE 5,7033,Other services,500.00,0.00,500.00
Regeneration and Local Services,Culture & Sport,054813,Gala Theatre - Technical,Supplies and Services,312011,Newspapers Books and Periodicals,01-Sep-2017,000006438104701,TOOLSTATION LTD,5251,Books-school library,37.35,6.23,31.12
Children and Young Peoples Services,Head of Looked After Provision Permanence and Care Leavers,085341,High Etherley Satelite Home,Supplies and Services,324117,Provisions,01-Sep-2017,000006438104703,ALDI 15 774 S,5411,Catering costs - provisions,5.71,0.00,5.71
Children and Young Peoples Services,Head of Looked After Provision Permanence and Care Leavers,085341,High Etherley Satelite Home,Supplies and Services,324117,Provisions,01-Sep-2017,000006438104705,TESCO STORES 6329,5411,Catering costs - provisions,15.00,0.00,15.00
Children and Young Peoples Services,Head of Looked After Provision Permanence and Care Leavers,085341,High Etherley Satelite Home,Supplies and Services,348037,Subsistence,01-Sep-2017,000006438104707,MCDONALD`S,5812,Subsistence,3.09,0.00,3.09
Regeneration and Local Services,Spatial Policy Planning Assets & Environment,031204,North Pennines Nectarworks,Supplies and Services,324117,Provisions,01-Sep-2017,000006438104711,SCOTMID CO-OP STANHOPE,5411,Catering costs - provisions,26.73,0.00,26.73
Regeneration and Local Services,Economic Development and Housing,030708,VCD - Marketing & Information,Supplies and Services,336005,Advertising,01-Sep-2017,000006438104715,GOOGLE SVCSAPPS_visit,5968,Advertising other than for staff,6.59,0.00,6.59
Regeneration and Local Services,Economic Development and Housing,030554,International Relations,Transport,235057,Public Transport,01-Sep-2017,000006438104717,PRINCE BISHOP SHOPPING,7523,Staff travelling,2.10,0.00,2.10
Regeneration and Local Services,Economic Development and Housing,030737,Durham Works Flexible Fund,Supplies and Services,340001,Postages,01-Sep-2017,000006438104723,POST OFFICE COUNTER,9402,Postages,1.75,0.00,1.75
Children and Young Peoples Services,Head of Looked After Provision Permanence and Care Leavers,085956,Lumley,Supplies and Services,324117,Provisions,01-Sep-2017,000006438104729,TESCO STORES 6329,5411,Catering costs - provisions,101.25,0.00,101.25
Regeneration and Local Services,Culture & Sport,011060,Hardwick Park Catering,Supplies and Services,324117,Provisions,01-Sep-2017,000006438104735,JR HOLLAND FOODSERVICE,5422,Catering costs - provisions,155.98,0.00,155.98
Regeneration and Local Services,Culture & Sport,011060,Hardwick Park Catering,Supplies and Services,324117,Provisions,01-Sep-2017,000006438104737,JR HOLLAND FOODSERVICE,5422,Catering costs - provisions,124.18,0.00,124.18
Regeneration and Local Services,Culture & Sport,011060,Hardwick Park Catering,Supplies and Services,324117,Provisions,01-Sep-2017,000006438104739,JR HOLLAND FOODSERVICE,5422,Catering costs - provisions,94.22,0.00,94.22
Regeneration and Local Services,Culture & Sport,011060,Hardwick Park Catering,Supplies and Services,324117,Provisions,01-Sep-2017,000006438104741,JR HOLLAND FOODSERVICE,5422,Catering costs - provisions,86.01,0.00,86.01
Regeneration and Local Services,Culture & Sport,011060,Hardwick Park Catering,Supplies and Services,324117,Provisions,01-Sep-2017,000006438104743,JR HOLLAND FOODSERVICE,5422,Catering costs - provisions,80.31,0.00,80.31
Regeneration and Local Services,Culture & Sport,011060,Hardwick Park Catering,Supplies and Services,324117,Provisions,01-Sep-2017,000006438104745,JR HOLLAND FOODSERVICE,5422,Catering costs - provisions,70.82,0.00,70.82
Regeneration and Local Services,Culture & Sport,011060,Hardwick Park Catering,Supplies and Services,324117,Provisions,01-Sep-2017,000006438104747,JR HOLLAND FOODSERVICE,5422,Catering costs - provisions,41.86,0.00,41.86
Regeneration and Local Services,Culture & Sport,011060,Hardwick Park Catering,Supplies and Services,324117,Provisions,01-Sep-2017,000006438104749,JR HOLLAND FOODSERVICE,5422,Catering costs - provisions,35.99,0.00,35.99
Regeneration and Local Services,Culture & Sport,011060,Hardwick Park Catering,Supplies and Services,324117,Provisions,01-Sep-2017,000006438104751,JR HOLLAND FOODSERVICE,5422,Catering costs - provisions,34.56,0.00,34.56
Regeneration and Local Services,Culture & Sport,011060,Hardwick Park Catering,Supplies and Services,324117,Provisions,01-Sep-2017,000006438104753,JR HOLLAND FOODSERVICE,5422,Catering costs - provisions,29.70,0.00,29.70
Regeneration and Local Services,Culture & Sport,011060,Hardwick Park Catering,Supplies and Services,324117,Provisions,01-Sep-2017,000006438104755,JR HOLLAND FOODSERVICE,5422,Catering costs - provisions,-22.33,0.00,-22.33
Regeneration and Local Services,Direct Services,021234,Catering - Locomotion,Supplies and Services,324117,Provisions,01-Sep-2017,000006438104759,WWW.ADELIEFOODS.CO.UK,5499,Catering costs - provisions,57.11,0.00,57.11
Regeneration and Local Services,Direct Services,021234,Catering - Locomotion,Supplies and Services,324117,Provisions,01-Sep-2017,000006438104761,WWW.ADELIEFOODS.CO.UK,5499,Catering costs - provisions,57.11,0.00,57.11
Regeneration and Local Services,Direct Services,021234,Catering - Locomotion,Supplies and Services,324117,Provisions,01-Sep-2017,000006438104763,WWW.ADELIEFOODS.CO.UK,5499,Catering costs - provisions,57.11,0.00,57.11
Regeneration and Local Services,Direct Services,021234,Catering - Locomotion,Supplies and Services,324117,Provisions,01-Sep-2017,000006438104765,WWW.ADELIEFOODS.CO.UK,5499,Catering costs - provisions,57.11,0.00,57.11
Regeneration and Local Services,Direct Services,021234,Catering - Locomotion,Supplies and Services,324117,Provisions,01-Sep-2017,000006438104767,WWW.ADELIEFOODS.CO.UK,5499,Catering costs - provisions,49.23,0.00,49.23
Regeneration and Local Services,Direct Services,021234,Catering - Locomotion,Supplies and Services,324117,Provisions,01-Sep-2017,000006438104769,WWW.ADELIEFOODS.CO.UK,5499,Catering costs - provisions,21.46,0.00,21.46
Regeneration and Local Services,Direct Services,010525,Catering - Green Lane,Supplies and Services,324117,Provisions,01-Sep-2017,000006438104779,WWW.ADELIEFOODS.CO.UK,5499,Catering costs - provisions,37.20,0.00,37.20
Regeneration and Local Services,Direct Services,010525,Catering - Green Lane,Supplies and Services,324117,Provisions,01-Sep-2017,000006438104781,WWW.ADELIEFOODS.CO.UK,5499,Catering costs - provisions,37.20,0.00,37.20
Regeneration and Local Services,Direct Services,010525,Catering - Green Lane,Supplies and Services,324117,Provisions,01-Sep-2017,000006438104783,WWW.ADELIEFOODS.CO.UK,5499,Catering costs - provisions,-7.43,0.00,-7.43
Children and Young Peoples Services,Head of Looked After Provision Permanence and Care Leavers,085352,Tow Law CU,Supplies and Services,324117,Provisions,01-Sep-2017,000006438104799,TESCO STORES 2371,5411,Catering costs - provisions,250.60,0.00,250.60
Regeneration and Local Services,Economic Development and Housing,030749,Employability - Youth Contract,Transport,235057,Public Transport,01-Sep-2017,000006438104809,WWW.SIMPLYGO.COM,4131,Staff travelling,70.00,0.00,70.00
Regeneration and Local Services,Economic Development and Housing,030749,Employability - Youth Contract,Transport,235057,Public Transport,01-Sep-2017,000006438104811,ARRIVA NORTH EAST,4131,Staff travelling,6.50,0.00,6.50
Children and Young Peoples Services,Head of Looked After Provision Permanence and Care Leavers,085333,Coxhoe Satelite Home,Supplies and Services,324117,Provisions,01-Sep-2017,000006438104813,TESCO STORES 2371,5411,Catering costs - provisions,168.21,0.00,168.21
Children and Young Peoples Services,Head of Looked After Provision Permanence and Care Leavers,085333,Coxhoe Satelite Home,Supplies and Services,324117,Provisions,01-Sep-2017,000006438104815,TESCO STORES 2371,5411,Catering costs - provisions,47.00,0.00,47.00
Children and Young Peoples Services,Head of Looked After Provision Permanence and Care Leavers,085333,Coxhoe Satelite Home,Supplies and Services,324117,Provisions,01-Sep-2017,000006438104817,TESCO STORES 2371,5411,Catering costs - provisions,9.10,0.00,9.10
Children and Young Peoples Services,Head of Early Help Assessment and Safeguarding,071443,Stanley One Point Hub,Supplies and Services,328041,Clothing Uniforms and Laundry,01-Sep-2017,000006438104821,MATALAN,5691,Clothing uniforms and laundry,101.10,16.85,84.25
Regeneration and Local Services,Direct Services,010367,C&G - South Grounds Maintenance,Supplies and Services,304259,Equipment and Materials,01-Sep-2017,000006438104823,SCREWFIX DIRECT LT,5211,Equipment-purchase and rental,63.97,10.66,53.31
Children and Young Peoples Services,Head of Early Help Assessment and Safeguarding,088013,Seaham 0 - 5,Supplies and Services,304259,Equipment and Materials,01-Sep-2017,000006438104843,CURRYS ONLINE,5732,Equipment-purchase and rental,258.00,43.00,215.00
Regeneration and Local Services,Direct Services,021324,Catering - Meadowfield,Supplies and Services,324117,Provisions,01-Sep-2017,000006438104845,WWW.ADELIEFOODS.CO.UK,5499,Catering costs - provisions,46.88,0.00,46.88
Regeneration and Local Services,Direct Services,021324,Catering - Meadowfield,Supplies and Services,324117,Provisions,01-Sep-2017,000006438104847,WWW.ADELIEFOODS.CO.UK,5499,Catering costs - provisions,37.51,0.00,37.51
Regeneration and Local Services,Direct Services,021324,Catering - Meadowfield,Supplies and Services,324117,Provisions,01-Sep-2017,000006438104849,JR HOLLAND FOODSERVICE,5422,Catering costs - provisions,50.13,0.00,50.13
Regeneration and Local Services,Direct Services,021324,Catering - Meadowfield,Supplies and Services,324117,Provisions,01-Sep-2017,000006438104851,JR HOLLAND FOODSERVICE,5422,Catering costs - provisions,9.87,0.00,9.87
Regeneration and Local Services,Direct Services,021324,Catering - Meadowfield,Supplies and Services,324117,Provisions,01-Sep-2017,000006438104853,JR HOLLAND FOODSERVICE,5422,Catering costs - provisions,5.63,0.00,5.63
Regeneration and Local Services,Economic Development and Housing,031576,B& B - Temp Accom,Supplies and Services,364320,Grants to Voluntary Organisations,01-Sep-2017,000006438104857,TRAVELODGE,3615,Accommodation assistance,162.00,27.00,135.00
Regeneration and Local Services,Economic Development and Housing,031576,B& B - Temp Accom,Supplies and Services,364320,Grants to Voluntary Organisations,01-Sep-2017,000006438104859,PREMIER INN,3811,Accommodation assistance,164.50,27.42,137.08
Children and Young Peoples Services,Head of Looked After Provision Permanence and Care Leavers,085331,New Lea Childrens Home,Supplies and Services,328041,Clothing Uniforms and Laundry,01-Sep-2017,000006438104875,WWW.SALONWEAR4U.CO.UK,5691,Clothing uniforms and laundry,76.50,0.00,76.50
Children and Young Peoples Services,Head of Looked After Provision Permanence and Care Leavers,085331,New Lea Childrens Home,Supplies and Services,304403,Equipment and Materials,01-Sep-2017,000006438104877,WWW ELLISONS CO UK,5999,Other consumables,187.90,0.00,187.90
Children and Young Peoples Services,Head of Looked After Provision Permanence and Care Leavers,085331,New Lea Childrens Home,Supplies and Services,384999,Miscellaneous Expenses,01-Sep-2017,000006438104879,CINEWORLD,7922,Other expenses,33.00,0.00,33.00
Resources,Digital and Customer Services,065487,ICT Telephony Recharges,Supplies and Services,344033,Telephones,01-Sep-2017,000006438104891,Amazon UK Marketplace,5942,Telephones general-all costs,91.77,0.00,91.77
Children and Young Peoples Services,Head of Early Help Assessment and Safeguarding,085100,Child Protection & Disabilty Strategic Manager,Supplies and Services,384199,Miscellaneous Expenses,01-Sep-2017,000006438104893,DARLINGTON BC INTERNET,9399,Other hired and contracted services,12.00,0.00,12.00
Regeneration and Local Services,Direct Services,021235,Catering - Wharton Park,Supplies and Services,324117,Provisions,01-Sep-2017,000006438104903,JR HOLLAND FOODSERVICE,5422,Catering costs - provisions,15.75,0.00,15.75
Regeneration and Local Services,Spatial Policy Planning Assets & Environment,031200,North Pennines Core,Supplies and Services,340001,Postages,01-Sep-2017,000006438104925,THE POST OFFICE,9402,Postages,3.40,0.00,3.40
Regeneration and Local Services,Spatial Policy Planning Assets & Environment,031200,North Pennines Core,Supplies and Services,324117,Provisions,01-Sep-2017,000006438104927,SCOTMID CO-OP STANHOPE,5411,Catering costs - provisions,8.94,0.00,8.94
Regeneration and Local Services,Direct Services,021242,Catering - County Hall,Supplies and Services,324117,Provisions,01-Sep-2017,000006446616065,BATLEYS PERTH,5300,Catering costs - provisions,148.98,24.83,124.15
Regeneration and Local Services,Direct Services,021242,Catering - County Hall,Supplies and Services,324117,Provisions,01-Sep-2017,000006446616065 - 1,BATLEYS PERTH,5300,Catering costs - provisions,220.28,,220.28
Regeneration and Local Services,Direct Services,010525,Catering - Green Lane,Supplies and Services,324117,Provisions,01-Sep-2017,000006446616285,BATLEYS PERTH,5300,Catering costs - provisions,50.46,8.41,42.05
Regeneration and Local Services,Direct Services,010525,Catering - Green Lane,Supplies and Services,324117,Provisions,01-Sep-2017,000006446616285 - 1,BATLEYS PERTH,5300,Catering costs - provisions,31.85,,31.85
Children and Young Peoples Services,Head of Looked After Provision Permanence and Care Leavers,085954,Walworth,Supplies and Services,324117,Provisions,02-Sep-2017,000006438104597,TESCO STORES 6329,5411,Catering costs - provisions,82.42,0.00,82.42
Regeneration and Local Services,Economic Development and Housing,030699,Business Growth and Innovation General,Supplies and Services,304403,Equipment and Materials,02-Sep-2017,000006438104599,ADOBE CREATIVE CLOUD,5734,Other consumables,50.57,0.00,50.57
Regeneration and Local Services,Economic Development and Housing,030699,Business Growth and Innovation General,Supplies and Services,312011,Newspapers Books and Periodicals,02-Sep-2017,000006438104601,FASTHOSTS INTERNET,4816,Books-school library,59.99,10.00,49.99
Regeneration and Local Services,Culture & Sport,054233,Bishop Auckland Town Hall Library,Supplies and Services,324117,Provisions,02-Sep-2017,000006438104647,ASDA STORES,5411,Catering costs - provisions,11.29,0.00,11.29
Regeneration and Local Services,Culture & Sport,011210,Parks & Countryside,Supplies and Services,304259,Equipment and Materials,02-Sep-2017,000006438104731,AVT IMPORTS,5085,Equipment-purchase and rental,85.42,14.24,71.18
Resources,Resources Management,069000,Resources Management,Supplies and Services,324117,Provisions,02-Sep-2017,000006438104819,SAINSBURYS (2303),5411,Catering costs - provisions,3.05,0.00,3.05
Transformation and Partnerships,Strategy,060050,Service Management,Supplies and Services,304335,Equipment and Materials,02-Sep-2017,000006438104895,APPLE ONLINE STORE GBP,5732,ICT supplies etc,49.00,0.00,49.00
Transformation and Partnerships,Comms & Information Management,060270,Communications and Marketing,Supplies and Services,372009,Subscriptions,02-Sep-2017,000006438104897,MAILCHIMP MONTHLY,5968,Subscriptions,58.79,0.00,58.79
Children and Young Peoples Services,Head of Looked After Provision Permanence and Care Leavers,085341,High Etherley Satelite Home,Supplies and Services,324117,Provisions,03-Sep-2017,000006438104709,TESCO STORES 6329,5411,Catering costs - provisions,109.97,0.00,109.97
Regeneration and Local Services,Culture & Sport,026591,Hardwick Park,Supplies and Services,384999,Miscellaneous Expenses,03-Sep-2017,000006438104825,WWW.ANGELWHOLESALE.CO.,5641,Other expenses,83.79,13.97,69.82
Regeneration and Local Services,Economic Development and Housing,030737,Durham Works Flexible Fund,Transport,235057,Public Transport,03-Sep-2017,000006438104833,WWW.SIMPLYGO.COM,4131,Staff travelling,105.00,0.00,105.00
Children and Young Peoples Services,Head of Looked After Provision Permanence and Care Leavers,085341,High Etherley Satelite Home,Supplies and Services,324117,Provisions,04-Sep-2017,000006444258777,TESCO STORES 6329,5411,Catering costs - provisions,5.70,0.00,5.70
Children and Young Peoples Services,Head of Education,071801,Selby Cottage Childcare Centre,Supplies and Services,324117,Provisions,04-Sep-2017,000006444258795,ASDA HOME SHOPPING,5411,Catering costs - provisions,77.90,0.00,77.90
Children and Young Peoples Services,Head of Education,071801,Selby Cottage Childcare Centre,Supplies and Services,324117,Provisions,04-Sep-2017,000006444258799,ASDA HOME SHOPPING,5411,Catering costs - provisions,-1.02,0.00,-1.02
Resources,Financial Services,065180,Collections,Supplies and Services,338048,Services,04-Sep-2017,000006444258829,HMCOURT-SERVICES.G,9222,Court Costs,110.00,0.00,110.00
Regeneration and Local Services,Direct Services,010367,C&G - South Grounds Maintenance,Supplies and Services,304221,Equipment and Materials,04-Sep-2017,000006444258839,ARCO LTD,5085,Direct materials,113.38,0.00,113.38
Regeneration and Local Services,Economic Development and Housing,030737,Durham Works Flexible Fund,Transport,230031,Contract Hire,04-Sep-2017,000006444258855,ARRIVA NORTH EAST,4131,Pupils-transport to play fields etc,8.40,0.00,8.40
Regeneration and Local Services,Economic Development and Housing,030737,Durham Works Flexible Fund,Supplies and Services,384999,Miscellaneous Expenses,04-Sep-2017,000006444258859,MACHINE MART WEB,7394,Other expenses,215.53,35.92,179.61
Regeneration and Local Services,Direct Services,021242,Catering - County Hall,Supplies and Services,324117,Provisions,04-Sep-2017,000006444258867,WWW.ADELIEFOODS.CO.UK,5499,Catering costs - provisions,70.48,0.00,70.48
Regeneration and Local Services,Direct Services,021242,Catering - County Hall,Supplies and Services,324117,Provisions,04-Sep-2017,000006444258873,WWW.ADELIEFOODS.CO.UK,5499,Catering costs - provisions,59.53,0.00,59.53
Regeneration and Local Services,Direct Services,021242,Catering - County Hall,Supplies and Services,324117,Provisions,04-Sep-2017,000006444258877,FREEMAN CATERING BUTCH,5422,Catering costs - provisions,178.77,0.00,178.77
Regeneration and Local Services,Direct Services,021242,Catering - County Hall,Supplies and Services,324117,Provisions,04-Sep-2017,000006444258879,JR HOLLAND FOODSERVICE,5422,Catering costs - provisions,70.44,0.00,70.44
Regeneration and Local Services,Direct Services,021242,Catering - County Hall,Supplies and Services,324117,Provisions,04-Sep-2017,000006444258885,JR HOLLAND FOODSERVICE,5422,Catering costs - provisions,13.52,0.00,13.52
Regeneration and Local Services,Culture & Sport,054233,Bishop Auckland Town Hall Library,Supplies and Services,312011,Newspapers Books and Periodicals,04-Sep-2017,000006444258891,Amazon EU,5969,Books-school library,29.98,0.00,29.98
Regeneration and Local Services,Economic Development and Housing,030737,Durham Works Flexible Fund,Transport,235057,Public Transport,04-Sep-2017,000006444258893,ARRIVA NORTH EAST,4131,Staff travelling,7.00,0.00,7.00
Regeneration and Local Services,Economic Development and Housing,030737,Durham Works Flexible Fund,Transport,235057,Public Transport,04-Sep-2017,000006444258897,ARRIVA NORTH EAST,4131,Staff travelling,14.00,0.00,14.00
Regeneration and Local Services,Economic Development and Housing,030737,Durham Works Flexible Fund,Transport,235057,Public Transport,04-Sep-2017,000006444258947,ARRIVA NORTH EAST,4131,Staff travelling,25.00,0.00,25.00
Children and Young Peoples Services,Head of Education,071903,EYDCP-Sustainability EDS,Supplies and Services,312011,Newspapers Books and Periodicals,04-Sep-2017,000006444258967,Amazon EU,5969,Books-school library,68.96,0.00,68.96
Regeneration and Local Services,Economic Development and Housing,030737,Durham Works Flexible Fund,Supplies and Services,348037,Subsistence,04-Sep-2017,000006444258973,WWW.SIMPLYGO.COM,4131,Subsistence,5.10,0.00,5.10
Regeneration and Local Services,Culture & Sport,011210,Parks & Countryside,Supplies and Services,304259,Equipment and Materials,04-Sep-2017,000006444258979,SCREWFIX,5211,Equipment-purchase and rental,67.84,11.31,56.53
Regeneration and Local Services,Culture & Sport,011060,Hardwick Park Catering,Supplies and Services,324117,Provisions,04-Sep-2017,000006444258999,FREEMAN CATERING BUTCH,5422,Catering costs - provisions,76.08,0.00,76.08
Regeneration and Local Services,Culture & Sport,011060,Hardwick Park Catering,Supplies and Services,324117,Provisions,04-Sep-2017,000006444259003,FREEMAN CATERING BUTCH,5422,Catering costs - provisions,51.56,0.00,51.56
Regeneration and Local Services,Culture & Sport,011060,Hardwick Park Catering,Supplies and Services,324117,Provisions,04-Sep-2017,000006444259005,FREEMAN CATERING BUTCH,5422,Catering costs - provisions,42.71,0.00,42.71
Regeneration and Local Services,Culture & Sport,011060,Hardwick Park Catering,Supplies and Services,324117,Provisions,04-Sep-2017,000006444259011,FREEMAN CATERING BUTCH,5422,Catering costs - provisions,41.67,0.00,41.67
Regeneration and Local Services,Culture & Sport,011060,Hardwick Park Catering,Supplies and Services,324117,Provisions,04-Sep-2017,000006444259013,FREEMAN CATERING BUTCH,5422,Catering costs - provisions,33.70,0.00,33.70
Regeneration and Local Services,Culture & Sport,011060,Hardwick Park Catering,Supplies and Services,324117,Provisions,04-Sep-2017,000006444259017,JR HOLLAND FOODSERVICE,5422,Catering costs - provisions,54.93,0.00,54.93
Regeneration and Local Services,Spatial Policy Planning Assets & Environment,031200,North Pennines Core,Supplies and Services,348037,Subsistence,04-Sep-2017,000006444259029,PIZZA AEROPORTO LISBOA,5812,Subsistence,7.14,0.00,7.14
Regeneration and Local Services,Direct Services,021234,Catering - Locomotion,Supplies and Services,324117,Provisions,04-Sep-2017,000006444259037,WWW.ADELIEFOODS.CO.UK,5499,Catering costs - provisions,68.61,0.00,68.61
Regeneration and Local Services,Direct Services,021234,Catering - Locomotion,Supplies and Services,324117,Provisions,04-Sep-2017,000006444259043,WWW.ADELIEFOODS.CO.UK,5499,Catering costs - provisions,57.11,0.00,57.11
Regeneration and Local Services,Direct Services,010525,Catering - Green Lane,Supplies and Services,324117,Provisions,04-Sep-2017,000006444259049,WWW.ADELIEFOODS.CO.UK,5499,Catering costs - provisions,26.21,4.37,21.84
Regeneration and Local Services,Direct Services,010525,Catering - Green Lane,Supplies and Services,324117,Provisions,04-Sep-2017,000006444259055,FREEMAN CATERING BUTCH,5422,Catering costs - provisions,41.90,0.00,41.90
Regeneration and Local Services,Economic Development and Housing,030749,Employability - Youth Contract,Transport,235057,Public Transport,04-Sep-2017,000006444259125,ARRIVA NORTH EAST,4131,Staff travelling,60.00,0.00,60.00
Regeneration and Local Services,Direct Services,010367,C&G - South Grounds Maintenance,Supplies and Services,304259,Equipment and Materials,04-Sep-2017,000006444259131,SCREWFIX DIRECT LT,5211,Equipment-purchase and rental,19.28,3.21,16.07
Adult and Health Services,Head of Adults,055301,Stanley Pathways,Supplies and Services,324117,Provisions,04-Sep-2017,000006444259135,ASDA SUPERSTORE,5411,Catering costs - provisions,1.98,0.00,1.98
Regeneration and Local Services,Spatial Policy Planning Assets & Environment,031200,North Pennines Core,Supplies and Services,324117,Provisions,04-Sep-2017,000006444259149,M&S SIMPLY FOOD,5499,Catering costs - provisions,5.37,0.00,5.37
Regeneration and Local Services,Direct Services,010301,C&G - North Grounds Maintenance,Supplies and Services,304403,Equipment and Materials,04-Sep-2017,000006444259165,BESCOL,5231,Other consumables,207.86,0.00,207.86
Regeneration and Local Services,Direct Services,021324,Catering - Meadowfield,Supplies and Services,324117,Provisions,04-Sep-2017,000006444259185,FREEMAN CATERING BUTCH,5422,Catering costs - provisions,68.81,0.00,68.81
Regeneration and Local Services,Direct Services,021324,Catering - Meadowfield,Supplies and Services,324117,Provisions,04-Sep-2017,000006444259191,FREEMAN CATERING BUTCH,5422,Catering costs - provisions,11.54,0.00,11.54
Adult and Health Services,Head of Adults,055309,Peterlee Pathways,Supplies and Services,324117,Provisions,04-Sep-2017,000006444259307,LIDL UK,5411,Catering costs - provisions,2.95,0.00,2.95
Adult and Health Services,Head of Adults,055309,Peterlee Pathways,Supplies and Services,324117,Provisions,04-Sep-2017,000006444259311,LIDL UK,5411,Catering costs - provisions,2.90,0.00,2.90
Regeneration and Local Services,Culture & Sport,010605,Woodhouse Close Leisure Complex,Supplies and Services,324117,Provisions,04-Sep-2017,000006444259319,JR HOLLAND FOODSERVICE,5422,Catering costs - provisions,18.70,0.00,18.70
Adult and Health Services,Head of Adults,052269,Intermediate Care Plus - North,Supplies and Services,340001,Postages,04-Sep-2017,000006444259355,ROYAL MAIL ONLINE SHOP,9402,Postages,56.00,0.00,56.00
Regeneration and Local Services,Economic Development and Housing,030699,Business Growth and Innovation General,Supplies and Services,304403,Equipment and Materials,04-Sep-2017,000006446615987,MEETEDGAR MONTHLY,5734,Other consumables,37.89,0.00,37.89
Regeneration and Local Services,Culture & Sport,054812,Gala Theatre - Catering etc,Supplies and Services,324117,Provisions,04-Sep-2017,000006446616083,BATLEYS PERTH,5300,Catering costs - provisions,59.16,9.86,49.30
Regeneration and Local Services,Culture & Sport,054812,Gala Theatre - Catering etc,Supplies and Services,324117,Provisions,04-Sep-2017,000006446616083 - 1,BATLEYS PERTH,5300,Catering costs - provisions,144.97,,144.97
Regeneration and Local Services,Economic Development and Housing,031576,B& B - Temp Accom,Supplies and Services,364320,Grants to Voluntary Organisations,04-Sep-2017,000006446616099,PREMIER INN,3811,Accommodation assistance,60.00,10.00,50.00
Regeneration and Local Services,Economic Development and Housing,031576,B& B - Temp Accom,Supplies and Services,364320,Grants to Voluntary Organisations,04-Sep-2017,000006446616455,PREMIER INN,3811,Accommodation assistance,-74.50,0.00,-74.50
Regeneration and Local Services,Direct Services,021235,Catering - Wharton Park,Supplies and Services,324117,Provisions,04-Sep-2017,000006446616597,BATLEYS PERTH,5300,Catering costs - provisions,148.38,24.73,123.65
Regeneration and Local Services,Direct Services,021235,Catering - Wharton Park,Supplies and Services,324117,Provisions,04-Sep-2017,000006446616597 - 1,BATLEYS PERTH,5300,Catering costs - provisions,14.66,,14.66
Regeneration and Local Services,Culture & Sport,011210,Parks & Countryside,Supplies and Services,304259,Equipment and Materials,04-Sep-2017,000006449741587,SPN BestwayPools,5969,Equipment-purchase and rental,13.98,2.33,11.65
Regeneration and Local Services,Spatial Policy Planning Assets & Environment,031200,North Pennines Core,Supplies and Services,348037,Subsistence,05-Sep-2017,000006444259031,PIZZA AEROPORTO LISBOA,5812,Subsistence,0.20,0.00,0.20
Children and Young Peoples Services,Head of Early Help Assessment and Safeguarding,085100,Child Protection & Disabilty Strategic Manager,Supplies and Services,384199,Miscellaneous Expenses,05-Sep-2017,000006446615887,SUNDERLAND CC,9399,Other hired and contracted services,10.00,0.00,10.00
Adult and Health Services,Head of Adults,051625,Intermediate Care Plus - South,Supplies and Services,340001,Postages,05-Sep-2017,000006446615929,ROYAL MAIL ONLINE SHOP,9402,Postages,112.00,0.00,112.00
Children and Young Peoples Services,Head of Education,076004,Music - Parents Fund,Supplies and Services,312009,Newspapers Books and Periodicals,05-Sep-2017,000006446615933,Amazon EU,5969,Newspapers books and periodicals,60.00,0.00,60.00
Adult and Health Services,Head of Adults,055302,Durham Pathways,Supplies and Services,324117,Provisions,05-Sep-2017,000006446615975,LIDL UK,5411,Catering costs - provisions,1.18,0.00,1.18
Regeneration and Local Services,Economic Development and Housing,030737,Durham Works Flexible Fund,Supplies and Services,328041,Clothing Uniforms and Laundry,05-Sep-2017,000006446616039,SELECT,5691,Clothing uniforms and laundry,14.04,0.00,14.04
Regeneration and Local Services,Economic Development and Housing,030737,Durham Works Flexible Fund,Transport,230031,Contract Hire,05-Sep-2017,000006446616043,WWW.SIMPLYGO.COM,4131,Pupils-transport to play fields etc,92.00,0.00,92.00
Regeneration and Local Services,Economic Development and Housing,030737,Durham Works Flexible Fund,Supplies and Services,328041,Clothing Uniforms and Laundry,05-Sep-2017,000006446616047,NEW LOOK 1784,5621,Clothing uniforms and laundry,22.99,0.00,22.99
Regeneration and Local Services,Economic Development and Housing,030737,Durham Works Flexible Fund,Supplies and Services,328041,Clothing Uniforms and Laundry,05-Sep-2017,000006446616049,ASDA STORES LTD,5411,Clothing uniforms and laundry,20.00,0.00,20.00
Regeneration and Local Services,Economic Development and Housing,030737,Durham Works Flexible Fund,Supplies and Services,384999,Miscellaneous Expenses,05-Sep-2017,000006446616053,MACHINE MART WEB,7394,Other expenses,33.98,5.66,28.32
Regeneration and Local Services,Direct Services,021242,Catering - County Hall,Supplies and Services,324117,Provisions,05-Sep-2017,000006446616057,JR HOLLAND FOODSERVICE,5422,Catering costs - provisions,6.58,0.00,6.58
Regeneration and Local Services,Direct Services,021242,Catering - County Hall,Supplies and Services,324117,Provisions,05-Sep-2017,000006446616061,JR HOLLAND FOODSERVICE,5422,Catering costs - provisions,5.76,0.00,5.76
Regeneration and Local Services,Economic Development and Housing,030737,Durham Works Flexible Fund,Transport,235057,Public Transport,05-Sep-2017,000006446616073,ARRIVA NORTH EAST,4131,Staff travelling,7.00,0.00,7.00
Regeneration and Local Services,Economic Development and Housing,030737,Durham Works Flexible Fund,Transport,235057,Public Transport,05-Sep-2017,000006446616075,ARRIVA NORTH EAST,4131,Staff travelling,50.00,0.00,50.00
Regeneration and Local Services,Culture & Sport,054812,Gala Theatre - Catering etc,Supplies and Services,324117,Provisions,05-Sep-2017,000006446616079,JR HOLLAND FOODSERVICE,5422,Catering costs - provisions,24.53,0.00,24.53
Regeneration and Local Services,Economic Development and Housing,030544,Rural Employability - Client Engagement,Supplies and Services,328041,Clothing Uniforms and Laundry,05-Sep-2017,000006446616107,SELECT,5691,Clothing uniforms and laundry,80.93,0.00,80.93
Children and Young Peoples Services,Head of Looked After Provision Permanence and Care Leavers,085362,LAC & Permanence Team 2,Supplies and Services,384999,Miscellaneous Expenses,05-Sep-2017,000006446616111,GRO HM PASSPORT OFFICE,9399,Other expenses,9.25,0.00,9.25
Regeneration and Local Services,Direct Services,010367,C&G - South Grounds Maintenance,Supplies and Services,304403,Equipment and Materials,05-Sep-2017,000006446616159,TP ELECTRICAL SUPPLIES,5065,Other consumables,165.00,0.00,165.00
Regeneration and Local Services,Economic Development and Housing,030737,Durham Works Flexible Fund,Supplies and Services,328041,Clothing Uniforms and Laundry,05-Sep-2017,000006446616163,GOLDSTAR LEISURE LTD,5655,Clothing uniforms and laundry,30.99,0.00,30.99
Regeneration and Local Services,Economic Development and Housing,030737,Durham Works Flexible Fund,Supplies and Services,328041,Clothing Uniforms and Laundry,05-Sep-2017,000006446616167,WWW.DICKIESSTORE.CO.UK,5691,Clothing uniforms and laundry,74.99,0.00,74.99
Regeneration and Local Services,Economic Development and Housing,030544,Rural Employability - Client Engagement,Transport,235057,Public Transport,05-Sep-2017,000006446616169,WWW.SIMPLYGO.COM,4131,Staff travelling,92.00,0.00,92.00
Regeneration and Local Services,Economic Development and Housing,030544,Rural Employability - Client Engagement,Transport,235057,Public Transport,05-Sep-2017,000006446616173,WWW.SIMPLYGO.COM,4131,Staff travelling,6.50,0.00,6.50
Regeneration and Local Services,Economic Development and Housing,030737,Durham Works Flexible Fund,Supplies and Services,304259,Equipment and Materials,05-Sep-2017,000006446616175,PC WORLD ONLINE,5732,Equipment-purchase and rental,24.99,0.00,24.99
Children and Young Peoples Services,Head of Education,071732,Dean Bank Childcare,Supplies and Services,324117,Provisions,05-Sep-2017,000006446616191,ASDA HOME SHOPPING,5411,Catering costs - provisions,59.04,0.00,59.04
Children and Young Peoples Services,Head of Education,071732,Dean Bank Childcare,Supplies and Services,324117,Provisions,05-Sep-2017,000006446616195,ASDA HOME SHOPPING,5411,Catering costs - provisions,40.12,0.00,40.12
Children and Young Peoples Services,Head of Education,071732,Dean Bank Childcare,Supplies and Services,324117,Provisions,05-Sep-2017,000006446616199,ASDA HOME SHOPPING,5411,Catering costs - provisions,-1.58,0.00,-1.58
Regeneration and Local Services,Economic Development and Housing,030737,Durham Works Flexible Fund,Supplies and Services,328041,Clothing Uniforms and Laundry,05-Sep-2017,000006446616209,WWW.ASOS.COM,5651,Clothing uniforms and laundry,107.00,0.00,107.00
Children and Young Peoples Services,Head of Early Help Assessment and Safeguarding,088037,One Point YEI,Supplies and Services,304403,Equipment and Materials,05-Sep-2017,000006446616213,GRO HM PASSPORT OFFICE,9399,Other consumables,9.25,0.00,9.25
Children and Young Peoples Services,Head of Looked After Provision Permanence and Care Leavers,085957,Secure Management,Supplies and Services,328041,Clothing Uniforms and Laundry,05-Sep-2017,000006446616219,M and M Direct Ltd,5941,Clothing uniforms and laundry,24.99,0.00,24.99
Children and Young Peoples Services,Head of Looked After Provision Permanence and Care Leavers,085957,Secure Management,Supplies and Services,328041,Clothing Uniforms and Laundry,05-Sep-2017,000006446616221,VERY.CO.UK,5964,Clothing uniforms and laundry,60.99,0.00,60.99
Regeneration and Local Services,Culture & Sport,011060,Hardwick Park Catering,Supplies and Services,324117,Provisions,05-Sep-2017,000006446616233,JR HOLLAND FOODSERVICE,5422,Catering costs - provisions,113.29,0.00,113.29
Regeneration and Local Services,Spatial Policy Planning Assets & Environment,031200,North Pennines Core,Supplies and Services,348037,Subsistence,05-Sep-2017,000006446616247,AVENIDA DOS ANJOS,5812,Subsistence,8.71,0.00,8.71
Regeneration and Local Services,Direct Services,021234,Catering - Locomotion,Supplies and Services,324117,Provisions,05-Sep-2017,000006446616265,JR HOLLAND FOODSERVICE,5422,Catering costs - provisions,36.60,0.00,36.60
Transformation and Partnerships,Comms & Information Management,060270,Communications and Marketing,Employees,040149,Recruitment Instruction and Training,05-Sep-2017,000006446616291,WWW.CIM.CO.UK,8999,Training-all costs,30.00,0.00,30.00
Regeneration and Local Services,Direct Services,010367,C&G - South Grounds Maintenance,Supplies and Services,304259,Equipment and Materials,05-Sep-2017,000006446616339,SCREWFIX,5211,Equipment-purchase and rental,36.99,0.00,36.99
Children and Young Peoples Services,Head of Looked After Provision Permanence and Care Leavers,085333,Coxhoe Satelite Home,Supplies and Services,324117,Provisions,05-Sep-2017,000006446616365,CO-OP GROUP 310016,5411,Catering costs - provisions,18.38,0.00,18.38
Regeneration and Local Services,Direct Services,010367,C&G - South Grounds Maintenance,Supplies and Services,324117,Provisions,05-Sep-2017,000006446616369,J M RAINE,5399,Catering costs - provisions,182.88,30.48,152.40
Regeneration and Local Services,Direct Services,010367,C&G - South Grounds Maintenance,Supplies and Services,304259,Equipment and Materials,05-Sep-2017,000006446616373,SCREWFIX DIRECT LT,5211,Equipment-purchase and rental,7.78,1.30,6.48
Regeneration and Local Services,Culture & Sport,011214,Volunteer & Skills,Supplies and Services,324117,Provisions,05-Sep-2017,000006446616379,TESCO STORES 2371,5411,Catering costs - provisions,49.00,0.00,49.00
Regeneration and Local Services,Economic Development and Housing,030737,Durham Works Flexible Fund,Transport,235057,Public Transport,05-Sep-2017,000006446616391,WWW.SIMPLYGO.COM,4131,Staff travelling,70.00,0.00,70.00
Adult and Health Services,Head of Adults,055301,Stanley Pathways,Supplies and Services,324117,Provisions,05-Sep-2017,000006446616445,ASDA SUPERSTORE,5411,Catering costs - provisions,6.93,0.00,6.93
Regeneration and Local Services,Direct Services,010301,C&G - North Grounds Maintenance,Supplies and Services,304999,Equipment and Materials,05-Sep-2017,000006446616465,GUSTHARTS CHAINSAW CTR,7699,Misc equipment tools and materials,413.56,0.00,413.56
Regeneration and Local Services,Economic Development and Housing,030737,Durham Works Flexible Fund,Supplies and Services,324117,Provisions,05-Sep-2017,000006446616553,CO-OP GROUP 310015,5411,Catering costs - provisions,25.00,0.00,25.00
Children and Young Peoples Services,Head of Early Help Assessment and Safeguarding,071404,Laurel Avenue Childrens Centre,Supplies and Services,328041,Clothing Uniforms and Laundry,05-Sep-2017,000006446616585,B & M RETAIL,5310,Clothing uniforms and laundry,5.99,0.00,5.99
Regeneration and Local Services,Direct Services,021235,Catering - Wharton Park,Supplies and Services,324117,Provisions,05-Sep-2017,000006446616593,JR HOLLAND FOODSERVICE,5422,Catering costs - provisions,30.41,0.00,30.41
Adult and Health Services,Head of Adults,055309,Peterlee Pathways,Supplies and Services,324117,Provisions,05-Sep-2017,000006446616609,ASDA STORES LTD,5411,Catering costs - provisions,6.00,0.00,6.00
Regeneration and Local Services,Economic Development and Housing,030737,Durham Works Flexible Fund,Supplies and Services,328041,Clothing Uniforms and Laundry,05-Sep-2017,000006446616625,ARGOS LTD,5310,Clothing uniforms and laundry,39.99,0.00,39.99
Regeneration and Local Services,Spatial Policy Planning Assets & Environment,031200,North Pennines Core,Third Party Payments,430100,Rendered by Private Contractors,05-Sep-2017,000006446616629,WP-COUNTRYSIDE JOB,7399,Payments to sub-contractors,96.00,16.00,80.00
Regeneration and Local Services,Spatial Policy Planning Assets & Environment,031200,North Pennines Core,Supplies and Services,304999,Equipment and Materials,05-Sep-2017,000006446616633,ASDA RETAIL BISHOP AUC,7395,Misc equipment tools and materials,44.95,7.49,37.46
Regeneration and Local Services,Direct Services,021242,Catering - County Hall,Supplies and Services,324117,Provisions,05-Sep-2017,000006466656973,BATLEYS PERTH,5300,Catering costs - provisions,210.18,35.03,175.15
Regeneration and Local Services,Direct Services,021242,Catering - County Hall,Supplies and Services,324117,Provisions,05-Sep-2017,000006466656973 - 1,BATLEYS PERTH,5300,Catering costs - provisions,128.00,,128.00
Regeneration and Local Services,Culture & Sport,011060,Hardwick Park Catering,Supplies and Services,324117,Provisions,05-Sep-2017,000006466657251,BATLEYS PERTH,5300,Catering costs - provisions,139.74,23.29,116.45
Regeneration and Local Services,Culture & Sport,011060,Hardwick Park Catering,Supplies and Services,324117,Provisions,05-Sep-2017,000006466657251 - 1,BATLEYS PERTH,5300,Catering costs - provisions,51.26,,51.26
Regeneration and Local Services,Culture & Sport,011060,Hardwick Park Catering,Supplies and Services,324117,Provisions,05-Sep-2017,000006466657259,BATLEYS PERTH,5300,Catering costs - provisions,35.60,0.00,35.60
Regeneration and Local Services,Direct Services,021234,Catering - Locomotion,Supplies and Services,324117,Provisions,05-Sep-2017,000006466657355,BATLEYS PERTH,5300,Catering costs - provisions,115.38,19.23,96.15
Regeneration and Local Services,Direct Services,021234,Catering - Locomotion,Supplies and Services,324117,Provisions,05-Sep-2017,000006466657355 - 1,BATLEYS PERTH,5300,Catering costs - provisions,32.48,,32.48
Regeneration and Local Services,Culture & Sport,054235,Bishop Auckland Town Hall Cafe,Supplies and Services,324117,Provisions,05-Sep-2017,000006466657589,BATLEYS PERTH,5300,Catering costs - provisions,78.84,0.00,78.84
Regeneration and Local Services,Direct Services,021324,Catering - Meadowfield,Supplies and Services,324117,Provisions,05-Sep-2017,000006466657607,BATLEYS PERTH,5300,Catering costs - provisions,100.98,16.83,84.15
Regeneration and Local Services,Direct Services,021324,Catering - Meadowfield,Supplies and Services,324117,Provisions,05-Sep-2017,000006466657607 - 1,BATLEYS PERTH,5300,Catering costs - provisions,68.81,,68.81
Regeneration and Local Services,Economic Development and Housing,030699,Business Growth and Innovation General,Supplies and Services,304403,Equipment and Materials,06-Sep-2017,000006446615991,MEETEDGAR MONTHLY,5734,Other consumables,1.04,0.00,1.04
Regeneration and Local Services,Spatial Policy Planning Assets & Environment,031200,North Pennines Core,Supplies and Services,348037,Subsistence,06-Sep-2017,000006446616249,AVENIDA DOS ANJOS,5812,Subsistence,0.24,0.00,0.24
Children and Young Peoples Services,Head of Looked After Provision Permanence and Care Leavers,085341,High Etherley Satelite Home,Supplies and Services,324117,Provisions,06-Sep-2017,000006449741279,TESCO STORES 6329,5411,Catering costs - provisions,56.04,0.00,56.04
Children and Young Peoples Services,Head of Looked After Provision Permanence and Care Leavers,085341,High Etherley Satelite Home,Supplies and Services,324117,Provisions,06-Sep-2017,000006449741281,TESCO STORES 6329,5411,Catering costs - provisions,2.94,0.00,2.94
Regeneration and Local Services,Direct Services,021242,Catering - County Hall,Supplies and Services,324117,Provisions,06-Sep-2017,000006449741415,JR HOLLAND FOODSERVICE,5422,Catering costs - provisions,113.10,0.00,113.10
Regeneration and Local Services,Direct Services,021242,Catering - County Hall,Supplies and Services,324117,Provisions,06-Sep-2017,000006449741425,JR HOLLAND FOODSERVICE,5422,Catering costs - provisions,31.35,0.00,31.35
Children and Young Peoples Services,Head of Looked After Provision Permanence and Care Leavers,085361,LAC & Permanence Team 1,Supplies and Services,384999,Miscellaneous Expenses,06-Sep-2017,000006449741475,GRO HM PASSPORT OFFICE,9399,Other expenses,18.50,0.00,18.50
Children and Young Peoples Services,Head of Looked After Provision Permanence and Care Leavers,085362,LAC & Permanence Team 2,Supplies and Services,384999,Miscellaneous Expenses,06-Sep-2017,000006449741477,WWW.DURHAM.GOV.UK,9399,Other expenses,12.00,0.00,12.00
Children and Young Peoples Services,Head of Looked After Provision Permanence and Care Leavers,085351,Framwellgate Moor CU,Supplies and Services,324117,Provisions,06-Sep-2017,000006449741479,ASDA HOME SHOPPING,5411,Catering costs - provisions,184.31,0.00,184.31
Children and Young Peoples Services,Head of Looked After Provision Permanence and Care Leavers,085333,Coxhoe Satelite Home,Supplies and Services,304259,Equipment and Materials,06-Sep-2017,000006449741481,JD SPORTS INTERNET,5941,Equipment-purchase and rental,41.99,0.00,41.99
Regeneration and Local Services,Economic Development and Housing,030737,Durham Works Flexible Fund,Supplies and Services,384999,Miscellaneous Expenses,06-Sep-2017,000006449741525,ACTIVE GROUP LTD,5995,Other expenses,127.94,0.00,127.94
Regeneration and Local Services,Economic Development and Housing,030737,Durham Works Flexible Fund,Supplies and Services,328041,Clothing Uniforms and Laundry,06-Sep-2017,000006449741529,NEW LOOK INTERNET,5621,Clothing uniforms and laundry,95.95,0.00,95.95
Children and Young Peoples Services,Head of Looked After Provision Permanence and Care Leavers,085957,Secure Management,Supplies and Services,328041,Clothing Uniforms and Laundry,06-Sep-2017,000006449741561,Amazon UK Marketplace,5942,Clothing uniforms and laundry,33.93,0.00,33.93
Children and Young Peoples Services,Head of Looked After Provision Permanence and Care Leavers,085952,Secure Education,Supplies and Services,304335,Equipment and Materials,06-Sep-2017,000006449741567,Amazon EU,5969,ICT supplies etc,14.92,0.00,14.92
Children and Young Peoples Services,Head of Looked After Provision Permanence and Care Leavers,085957,Secure Management,Supplies and Services,328041,Clothing Uniforms and Laundry,06-Sep-2017,000006449741569,M and M Direct Ltd,5941,Clothing uniforms and laundry,24.99,0.00,24.99
Children and Young Peoples Services,Head of Looked After Provision Permanence and Care Leavers,085957,Secure Management,Supplies and Services,328041,Clothing Uniforms and Laundry,06-Sep-2017,000006449741573,Amazon UK Marketplace,5942,Clothing uniforms and laundry,16.90,0.00,16.90
Children and Young Peoples Services,Head of Looked After Provision Permanence and Care Leavers,085957,Secure Management,Supplies and Services,328041,Clothing Uniforms and Laundry,06-Sep-2017,000006449741575,WWW.FOOTASYLUM.COM,5941,Clothing uniforms and laundry,71.97,0.00,71.97
Children and Young Peoples Services,Head of Looked After Provision Permanence and Care Leavers,085957,Secure Management,Supplies and Services,328041,Clothing Uniforms and Laundry,06-Sep-2017,000006449741577,WWW.FOOTASYLUM.COM,5941,Clothing uniforms and laundry,20.99,0.00,20.99
Children and Young Peoples Services,Head of Looked After Provision Permanence and Care Leavers,085955,Auckland,Supplies and Services,324117,Provisions,06-Sep-2017,000006449741581,TESCO STORES 6329,5411,Catering costs - provisions,83.40,0.00,83.40
Children and Young Peoples Services,Head of Early Help Assessment and Safeguarding,071444,Consett One Point Hub,Supplies and Services,312011,Newspapers Books and Periodicals,06-Sep-2017,000006449741583,Amazon UK Marketplace,5942,Books-school library,20.10,0.00,20.10
Regeneration and Local Services,Culture & Sport,011060,Hardwick Park Catering,Supplies and Services,324117,Provisions,06-Sep-2017,000006449741601,JR HOLLAND FOODSERVICE,5422,Catering costs - provisions,73.59,0.00,73.59
Regeneration and Local Services,Culture & Sport,011060,Hardwick Park Catering,Supplies and Services,324117,Provisions,06-Sep-2017,000006449741605,JR HOLLAND FOODSERVICE,5422,Catering costs - provisions,16.20,0.00,16.20
Regeneration and Local Services,Culture & Sport,011060,Hardwick Park Catering,Supplies and Services,324117,Provisions,06-Sep-2017,000006449741611,JR HOLLAND FOODSERVICE,5422,Catering costs - provisions,-70.82,0.00,-70.82
Children and Young Peoples Services,Head of Looked After Provision Permanence and Care Leavers,085551,Short Break Services-Park Hse Sher,Supplies and Services,324117,Provisions,06-Sep-2017,000006449741619,ALDI 15 774 S,5411,Catering costs - provisions,49.99,0.00,49.99
Regeneration and Local Services,Direct Services,021234,Catering - Locomotion,Supplies and Services,324117,Provisions,06-Sep-2017,000006449741625,JR HOLLAND FOODSERVICE,5422,Catering costs - provisions,28.13,0.00,28.13
Regeneration and Local Services,Direct Services,010525,Catering - Green Lane,Supplies and Services,324117,Provisions,06-Sep-2017,000006449741659,JR HOLLAND FOODSERVICE,5422,Catering costs - provisions,31.79,0.00,31.79
Regeneration and Local Services,Direct Services,010525,Catering - Green Lane,Supplies and Services,324117,Provisions,06-Sep-2017,000006449741663,JR HOLLAND FOODSERVICE,5422,Catering costs - provisions,9.12,0.00,9.12
Regeneration and Local Services,Direct Services,010367,C&G - South Grounds Maintenance,Supplies and Services,304259,Equipment and Materials,06-Sep-2017,000006449741745,SCREWFIX DIRECT LT,5211,Equipment-purchase and rental,29.99,5.00,24.99
Regeneration and Local Services,Culture & Sport,026591,Hardwick Park,Supplies and Services,384999,Miscellaneous Expenses,06-Sep-2017,000006449741755,Amazon UK Marketplace,5942,Other expenses,10.98,0.00,10.98
Regeneration and Local Services,Culture & Sport,026591,Hardwick Park,Supplies and Services,384999,Miscellaneous Expenses,06-Sep-2017,000006449741759,Amazon UK Marketplace,5942,Other expenses,24.65,0.00,24.65
Regeneration and Local Services,Direct Services,010301,C&G - North Grounds Maintenance,Supplies and Services,304403,Equipment and Materials,06-Sep-2017,000006449741775,BESCOL,5231,Other consumables,47.50,0.00,47.50
Regeneration and Local Services,Culture & Sport,054235,Bishop Auckland Town Hall Cafe,Supplies and Services,324117,Provisions,06-Sep-2017,000006449741799,JR HOLLAND FOODSERVICE,5422,Catering costs - provisions,47.36,0.00,47.36
Regeneration and Local Services,Direct Services,021324,Catering - Meadowfield,Supplies and Services,324117,Provisions,06-Sep-2017,000006449741807,JR HOLLAND FOODSERVICE,5422,Catering costs - provisions,30.88,0.00,30.88
Regeneration and Local Services,Direct Services,021324,Catering - Meadowfield,Supplies and Services,324117,Provisions,06-Sep-2017,000006449741813,JR HOLLAND FOODSERVICE,5422,Catering costs - provisions,13.87,0.00,13.87
Regeneration and Local Services,Direct Services,010301,C&G - North Grounds Maintenance,Supplies and Services,312011,Newspapers Books and Periodicals,06-Sep-2017,000006449741829,TOOLSTATION LTD,5251,Books-school library,21.80,0.00,21.80
Regeneration and Local Services,Culture & Sport,011086,Positive Futures,Supplies and Services,324117,Provisions,06-Sep-2017,000006449741873,ASDA STORES LTD,5411,Catering costs - provisions,23.25,0.00,23.25
Regeneration and Local Services,Economic Development and Housing,030737,Durham Works Flexible Fund,Transport,235057,Public Transport,06-Sep-2017,000006449741933,ARRIVA NORTH EAST,4131,Staff travelling,8.00,0.00,8.00
Children and Young Peoples Services,Head of Early Help Assessment and Safeguarding,074000,TTF-Attachment and Results,Supplies and Services,308011,Furniture,06-Sep-2017,000006449741951,EDS BEDS LTD,5712,Furniture repair and replacement,100.00,16.67,83.33
Children and Young Peoples Services,Head of Early Help Assessment and Safeguarding,074000,TTF-Attachment and Results,Supplies and Services,308011,Furniture,06-Sep-2017,000006449741959,FRANKS THE FLOORING ST,5713,Furniture repair and replacement,150.00,0.00,150.00
Children and Young Peoples Services,Head of Early Help Assessment and Safeguarding,074000,TTF-Attachment and Results,Supplies and Services,308011,Furniture,06-Sep-2017,000006449741963,FRANKS THE FLOORING ST,5713,Furniture repair and replacement,150.00,0.00,150.00
Children and Young Peoples Services,Head of Early Help Assessment and Safeguarding,074000,TTF-Attachment and Results,Supplies and Services,324117,Provisions,06-Sep-2017,000006449741967,ASDA GEORGE COM LEEDS,5411,Catering costs - provisions,148.95,24.83,124.12
Children and Young Peoples Services,Head of Early Help Assessment and Safeguarding,074000,TTF-Attachment and Results,Supplies and Services,304403,Equipment and Materials,06-Sep-2017,000006449741969,TESCO - EDPA,5999,Other consumables,42.94,7.16,35.78
Children and Young Peoples Services,Head of Early Help Assessment and Safeguarding,074000,TTF-Attachment and Results,Supplies and Services,304403,Equipment and Materials,06-Sep-2017,000006449741975,TESCO - PLO,5999,Other consumables,8.40,0.00,8.40
Children and Young Peoples Services,Head of Early Help Assessment and Safeguarding,074000,TTF-Attachment and Results,Supplies and Services,304403,Equipment and Materials,06-Sep-2017,000006449741977,TESCO - Seller_IST_1_2,5999,Other consumables,119.99,0.00,119.99
Children and Young Peoples Services,Head of Early Help Assessment and Safeguarding,074000,TTF-Attachment and Results,Supplies and Services,304403,Equipment and Materials,06-Sep-2017,000006449741981,TESCO - Seller_IST_1_2,5999,Other consumables,104.99,17.50,87.49
Children and Young Peoples Services,Head of Early Help Assessment and Safeguarding,074000,TTF-Attachment and Results,Supplies and Services,304403,Equipment and Materials,06-Sep-2017,000006449741985,TESCO DIRECT,5999,Other consumables,43.00,7.17,35.83
Children and Young Peoples Services,Head of Early Help Assessment and Safeguarding,074000,TTF-Attachment and Results,Supplies and Services,304403,Equipment and Materials,06-Sep-2017,000006449741989,TESCO-Seller_IST_1_240,5999,Other consumables,25.02,0.00,25.02
Resources,Corporate Finance,065109,Pensions,Supplies and Services,384199,Miscellaneous Expenses,06-Sep-2017,000006449741993,DARLINGTON BC INTERNET,9399,Other hired and contracted services,12.00,0.00,12.00
Resources,Corporate Finance,065109,Pensions,Supplies and Services,384199,Miscellaneous Expenses,06-Sep-2017,000006449741997,DARLINGTON BC INTERNET,9399,Other hired and contracted services,12.00,0.00,12.00
Adult and Health Services,Head of Adults,056601,Substance Misuse,Supplies and Services,352001,Conference Expenses,06-Sep-2017,000006449741999,EB A DISORDER FOR EVE,7399,Conferencesseminars fees etc,79.00,0.00,79.00
Resources,Digital and Customer Services,065303,Design & Print - Design,Supplies and Services,372009,Subscriptions,06-Sep-2017,000006449742003,APPY PIE,5734,Subscriptions,48.00,0.00,48.00
Regeneration and Local Services,Direct Services,021235,Catering - Wharton Park,Supplies and Services,324117,Provisions,06-Sep-2017,000006449742013,JR HOLLAND FOODSERVICE,5422,Catering costs - provisions,13.34,0.00,13.34
Regeneration and Local Services,Direct Services,021235,Catering - Wharton Park,Supplies and Services,324117,Provisions,06-Sep-2017,000006449742019,ADELIE FOODS LTD,5499,Catering costs - provisions,119.84,0.00,119.84
Regeneration and Local Services,Economic Development and Housing,030747,Employability - Welfare Reform Performance,Supplies and Services,328041,Clothing Uniforms and Laundry,06-Sep-2017,000006449742023,ARGOS RETAIL GROUP,5310,Clothing uniforms and laundry,24.99,0.00,24.99
Regeneration and Local Services,Culture & Sport,054820,Gala Theatre - Overheads,Supplies and Services,384956,Miscellaneous Expenses,06-Sep-2017,000006454101671,TVLICENSING.CO.UK,7392,Licences,147.00,0.00,147.00
Regeneration and Local Services,Economic Development and Housing,030699,Business Growth and Innovation General,Supplies and Services,342033,Computers and Communications,07-Sep-2017,000006449741351,AdRoll_EMEA,7372,Computer hardware,7.76,0.00,7.76
Regeneration and Local Services,Economic Development and Housing,030699,Business Growth and Innovation General,Supplies and Services,342033,Computers and Communications,07-Sep-2017,000006449741355,AdRoll_EMEA,7372,Computer hardware,0.21,0.00,0.21
Children and Young Peoples Services,Head of Early Help Assessment and Safeguarding,071441,Bishop Auckland One Point Hub,Supplies and Services,332048,Printing Stationery and Gen Off Exps,07-Sep-2017,000006449741703,Amazon UK Marketplace,5942,Administrative stationery etc,5.99,0.00,5.99
Children and Young Peoples Services,Head of Education,071801,Selby Cottage Childcare Centre,Supplies and Services,324117,Provisions,07-Sep-2017,000006454101551,ONE STOP 3026,5411,Catering costs - provisions,5.05,0.00,5.05
Children and Young Peoples Services,Head of Education,071801,Selby Cottage Childcare Centre,Supplies and Services,324117,Provisions,07-Sep-2017,000006454101555,TESCO STORES 2278,5411,Catering costs - provisions,42.26,0.00,42.26
Regeneration and Local Services,Transport and Contracted Services,032207,Traveline north east,Supplies and Services,304335,Equipment and Materials,07-Sep-2017,000006454101563,PAYPAL 3QD RISCOS,5734,ICT supplies etc,162.50,0.00,162.50
Regeneration and Local Services,Economic Development and Housing,030732,Rural Employability Project - South Durham,Supplies and Services,304259,Equipment and Materials,07-Sep-2017,000006454101587,SCREWFIX CHESTER L,5211,Equipment-purchase and rental,146.04,24.34,121.70
Regeneration and Local Services,Economic Development and Housing,030732,Rural Employability Project - South Durham,Supplies and Services,304259,Equipment and Materials,07-Sep-2017,000006454101587 - 1,SCREWFIX CHESTER L,5211,Equipment-purchase and rental,30.26,,30.26
Children and Young Peoples Services,Head of Looked After Provision Permanence and Care Leavers,085952,Secure Education,Supplies and Services,304649,Equipment and Materials,07-Sep-2017,000006454101609,SPORTDIRECTORY.COM,5941,Toys,80.75,13.46,67.29
Children and Young Peoples Services,Head of Looked After Provision Permanence and Care Leavers,085342,9 Cedar Drive Aycliffe,Employees,040149,Recruitment Instruction and Training,07-Sep-2017,000006454101627,PARENTPAY E-COM R,8220,Training-all costs,50.00,0.00,50.00
Children and Young Peoples Services,Head of Early Help Assessment and Safeguarding,085515,Community Support Team,Supplies and Services,312011,Newspapers Books and Periodicals,07-Sep-2017,000006454101663,Amazon UK Marketplace,5942,Books-school library,57.40,0.00,57.40
Regeneration and Local Services,Direct Services,021242,Catering - County Hall,Supplies and Services,324117,Provisions,07-Sep-2017,000006454101681,JR HOLLAND FOODSERVICE,5422,Catering costs - provisions,112.84,0.00,112.84
Regeneration and Local Services,Direct Services,021242,Catering - County Hall,Supplies and Services,324117,Provisions,07-Sep-2017,000006454101693,JR HOLLAND FOODSERVICE,5422,Catering costs - provisions,13.16,0.00,13.16
Regeneration and Local Services,Culture & Sport,054812,Gala Theatre - Catering etc,Supplies and Services,324117,Provisions,07-Sep-2017,000006454101701,JR HOLLAND FOODSERVICE,5422,Catering costs - provisions,71.83,0.00,71.83
Children and Young Peoples Services,Head of Education,071732,Dean Bank Childcare,Supplies and Services,324117,Provisions,07-Sep-2017,000006454101801,SAINSBURYS SACAT (2303,5411,Catering costs - provisions,23.99,0.00,23.99
Children and Young Peoples Services,Head of Education,071732,Dean Bank Childcare,Supplies and Services,312011,Newspapers Books and Periodicals,07-Sep-2017,000006454101807,AMAZON.CO.UK,5942,Books-school library,29.15,0.00,29.15
Children and Young Peoples Services,Head of Looked After Provision Permanence and Care Leavers,085341,High Etherley Satelite Home,Supplies and Services,308011,Furniture,07-Sep-2017,000006454101813,B & Q 1120,5211,Furniture repair and replacement,19.00,0.00,19.00
Regeneration and Local Services,Economic Development and Housing,030737,Durham Works Flexible Fund,Supplies and Services,304259,Equipment and Materials,07-Sep-2017,000006454101849,SPORTSDIRECT 387,5941,Equipment-purchase and rental,20.04,0.00,20.04
Children and Young Peoples Services,Head of Looked After Provision Permanence and Care Leavers,085957,Secure Management,Supplies and Services,304649,Equipment and Materials,07-Sep-2017,000006454101857,Amazon EU,5969,Toys,45.14,0.00,45.14
Children and Young Peoples Services,Head of Looked After Provision Permanence and Care Leavers,085965,Barnard,Supplies and Services,324117,Provisions,07-Sep-2017,000006454101859,TESCO STORES 6329,5411,Catering costs - provisions,102.90,0.00,102.90
Regeneration and Local Services,Culture & Sport,011060,Hardwick Park Catering,Supplies and Services,324117,Provisions,07-Sep-2017,000006454101881,JR HOLLAND FOODSERVICE,5422,Catering costs - provisions,17.78,0.00,17.78
Regeneration and Local Services,Spatial Policy Planning Assets & Environment,031200,North Pennines Core,Supplies and Services,348037,Subsistence,07-Sep-2017,000006454101887,YATCH CLUB,5812,Subsistence,7.36,0.00,7.36
Regeneration and Local Services,Culture & Sport,054815,Gala Theatre Stage School,Supplies and Services,304259,Equipment and Materials,07-Sep-2017,000006454101923,MARKET ELECTRICS,5722,Equipment-purchase and rental,6.97,0.00,6.97
Children and Young Peoples Services,Head of Looked After Provision Permanence and Care Leavers,085551,Short Break Services-Park Hse Sher,Supplies and Services,324117,Provisions,07-Sep-2017,000006454101929,ALDI 12 774 S,5411,Catering costs - provisions,49.99,0.00,49.99
Children and Young Peoples Services,Head of Looked After Provision Permanence and Care Leavers,085551,Short Break Services-Park Hse Sher,Supplies and Services,324117,Provisions,07-Sep-2017,000006454101931,TESCO STORES 2371,5411,Catering costs - provisions,208.40,0.00,208.40
Children and Young Peoples Services,Head of Looked After Provision Permanence and Care Leavers,085551,Short Break Services-Park Hse Sher,Supplies and Services,324117,Provisions,07-Sep-2017,000006454101937,ALDI 12 774 S,5411,Catering costs - provisions,-99.98,0.00,-99.98
Regeneration and Local Services,Direct Services,010367,C&G - South Grounds Maintenance,Supplies and Services,312011,Newspapers Books and Periodicals,07-Sep-2017,000006454102019,RICKERBY,5251,Books-school library,110.23,18.37,91.86
Children and Young Peoples Services,Head of Looked After Provision Permanence and Care Leavers,085333,Coxhoe Satelite Home,Supplies and Services,304259,Equipment and Materials,07-Sep-2017,000006454102051,B & Q 1343,5211,Equipment-purchase and rental,23.92,0.00,23.92
Children and Young Peoples Services,Head of Looked After Provision Permanence and Care Leavers,085333,Coxhoe Satelite Home,Supplies and Services,324117,Provisions,07-Sep-2017,000006454102061,ASDA SUPERSTORE 4987,5411,Catering costs - provisions,196.92,0.00,196.92
Children and Young Peoples Services,Head of Looked After Provision Permanence and Care Leavers,085333,Coxhoe Satelite Home,Supplies and Services,304259,Equipment and Materials,07-Sep-2017,000006454102067,SPORTSDIRECT 264,5941,Equipment-purchase and rental,57.49,0.00,57.49
Resources,Resources Management,069000,Resources Management,Supplies and Services,324117,Provisions,07-Sep-2017,000006454102073,TESCO STORES 2371,5411,Catering costs - provisions,16.00,0.00,16.00
Regeneration and Local Services,Direct Services,010301,C&G - North Grounds Maintenance,Supplies and Services,324117,Provisions,07-Sep-2017,000006454102097,J VAN VLIET GATESHEAD,5399,Catering costs - provisions,103.32,0.00,103.32
Children and Young Peoples Services,Head of Early Help Assessment and Safeguarding,088013,Seaham 0 - 5,Supplies and Services,324117,Provisions,07-Sep-2017,000006454102113,ASDA GEORGE COM LEEDS,5411,Catering costs - provisions,122.55,0.00,122.55
Regeneration and Local Services,Direct Services,011068,Nei.Prot - Civic Pride,Supplies and Services,332047,Printing Stationery and Gen Off Exps,07-Sep-2017,000006454102365,WILKO.COM,5722,Stationery,80.00,0.00,80.00
Regeneration and Local Services,Economic Development and Housing,030747,Employability - Welfare Reform Performance,Transport,235057,Public Transport,07-Sep-2017,000006454102407,WWW.SIMPLYGO.COM,4131,Staff travelling,70.00,0.00,70.00
Regeneration and Local Services,Economic Development and Housing,030737,Durham Works Flexible Fund,Supplies and Services,304259,Equipment and Materials,07-Sep-2017,000006454102439,SCREWFIX DIRECT,5211,Equipment-purchase and rental,74.98,0.00,74.98
Children and Young Peoples Services,Head of Looked After Provision Permanence and Care Leavers,085954,Walworth,Supplies and Services,304259,Equipment and Materials,07-Sep-2017,000006459361949,WWW.ARGOS.CO.UK,5310,Equipment-purchase and rental,199.99,33.33,166.66
Children and Young Peoples Services,Head of Early Help Assessment and Safeguarding,085515,Community Support Team,Supplies and Services,304403,Equipment and Materials,07-Sep-2017,000006459362053,AMAZON UK RETAIL AMAZO,5999,Other consumables,49.50,0.00,49.50
Children and Young Peoples Services,Head of Looked After Provision Permanence and Care Leavers,085957,Secure Management,Supplies and Services,304649,Equipment and Materials,07-Sep-2017,000006459362277,SPORTSDIRECT.COM,5941,Toys,154.74,25.79,128.95
Regeneration and Local Services,Economic Development and Housing,031576,B& B - Temp Accom,Supplies and Services,364320,Grants to Voluntary Organisations,07-Sep-2017,000006459362357,PREMIER INN,3811,Accommodation assistance,57.50,9.58,47.92
Regeneration and Local Services,Economic Development and Housing,031576,B& B - Temp Accom,Supplies and Services,364320,Grants to Voluntary Organisations,07-Sep-2017,000006459362361,PREMIER INN,3811,Accommodation assistance,59.00,9.83,49.17
Regeneration and Local Services,Culture & Sport,011060,Hardwick Park Catering,Supplies and Services,324117,Provisions,07-Sep-2017,000006466657263,BATLEYS PERTH,5300,Catering costs - provisions,84.24,14.04,70.20
Regeneration and Local Services,Culture & Sport,011060,Hardwick Park Catering,Supplies and Services,324117,Provisions,07-Sep-2017,000006466657263 - 1,BATLEYS PERTH,5300,Catering costs - provisions,121.96,,121.96
Regeneration and Local Services,Culture & Sport,011060,Hardwick Park Catering,Supplies and Services,324117,Provisions,07-Sep-2017,000006466657267,BATLEYS PERTH,5300,Catering costs - provisions,58.81,9.81,49.00
Regeneration and Local Services,Culture & Sport,011060,Hardwick Park Catering,Supplies and Services,324117,Provisions,07-Sep-2017,000006466657271,BATLEYS PERTH,5300,Catering costs - provisions,6.50,0.00,6.50
Regeneration and Local Services,Culture & Sport,011060,Hardwick Park Catering,Supplies and Services,324117,Provisions,07-Sep-2017,000006466657275,BATLEYS PERTH,5300,Catering costs - provisions,16.49,0.00,16.49
Regeneration and Local Services,Direct Services,021234,Catering - Locomotion,Supplies and Services,324117,Provisions,07-Sep-2017,000006466657359,BATLEYS PERTH,5300,Catering costs - provisions,61.74,10.29,51.45
Regeneration and Local Services,Direct Services,021234,Catering - Locomotion,Supplies and Services,324117,Provisions,07-Sep-2017,000006466657359 - 1,BATLEYS PERTH,5300,Catering costs - provisions,32.83,,32.83
Regeneration and Local Services,Direct Services,021235,Catering - Wharton Park,Supplies and Services,324117,Provisions,07-Sep-2017,000006466657751,BATLEYS PERTH,5300,Catering costs - provisions,64.26,10.71,53.55
Regeneration and Local Services,Direct Services,021235,Catering - Wharton Park,Supplies and Services,324117,Provisions,07-Sep-2017,000006466657751 - 1,BATLEYS PERTH,5300,Catering costs - provisions,21.84,,21.84
Regeneration and Local Services,Spatial Policy Planning Assets & Environment,031200,North Pennines Core,Supplies and Services,348037,Subsistence,08-Sep-2017,000006454101893,YATCH CLUB,5812,Subsistence,0.20,0.00,0.20
Children and Young Peoples Services,Head of Looked After Provision Permanence and Care Leavers,085341,High Etherley Satelite Home,Supplies and Services,324117,Provisions,08-Sep-2017,000006459361825,TESCO STORES 6329,5411,Catering costs - provisions,24.13,0.00,24.13
Children and Young Peoples Services,Head of Looked After Provision Permanence and Care Leavers,085341,High Etherley Satelite Home,Supplies and Services,304403,Equipment and Materials,08-Sep-2017,000006459361833,WWW.PARTMASTER.CO.UK,5065,Other consumables,22.37,0.00,22.37
Children and Young Peoples Services,Head of Education,071801,Selby Cottage Childcare Centre,Supplies and Services,324117,Provisions,08-Sep-2017,000006459361855,TESCO STORES 2278,5411,Catering costs - provisions,3.59,0.00,3.59
Regeneration and Local Services,Economic Development and Housing,031576,B& B - Temp Accom,Supplies and Services,364320,Grants to Voluntary Organisations,08-Sep-2017,000006459361863,TRAVELODGE,3615,Accommodation assistance,255.00,42.50,212.50
Regeneration and Local Services,Economic Development and Housing,031576,B& B - Temp Accom,Supplies and Services,364320,Grants to Voluntary Organisations,08-Sep-2017,000006459361867,TRAVELODGE,3615,Accommodation assistance,235.00,39.17,195.83
Adult and Health Services,Head of Adults,055302,Durham Pathways,Supplies and Services,324117,Provisions,08-Sep-2017,000006459361945,SAINSBURYS 0776,5411,Catering costs - provisions,3.90,0.00,3.90
Children and Young Peoples Services,Head of Looked After Provision Permanence and Care Leavers,085342,9 Cedar Drive Aycliffe,Supplies and Services,328041,Clothing Uniforms and Laundry,08-Sep-2017,000006459361999,ARGOS RETAIL GROUP,5310,Clothing uniforms and laundry,12.95,0.00,12.95
Children and Young Peoples Services,Head of Looked After Provision Permanence and Care Leavers,085342,9 Cedar Drive Aycliffe,Employees,040149,Recruitment Instruction and Training,08-Sep-2017,000006459362003,PARENTPAY E-COM R,8220,Training-all costs,31.00,0.00,31.00
Regeneration and Local Services,Direct Services,010367,C&G - South Grounds Maintenance,Supplies and Services,324117,Provisions,08-Sep-2017,000006459362023,J M RAINE,5399,Catering costs - provisions,87.00,0.00,87.00
Regeneration and Local Services,Direct Services,021242,Catering - County Hall,Supplies and Services,324117,Provisions,08-Sep-2017,000006459362063,JR HOLLAND FOODSERVICE,5422,Catering costs - provisions,65.69,0.00,65.69
Regeneration and Local Services,Direct Services,021242,Catering - County Hall,Supplies and Services,324117,Provisions,08-Sep-2017,000006459362069,JR HOLLAND FOODSERVICE,5422,Catering costs - provisions,13.16,0.00,13.16
Regeneration and Local Services,Economic Development and Housing,030737,Durham Works Flexible Fund,Transport,235057,Public Transport,08-Sep-2017,000006459362103,ARRIVA NORTH EAST,4131,Staff travelling,7.00,0.00,7.00
Regeneration and Local Services,Economic Development and Housing,030737,Durham Works Flexible Fund,Transport,235057,Public Transport,08-Sep-2017,000006459362105,ARRIVA NORTH EAST,4131,Staff travelling,5.80,0.00,5.80
Children and Young Peoples Services,Head of Education,079599,Psychological-HQ,Employees,040149,Recruitment Instruction and Training,08-Sep-2017,000006459362109,WWW.ELKLAN.CO.UK,8299,Training-all costs,80.00,0.00,80.00
Children and Young Peoples Services,Head of Early Help Assessment and Safeguarding,085511,Emergency Duty Team,Supplies and Services,352001,Conference Expenses,08-Sep-2017,000006459362125,TRAVELODGE,3615,Conferencesseminars fees etc,207.75,0.00,207.75
Regeneration and Local Services,Economic Development and Housing,030737,Durham Works Flexible Fund,Transport,235057,Public Transport,08-Sep-2017,000006459362221,WWW.SIMPLYGO.COM,4131,Staff travelling,5.10,0.00,5.10
Regeneration and Local Services,Economic Development and Housing,030737,Durham Works Flexible Fund,Transport,235057,Public Transport,08-Sep-2017,000006459362225,ARRIVA NORTH EAST,4131,Staff travelling,62.00,0.00,62.00
Regeneration and Local Services,Economic Development and Housing,030737,Durham Works Flexible Fund,Supplies and Services,304221,Equipment and Materials,08-Sep-2017,000006459362229,RUBBER SAFETY & HY,5085,Direct materials,89.93,14.99,74.94
Children and Young Peoples Services,Head of Education,071732,Dean Bank Childcare,Supplies and Services,312011,Newspapers Books and Periodicals,08-Sep-2017,000006459362239,Amazon EU,5969,Books-school library,5.99,0.00,5.99
Children and Young Peoples Services,Head of Education,071732,Dean Bank Childcare,Supplies and Services,324117,Provisions,08-Sep-2017,000006459362241,CO-OP GROUP 010503,5411,Catering costs - provisions,7.01,0.00,7.01
Children and Young Peoples Services,Head of Looked After Provision Permanence and Care Leavers,085341,High Etherley Satelite Home,Supplies and Services,308013,Furniture,08-Sep-2017,000006459362247,Amazon UK Marketplace,5942,Curtains and carpets,10.94,0.00,10.94
Regeneration and Local Services,Economic Development and Housing,030737,Durham Works Flexible Fund,Transport,235057,Public Transport,08-Sep-2017,000006459362251,ARRIVA NORTH EAST,4131,Staff travelling,25.00,0.00,25.00
Children and Young Peoples Services,Head of Looked After Provision Permanence and Care Leavers,085956,Lumley,Supplies and Services,324117,Provisions,08-Sep-2017,000006459362273,TESCO STORES 6329,5411,Catering costs - provisions,106.03,0.00,106.03
Children and Young Peoples Services,Head of Looked After Provision Permanence and Care Leavers,085955,Auckland,Supplies and Services,304259,Equipment and Materials,08-Sep-2017,000006459362275,WWW.ARGOS.CO.UK,5310,Equipment-purchase and rental,33.94,0.00,33.94
Regeneration and Local Services,Direct Services,010367,C&G - South Grounds Maintenance,Supplies and Services,304999,Equipment and Materials,08-Sep-2017,000006459362289,GUSTHARTS CHAINSAW CTR,7699,Misc equipment tools and materials,304.80,50.80,254.00
Regeneration and Local Services,Direct Services,010367,C&G - South Grounds Maintenance,Supplies and Services,304999,Equipment and Materials,08-Sep-2017,000006459362291,GUSTHARTS CHAINSAW CTR,7699,Misc equipment tools and materials,294.00,49.00,245.00
Regeneration and Local Services,Spatial Policy Planning Assets & Environment,031071,Sustainability and Climate Change,Supplies and Services,352001,Conference Expenses,08-Sep-2017,000006459362365,H TRANSI RECEPTIE 2 DE,7011,Conferencesseminars fees etc,326.43,0.00,326.43
Regeneration and Local Services,Direct Services,010525,Catering - Green Lane,Supplies and Services,324117,Provisions,08-Sep-2017,000006459362381,JR HOLLAND FOODSERVICE,5422,Catering costs - provisions,36.90,0.00,36.90
Regeneration and Local Services,Direct Services,010367,C&G - South Grounds Maintenance,Supplies and Services,304259,Equipment and Materials,08-Sep-2017,000006459362433,RIGBY TAYLOR,5261,Equipment-purchase and rental,113.34,0.00,113.34
Regeneration and Local Services,Direct Services,020041,Bldg Serv - Business Development - General,Supplies and Services,384999,Miscellaneous Expenses,08-Sep-2017,000006459362457,XC TRAINS LIMITED,4816,Other expenses,4.00,0.67,3.33
Children and Young Peoples Services,Head of Early Help Assessment and Safeguarding,088001,Peterlee Locality,Supplies and Services,304259,Equipment and Materials,08-Sep-2017,000006459362567,HARTLEPOOL BC CNP,9399,Equipment-purchase and rental,14.21,0.00,14.21
Children and Young Peoples Services,Head of Early Help Assessment and Safeguarding,088001,Peterlee Locality,Supplies and Services,308011,Furniture,08-Sep-2017,000006459362571,LKL FLOORING.COM LTD,5713,Furniture repair and replacement,200.00,0.00,200.00
Children and Young Peoples Services,Head of Early Help Assessment and Safeguarding,088001,Peterlee Locality,Supplies and Services,328041,Clothing Uniforms and Laundry,08-Sep-2017,000006459362573,WWW.ARGOS.CO.UK,5310,Clothing uniforms and laundry,189.99,0.00,189.99
Regeneration and Local Services,Culture & Sport,054235,Bishop Auckland Town Hall Cafe,Supplies and Services,324117,Provisions,08-Sep-2017,000006459362581,JR HOLLAND FOODSERVICE,5422,Catering costs - provisions,11.34,0.00,11.34
Regeneration and Local Services,Transport and Contracted Services,031701,Care Connect All Localities,Supplies and Services,344033,Telephones,08-Sep-2017,000006459362583,BT BILL PAYMENT 2,4812,Telephones general-all costs,129.35,21.56,107.79
Regeneration and Local Services,Transport and Contracted Services,031701,Care Connect All Localities,Supplies and Services,344033,Telephones,08-Sep-2017,000006459362587,BT BILL PAYMENT 2,4812,Telephones general-all costs,129.35,21.56,107.79
Regeneration and Local Services,Direct Services,021324,Catering - Meadowfield,Supplies and Services,324117,Provisions,08-Sep-2017,000006459362601,JR HOLLAND FOODSERVICE,5422,Catering costs - provisions,38.67,0.00,38.67
Regeneration and Local Services,Direct Services,021324,Catering - Meadowfield,Supplies and Services,324117,Provisions,08-Sep-2017,000006459362603,JR HOLLAND FOODSERVICE,5422,Catering costs - provisions,9.87,0.00,9.87
Regeneration and Local Services,Economic Development and Housing,030737,Durham Works Flexible Fund,Supplies and Services,328041,Clothing Uniforms and Laundry,08-Sep-2017,000006459362739,ORIGINAL FACTORY S,5311,Clothing uniforms and laundry,22.00,0.00,22.00
Children and Young Peoples Services,Head of Early Help Assessment and Safeguarding,085100,Child Protection & Disabilty Strategic Manager,Supplies and Services,384199,Miscellaneous Expenses,08-Sep-2017,000006459362757,STOCKTON BOROUGH COUNC,9399,Other hired and contracted services,31.00,0.00,31.00
Resources,Digital and Customer Services,069010,Administration,Transport,235057,Public Transport,08-Sep-2017,000006459362759,OYSTER RENEW WEB,4112,Staff travelling,30.00,0.00,30.00
Regeneration and Local Services,Economic Development and Housing,030676,Business Development - Durham City Promotions,Supplies and Services,332047,Printing Stationery and Gen Off Exps,08-Sep-2017,000006459362763,WILKO.COM,5722,Stationery,124.00,0.00,124.00
Regeneration and Local Services,Economic Development and Housing,030747,Employability - Welfare Reform Performance,Transport,235057,Public Transport,08-Sep-2017,000006459362813,WWW.SIMPLYGO.COM,4131,Staff travelling,92.00,0.00,92.00
Regeneration and Local Services,Direct Services,021242,Catering - County Hall,Supplies and Services,324117,Provisions,08-Sep-2017,000006466656979,BATLEYS PERTH,5300,Catering costs - provisions,251.28,41.88,209.40
Regeneration and Local Services,Direct Services,021242,Catering - County Hall,Supplies and Services,324117,Provisions,08-Sep-2017,000006466656979 - 1,BATLEYS PERTH,5300,Catering costs - provisions,113.21,,113.21
Regeneration and Local Services,Culture & Sport,011060,Hardwick Park Catering,Supplies and Services,324117,Provisions,08-Sep-2017,000006466657279,BATLEYS PERTH,5300,Catering costs - provisions,220.62,36.77,183.85
Regeneration and Local Services,Culture & Sport,011060,Hardwick Park Catering,Supplies and Services,324117,Provisions,08-Sep-2017,000006466657279 - 1,BATLEYS PERTH,5300,Catering costs - provisions,241.84,,241.84
Regeneration and Local Services,Direct Services,010525,Catering - Green Lane,Supplies and Services,324117,Provisions,08-Sep-2017,000006466657399,BATLEYS PERTH,5300,Catering costs - provisions,88.26,14.71,73.55
Regeneration and Local Services,Direct Services,010525,Catering - Green Lane,Supplies and Services,324117,Provisions,08-Sep-2017,000006466657399 - 1,BATLEYS PERTH,5300,Catering costs - provisions,73.73,,73.73
Regeneration and Local Services,Direct Services,010525,Catering - Green Lane,Supplies and Services,324117,Provisions,08-Sep-2017,000006466657405,BATLEYS PERTH,5300,Catering costs - provisions,5.48,0.00,5.48
Children and Young Peoples Services,Head of Looked After Provision Permanence and Care Leavers,085341,High Etherley Satelite Home,Supplies and Services,304259,Equipment and Materials,09-Sep-2017,000006459361829,B & Q 1120,5211,Equipment-purchase and rental,150.40,0.00,150.40
Children and Young Peoples Services,Head of Education,054640,Durham Learning Resources,Supplies and Services,312011,Newspapers Books and Periodicals,09-Sep-2017,000006459361861,Amazon UK Marketplace,5942,Books-school library,50.04,0.00,50.04
Children and Young Peoples Services,Head of Looked After Provision Permanence and Care Leavers,085342,9 Cedar Drive Aycliffe,Supplies and Services,308011,Furniture,09-Sep-2017,000006459361965,DFS,5712,Furniture repair and replacement,66.00,0.00,66.00
Children and Young Peoples Services,Head of Looked After Provision Permanence and Care Leavers,085342,9 Cedar Drive Aycliffe,Supplies and Services,324117,Provisions,09-Sep-2017,000006459361967,TESCO STORES 2916,5411,Catering costs - provisions,14.90,0.00,14.90
Children and Young Peoples Services,Head of Early Help Assessment and Safeguarding,085511,Emergency Duty Team,Supplies and Services,352001,Conference Expenses,09-Sep-2017,000006459362127,TRAVELODGE,3615,Conferencesseminars fees etc,181.50,0.00,181.50
Children and Young Peoples Services,Head of Education,071732,Dean Bank Childcare,Supplies and Services,312011,Newspapers Books and Periodicals,09-Sep-2017,000006459362243,Amazon EU,5969,Books-school library,3.49,0.00,3.49
Children and Young Peoples Services,Head of Looked After Provision Permanence and Care Leavers,085954,Walworth,Supplies and Services,324117,Provisions,09-Sep-2017,000006459362279,TESCO STORES 6329,5411,Catering costs - provisions,76.91,0.00,76.91
Regeneration and Local Services,Spatial Policy Planning Assets & Environment,031200,North Pennines Core,Supplies and Services,348037,Subsistence,09-Sep-2017,000006459362323,CASA DA ROSA,5812,Subsistence,23.40,0.00,23.40
Regeneration and Local Services,Direct Services,010814,Bldg Serv - R&M General,Supplies and Services,344033,Telephones,09-Sep-2017,000006459362459,Amazon UK Marketplace,5942,Telephones general-all costs,10.74,0.00,10.74
Regeneration and Local Services,Spatial Policy Planning Assets & Environment,031200,North Pennines Core,Supplies and Services,348037,Subsistence,10-Sep-2017,000006459362325,PAUL,5812,Subsistence,8.83,0.00,8.83
Regeneration and Local Services,Spatial Policy Planning Assets & Environment,031200,North Pennines Core,Supplies and Services,348037,Subsistence,10-Sep-2017,000006459362327,MULTIMARCA AEROPORTO J,5812,Subsistence,4.56,0.00,4.56
Regeneration and Local Services,Spatial Policy Planning Assets & Environment,031200,North Pennines Core,Supplies and Services,348037,Subsistence,10-Sep-2017,000006459362329,PIZZA AEROPORTO LISBOA,5812,Subsistence,7.13,0.00,7.13
Resources,Resources Management,069000,Resources Management,Supplies and Services,324117,Provisions,10-Sep-2017,000006459362471,CO-OP GROUP 010830,5411,Catering costs - provisions,4.00,0.00,4.00
Regeneration and Local Services,Spatial Policy Planning Assets & Environment,031200,North Pennines Core,Supplies and Services,352001,Conference Expenses,10-Sep-2017,000006459362513,OPOHOTEIS - SOC EXPL,7011,Conferencesseminars fees etc,84.16,0.00,84.16
Regeneration and Local Services,Spatial Policy Planning Assets & Environment,031200,North Pennines Core,Supplies and Services,352001,Conference Expenses,10-Sep-2017,000006459362517,OPOHOTEL,7011,Conferencesseminars fees etc,10.49,0.00,10.49
Regeneration and Local Services,Spatial Policy Planning Assets & Environment,031200,North Pennines Core,Supplies and Services,348037,Subsistence,11-Sep-2017,000006459362331,CASA DA ROSA,5812,Subsistence,0.64,0.00,0.64
Regeneration and Local Services,Spatial Policy Planning Assets & Environment,031200,North Pennines Core,Supplies and Services,348037,Subsistence,11-Sep-2017,000006459362333,MULTIMARCA AEROPORTO J,5812,Subsistence,0.13,0.00,0.13
Regeneration and Local Services,Spatial Policy Planning Assets & Environment,031200,North Pennines Core,Supplies and Services,348037,Subsistence,11-Sep-2017,000006459362335,PIZZA AEROPORTO LISBOA,5812,Subsistence,0.20,0.00,0.20
Regeneration and Local Services,Spatial Policy Planning Assets & Environment,031071,Sustainability and Climate Change,Supplies and Services,352001,Conference Expenses,11-Sep-2017,000006459362367,H TRANSI RECEPTIE 2 DE,7011,Conferencesseminars fees etc,8.98,0.00,8.98
Regeneration and Local Services,Spatial Policy Planning Assets & Environment,031200,North Pennines Core,Supplies and Services,352001,Conference Expenses,11-Sep-2017,000006459362519,OPOHOTEL,7011,Conferencesseminars fees etc,0.29,0.00,0.29
Adult and Health Services,Head of Adults,055302,Durham Pathways,Supplies and Services,324117,Provisions,11-Sep-2017,000006466656877,LIDL UK,5411,Catering costs - provisions,1.89,0.00,1.89
Children and Young Peoples Services,Head of Looked After Provision Permanence and Care Leavers,085342,9 Cedar Drive Aycliffe,Supplies and Services,332047,Printing Stationery and Gen Off Exps,11-Sep-2017,000006466656895,VUE BSL SITE,7832,Stationery,18.97,0.00,18.97
Regeneration and Local Services,Economic Development and Housing,030737,Durham Works Flexible Fund,Supplies and Services,384999,Miscellaneous Expenses,11-Sep-2017,000006466656931,HM PASSPORT,9399,Other expenses,106.00,0.00,106.00
Regeneration and Local Services,Economic Development and Housing,030737,Durham Works Flexible Fund,Transport,230031,Contract Hire,11-Sep-2017,000006466656935,ARRIVA NORTH EAST,4131,Pupils-transport to play fields etc,23.00,0.00,23.00
Regeneration and Local Services,Direct Services,021242,Catering - County Hall,Supplies and Services,324117,Provisions,11-Sep-2017,000006466656939,HOPWELLS LTD,5811,Catering costs - provisions,248.63,0.00,248.63
Regeneration and Local Services,Direct Services,021242,Catering - County Hall,Supplies and Services,324117,Provisions,11-Sep-2017,000006466656949,FREEMAN CATERING BUTCH,5422,Catering costs - provisions,122.36,0.00,122.36
Regeneration and Local Services,Direct Services,021242,Catering - County Hall,Supplies and Services,324117,Provisions,11-Sep-2017,000006466656953,FREEMAN CATERING BUTCH,5422,Catering costs - provisions,34.52,0.00,34.52
Regeneration and Local Services,Direct Services,021242,Catering - County Hall,Supplies and Services,324117,Provisions,11-Sep-2017,000006466656955,JR HOLLAND FOODSERVICE,5422,Catering costs - provisions,101.93,0.00,101.93
Regeneration and Local Services,Direct Services,021242,Catering - County Hall,Supplies and Services,324117,Provisions,11-Sep-2017,000006466656959,JR HOLLAND FOODSERVICE,5422,Catering costs - provisions,30.37,0.00,30.37
Regeneration and Local Services,Direct Services,021242,Catering - County Hall,Supplies and Services,324117,Provisions,11-Sep-2017,000006466656963,JR HOLLAND FOODSERVICE,5422,Catering costs - provisions,22.04,0.00,22.04
Regeneration and Local Services,Direct Services,021242,Catering - County Hall,Supplies and Services,324117,Provisions,11-Sep-2017,000006466656967,JR HOLLAND FOODSERVICE,5422,Catering costs - provisions,13.52,0.00,13.52
Regeneration and Local Services,Direct Services,021242,Catering - County Hall,Supplies and Services,324117,Provisions,11-Sep-2017,000006466656969,JR HOLLAND FOODSERVICE,5422,Catering costs - provisions,9.52,0.00,9.52
Regeneration and Local Services,Direct Services,021242,Catering - County Hall,Supplies and Services,324117,Provisions,11-Sep-2017,000006466656987,HOPWELLS LTD,5811,Catering costs - provisions,-6.55,0.00,-6.55
Regeneration and Local Services,Direct Services,021242,Catering - County Hall,Supplies and Services,324117,Provisions,11-Sep-2017,000006466656991,HOPWELLS LTD,5811,Catering costs - provisions,-7.40,0.00,-7.40
Resources,Digital and Customer Services,065461,Business Support,Employees,040029,Recruitment Instruction and Training,11-Sep-2017,000006466656995,NOMINET UK,7379,Interview expenses,27.00,4.50,22.50
Regeneration and Local Services,Economic Development and Housing,030737,Durham Works Flexible Fund,Supplies and Services,344033,Telephones,11-Sep-2017,000006466656999,ARGOS LTD,5310,Telephones general-all costs,30.99,0.00,30.99
Regeneration and Local Services,Economic Development and Housing,030737,Durham Works Flexible Fund,Transport,235057,Public Transport,11-Sep-2017,000006466657003,ARRIVA NORTH EAST,4131,Staff travelling,29.00,0.00,29.00
Regeneration and Local Services,Economic Development and Housing,030737,Durham Works Flexible Fund,Transport,235057,Public Transport,11-Sep-2017,000006466657007,BISHOP AUCKLAND STN TO,4112,Staff travelling,32.50,0.00,32.50
Regeneration and Local Services,Culture & Sport,054812,Gala Theatre - Catering etc,Supplies and Services,324117,Provisions,11-Sep-2017,000006466657011,HOPWELLS LTD,5811,Catering costs - provisions,45.71,0.00,45.71
Regeneration and Local Services,Culture & Sport,054812,Gala Theatre - Catering etc,Supplies and Services,324117,Provisions,11-Sep-2017,000006466657015,HOPWELLS LTD,5811,Catering costs - provisions,31.61,0.00,31.61
Regeneration and Local Services,Culture & Sport,054812,Gala Theatre - Catering etc,Supplies and Services,324117,Provisions,11-Sep-2017,000006466657017,HOPWELLS LTD,5811,Catering costs - provisions,21.78,0.00,21.78
Regeneration and Local Services,Culture & Sport,054812,Gala Theatre - Catering etc,Supplies and Services,324117,Provisions,11-Sep-2017,000006466657021,FREEMAN CATERING BUTCH,5422,Catering costs - provisions,61.33,0.00,61.33
Regeneration and Local Services,Culture & Sport,054812,Gala Theatre - Catering etc,Supplies and Services,324117,Provisions,11-Sep-2017,000006466657025,HOPWELLS LTD,5811,Catering costs - provisions,-16.02,0.00,-16.02
Regeneration and Local Services,Economic Development and Housing,031576,B& B - Temp Accom,Supplies and Services,364320,Grants to Voluntary Organisations,11-Sep-2017,000006466657029,TRAVELODGE,3615,Accommodation assistance,41.00,6.83,34.17
Children and Young Peoples Services,Head of Education,079599,Psychological-HQ,Supplies and Services,312011,Newspapers Books and Periodicals,11-Sep-2017,000006466657039,Amazon UK Marketplace,5942,Books-school library,15.98,0.00,15.98
Regeneration and Local Services,Direct Services,010367,C&G - South Grounds Maintenance,Third Party Payments,430100,Rendered by Private Contractors,11-Sep-2017,000006466657077,LIMELIGHT SIGNS LTD,7399,Payments to sub-contractors,23.02,3.84,19.18
Children and Young Peoples Services,Head of Education,071732,Dean Bank Childcare,Supplies and Services,312011,Newspapers Books and Periodicals,11-Sep-2017,000006466657093,Amazon UK Marketplace,5942,Books-school library,13.99,0.00,13.99
Children and Young Peoples Services,Head of Education,071732,Dean Bank Childcare,Supplies and Services,324117,Provisions,11-Sep-2017,000006466657097,ASDA HOME SHOPPING,5411,Catering costs - provisions,59.46,0.00,59.46
Children and Young Peoples Services,Head of Education,071732,Dean Bank Childcare,Supplies and Services,328041,Clothing Uniforms and Laundry,11-Sep-2017,000006466657101,B & M RETAIL,5310,Clothing uniforms and laundry,49.88,0.00,49.88
Regeneration and Local Services,Culture & Sport,011223,Operations Locality 1,Supplies and Services,304403,Equipment and Materials,11-Sep-2017,000006466657109,SIMPSONS,7251,Other consumables,13.50,0.00,13.50
Regeneration and Local Services,Economic Development and Housing,030737,Durham Works Flexible Fund,Supplies and Services,328041,Clothing Uniforms and Laundry,11-Sep-2017,000006466657149,YOURSCLOTHING.CO.U,5621,Clothing uniforms and laundry,22.78,0.00,22.78
Children and Young Peoples Services,Head of Early Help Assessment and Safeguarding,071445,Chester le Street One Point Hub,Supplies and Services,324117,Provisions,11-Sep-2017,000006466657163,JR HOLLAND FOODSERVICE,5422,Catering costs - provisions,24.08,0.00,24.08
Regeneration and Local Services,Culture & Sport,011210,Parks & Countryside,Supplies and Services,304259,Equipment and Materials,11-Sep-2017,000006466657169,SCREWFIX,5211,Equipment-purchase and rental,62.76,10.46,52.30
Regeneration and Local Services,Direct Services,010367,C&G - South Grounds Maintenance,Supplies and Services,304403,Equipment and Materials,11-Sep-2017,000006466657175,FRED WILLIAMSON,5231,Other consumables,16.38,2.73,13.65
Regeneration and Local Services,Culture & Sport,011060,Hardwick Park Catering,Supplies and Services,324117,Provisions,11-Sep-2017,000006466657183,HOPWELLS LTD,5811,Catering costs - provisions,885.48,147.58,737.90
Regeneration and Local Services,Culture & Sport,011060,Hardwick Park Catering,Supplies and Services,324117,Provisions,11-Sep-2017,000006466657183 - 1,HOPWELLS LTD,5811,Catering costs - provisions,288.51,,288.51
Regeneration and Local Services,Culture & Sport,011060,Hardwick Park Catering,Supplies and Services,324117,Provisions,11-Sep-2017,000006466657193,HOPWELLS LTD,5811,Catering costs - provisions,667.74,111.29,556.45
Regeneration and Local Services,Culture & Sport,011060,Hardwick Park Catering,Supplies and Services,324117,Provisions,11-Sep-2017,000006466657193 - 1,HOPWELLS LTD,5811,Catering costs - provisions,223.64,,223.64
Regeneration and Local Services,Culture & Sport,011060,Hardwick Park Catering,Supplies and Services,324117,Provisions,11-Sep-2017,000006466657201,HOPWELLS LTD,5811,Catering costs - provisions,360.78,60.13,300.65
Regeneration and Local Services,Culture & Sport,011060,Hardwick Park Catering,Supplies and Services,324117,Provisions,11-Sep-2017,000006466657201 - 1,HOPWELLS LTD,5811,Catering costs - provisions,138.33,,138.33
Regeneration and Local Services,Culture & Sport,011060,Hardwick Park Catering,Supplies and Services,324117,Provisions,11-Sep-2017,000006466657207,HOPWELLS LTD,5811,Catering costs - provisions,416.70,69.45,347.25
Regeneration and Local Services,Culture & Sport,011060,Hardwick Park Catering,Supplies and Services,324117,Provisions,11-Sep-2017,000006466657207 - 1,HOPWELLS LTD,5811,Catering costs - provisions,18.68,,18.68
Regeneration and Local Services,Culture & Sport,011060,Hardwick Park Catering,Supplies and Services,324117,Provisions,11-Sep-2017,000006466657215,HOPWELLS LTD,5811,Catering costs - provisions,258.78,43.13,215.65
Regeneration and Local Services,Culture & Sport,011060,Hardwick Park Catering,Supplies and Services,324117,Provisions,11-Sep-2017,000006466657215 - 1,HOPWELLS LTD,5811,Catering costs - provisions,28.67,,28.67
Regeneration and Local Services,Culture & Sport,011060,Hardwick Park Catering,Supplies and Services,324117,Provisions,11-Sep-2017,000006466657221,HOPWELLS LTD,5811,Catering costs - provisions,176.40,29.40,147.00
Regeneration and Local Services,Culture & Sport,011060,Hardwick Park Catering,Supplies and Services,324117,Provisions,11-Sep-2017,000006466657221 - 1,HOPWELLS LTD,5811,Catering costs - provisions,39.71,,39.71
Regeneration and Local Services,Culture & Sport,011060,Hardwick Park Catering,Supplies and Services,324117,Provisions,11-Sep-2017,000006466657225,HOPWELLS LTD,5811,Catering costs - provisions,166.68,27.78,138.90
Regeneration and Local Services,Culture & Sport,011060,Hardwick Park Catering,Supplies and Services,324117,Provisions,11-Sep-2017,000006466657225 - 1,HOPWELLS LTD,5811,Catering costs - provisions,5.33,,5.33
Regeneration and Local Services,Culture & Sport,011060,Hardwick Park Catering,Supplies and Services,324117,Provisions,11-Sep-2017,000006466657233,HOPWELLS LTD,5811,Catering costs - provisions,85.50,14.25,71.25
Regeneration and Local Services,Culture & Sport,011060,Hardwick Park Catering,Supplies and Services,324117,Provisions,11-Sep-2017,000006466657233 - 1,HOPWELLS LTD,5811,Catering costs - provisions,35.85,,35.85
Regeneration and Local Services,Culture & Sport,011060,Hardwick Park Catering,Supplies and Services,324117,Provisions,11-Sep-2017,000006466657237,FREEMAN CATERING BUTCH,5422,Catering costs - provisions,52.49,0.00,52.49
Regeneration and Local Services,Culture & Sport,011060,Hardwick Park Catering,Supplies and Services,324117,Provisions,11-Sep-2017,000006466657239,FREEMAN CATERING BUTCH,5422,Catering costs - provisions,38.95,0.00,38.95
Regeneration and Local Services,Culture & Sport,011060,Hardwick Park Catering,Supplies and Services,324117,Provisions,11-Sep-2017,000006466657243,FREEMAN CATERING BUTCH,5422,Catering costs - provisions,38.64,0.00,38.64
Regeneration and Local Services,Culture & Sport,011060,Hardwick Park Catering,Supplies and Services,324117,Provisions,11-Sep-2017,000006466657247,JR HOLLAND FOODSERVICE,5422,Catering costs - provisions,66.32,0.00,66.32
Regeneration and Local Services,Culture & Sport,011060,Hardwick Park Catering,Supplies and Services,324117,Provisions,11-Sep-2017,000006466657249,JR HOLLAND FOODSERVICE,5422,Catering costs - provisions,37.11,0.00,37.11
Regeneration and Local Services,Culture & Sport,011060,Hardwick Park Catering,Supplies and Services,324117,Provisions,11-Sep-2017,000006466657287,HOPWELLS LTD,5811,Catering costs - provisions,-5.27,0.00,-5.27
Regeneration and Local Services,Culture & Sport,011060,Hardwick Park Catering,Supplies and Services,324117,Provisions,11-Sep-2017,000006466657291,HOPWELLS LTD,5811,Catering costs - provisions,-10.84,0.00,-10.84
Regeneration and Local Services,Culture & Sport,011060,Hardwick Park Catering,Supplies and Services,324117,Provisions,11-Sep-2017,000006466657295,HOPWELLS LTD,5811,Catering costs - provisions,-16.28,-2.71,-13.57
Regeneration and Local Services,Culture & Sport,011060,Hardwick Park Catering,Supplies and Services,324117,Provisions,11-Sep-2017,000006466657297,HOPWELLS LTD,5811,Catering costs - provisions,-21.60,-3.60,-18.00
Regeneration and Local Services,Culture & Sport,011060,Hardwick Park Catering,Supplies and Services,324117,Provisions,11-Sep-2017,000006466657301,HOPWELLS LTD,5811,Catering costs - provisions,-36.82,-6.14,-30.68
Resources,Digital and Customer Services,065335,School Services - Implementations,Supplies and Services,304639,Equipment and Materials,11-Sep-2017,000006466657315,Amazon UK Marketplace,5942,Technicians-supplies,20.97,0.00,20.97
Regeneration and Local Services,Direct Services,021234,Catering - Locomotion,Supplies and Services,324117,Provisions,11-Sep-2017,000006466657319,HOPWELLS LTD,5811,Catering costs - provisions,246.42,41.07,205.35
Regeneration and Local Services,Direct Services,021234,Catering - Locomotion,Supplies and Services,324117,Provisions,11-Sep-2017,000006466657319 - 1,HOPWELLS LTD,5811,Catering costs - provisions,128.90,,128.90
Regeneration and Local Services,Direct Services,021234,Catering - Locomotion,Supplies and Services,324117,Provisions,11-Sep-2017,000006466657325,HOPWELLS LTD,5811,Catering costs - provisions,38.52,6.42,32.10
Regeneration and Local Services,Direct Services,021234,Catering - Locomotion,Supplies and Services,324117,Provisions,11-Sep-2017,000006466657325 - 1,HOPWELLS LTD,5811,Catering costs - provisions,159.86,,159.86
Regeneration and Local Services,Direct Services,021234,Catering - Locomotion,Supplies and Services,324117,Provisions,11-Sep-2017,000006466657331,HOPWELLS LTD,5811,Catering costs - provisions,116.34,19.39,96.95
Regeneration and Local Services,Direct Services,021234,Catering - Locomotion,Supplies and Services,324117,Provisions,11-Sep-2017,000006466657331 - 1,HOPWELLS LTD,5811,Catering costs - provisions,67.31,,67.31
Regeneration and Local Services,Direct Services,021234,Catering - Locomotion,Supplies and Services,324117,Provisions,11-Sep-2017,000006466657335,HOPWELLS LTD,5811,Catering costs - provisions,21.30,3.55,17.75
Regeneration and Local Services,Direct Services,021234,Catering - Locomotion,Supplies and Services,324117,Provisions,11-Sep-2017,000006466657335 - 1,HOPWELLS LTD,5811,Catering costs - provisions,156.94,,156.94
Regeneration and Local Services,Direct Services,021234,Catering - Locomotion,Supplies and Services,324117,Provisions,11-Sep-2017,000006466657339,HOPWELLS LTD,5811,Catering costs - provisions,68.64,11.44,57.20
Regeneration and Local Services,Direct Services,021234,Catering - Locomotion,Supplies and Services,324117,Provisions,11-Sep-2017,000006466657339 - 1,HOPWELLS LTD,5811,Catering costs - provisions,108.64,,108.64
Regeneration and Local Services,Direct Services,021234,Catering - Locomotion,Supplies and Services,324117,Provisions,11-Sep-2017,000006466657345,HOPWELLS LTD,5811,Catering costs - provisions,19.76,0.00,19.76
Regeneration and Local Services,Direct Services,021234,Catering - Locomotion,Supplies and Services,324117,Provisions,11-Sep-2017,000006466657347,HOPWELLS LTD,5811,Catering costs - provisions,14.05,0.00,14.05
Regeneration and Local Services,Direct Services,021234,Catering - Locomotion,Supplies and Services,324117,Provisions,11-Sep-2017,000006466657351,JR HOLLAND FOODSERVICE,5422,Catering costs - provisions,20.06,0.00,20.06
Regeneration and Local Services,Direct Services,021234,Catering - Locomotion,Supplies and Services,324117,Provisions,11-Sep-2017,000006466657365,HOPWELLS LTD,5811,Catering costs - provisions,-10.72,0.00,-10.72
Regeneration and Local Services,Direct Services,021234,Catering - Locomotion,Supplies and Services,324117,Provisions,11-Sep-2017,000006466657367,HOPWELLS LTD,5811,Catering costs - provisions,-14.05,0.00,-14.05
Regeneration and Local Services,Direct Services,021234,Catering - Locomotion,Supplies and Services,324117,Provisions,11-Sep-2017,000006466657371,HOPWELLS LTD,5811,Catering costs - provisions,-19.76,0.00,-19.76
Regeneration and Local Services,Direct Services,010525,Catering - Green Lane,Supplies and Services,324117,Provisions,11-Sep-2017,000006466657387,HOPWELLS LTD,5811,Catering costs - provisions,124.23,0.00,124.23
Regeneration and Local Services,Direct Services,010525,Catering - Green Lane,Supplies and Services,324117,Provisions,11-Sep-2017,000006466657393,HOPWELLS LTD,5811,Catering costs - provisions,47.38,0.00,47.38
Regeneration and Local Services,Direct Services,010525,Catering - Green Lane,Supplies and Services,324117,Provisions,11-Sep-2017,000006466657395,FREEMAN CATERING BUTCH,5422,Catering costs - provisions,27.39,0.00,27.39
Regeneration and Local Services,Economic Development and Housing,031576,B& B - Temp Accom,Supplies and Services,364320,Grants to Voluntary Organisations,11-Sep-2017,000006466657471,TRAVELODGE,3615,Accommodation assistance,41.00,6.83,34.17
Regeneration and Local Services,Spatial Policy Planning Assets & Environment,031200,North Pennines Core,Supplies and Services,348037,Subsistence,11-Sep-2017,000006466657511,BURGUER KING,5812,Subsistence,8.03,0.00,8.03
Regeneration and Local Services,Direct Services,010301,C&G - North Grounds Maintenance,Supplies and Services,304999,Equipment and Materials,11-Sep-2017,000006466657527,NEW ROW FARM NURSERIES,5193,Misc equipment tools and materials,495.00,0.00,495.00
Regeneration and Local Services,Direct Services,010301,C&G - North Grounds Maintenance,Supplies and Services,304999,Equipment and Materials,11-Sep-2017,000006466657531,NEW ROW FARM NURSERIES,5193,Misc equipment tools and materials,301.20,0.00,301.20
Children and Young Peoples Services,Head of Early Help Assessment and Safeguarding,088013,Seaham 0 - 5,Supplies and Services,324117,Provisions,11-Sep-2017,000006466657551,ASDA HOME SHOPPING,5411,Catering costs - provisions,89.56,0.00,89.56
Resources,Financial Services,065166,Finance - Post Entry Training,Employees,040149,Recruitment Instruction and Training,11-Sep-2017,000006466657561,ASSOC OF ACCOUNTING TE,8931,Training-all costs,92.00,0.00,92.00
Children and Young Peoples Services,Head of Early Help Assessment and Safeguarding,088001,Peterlee Locality,Supplies and Services,312011,Newspapers Books and Periodicals,11-Sep-2017,000006466657565,Amazon UK Marketplace,5942,Books-school library,10.07,0.00,10.07
Children and Young Peoples Services,Head of Early Help Assessment and Safeguarding,088001,Peterlee Locality,Supplies and Services,312011,Newspapers Books and Periodicals,11-Sep-2017,000006466657569,Amazon UK Marketplace,5942,Books-school library,1.96,0.00,1.96
Regeneration and Local Services,Culture & Sport,054235,Bishop Auckland Town Hall Cafe,Supplies and Services,324117,Provisions,11-Sep-2017,000006466657577,HOPWELLS LTD,5811,Catering costs - provisions,214.44,0.00,214.44
Regeneration and Local Services,Culture & Sport,054235,Bishop Auckland Town Hall Cafe,Supplies and Services,324117,Provisions,11-Sep-2017,000006466657581,HOPWELLS LTD,5811,Catering costs - provisions,132.76,0.00,132.76
Regeneration and Local Services,Culture & Sport,054235,Bishop Auckland Town Hall Cafe,Supplies and Services,324117,Provisions,11-Sep-2017,000006466657583,HOPWELLS LTD,5811,Catering costs - provisions,47.48,0.00,47.48
Regeneration and Local Services,Culture & Sport,054235,Bishop Auckland Town Hall Cafe,Supplies and Services,324117,Provisions,11-Sep-2017,000006466657587,HOPWELLS LTD,5811,Catering costs - provisions,40.69,0.00,40.69
Regeneration and Local Services,Direct Services,021324,Catering - Meadowfield,Supplies and Services,324117,Provisions,11-Sep-2017,000006466657593,HOPWELLS LTD,5811,Catering costs - provisions,51.57,0.00,51.57
Regeneration and Local Services,Direct Services,021324,Catering - Meadowfield,Supplies and Services,324117,Provisions,11-Sep-2017,000006466657597,HOPWELLS LTD,5811,Catering costs - provisions,42.86,0.00,42.86
Regeneration and Local Services,Direct Services,021324,Catering - Meadowfield,Supplies and Services,324117,Provisions,11-Sep-2017,000006466657601,HOPWELLS LTD,5811,Catering costs - provisions,29.07,0.00,29.07
Regeneration and Local Services,Direct Services,021324,Catering - Meadowfield,Supplies and Services,324117,Provisions,11-Sep-2017,000006466657605,FREEMAN CATERING BUTCH,5422,Catering costs - provisions,82.27,0.00,82.27
Regeneration and Local Services,Direct Services,021324,Catering - Meadowfield,Supplies and Services,324117,Provisions,11-Sep-2017,000006466657613,HOPWELLS LTD,5811,Catering costs - provisions,-6.27,0.00,-6.27
Regeneration and Local Services,Direct Services,021324,Catering - Meadowfield,Supplies and Services,324117,Provisions,11-Sep-2017,000006466657615,HOPWELLS LTD,5811,Catering costs - provisions,-22.80,0.00,-22.80
Adult and Health Services,Head of Adults,055301,Stanley Pathways,Supplies and Services,324117,Provisions,11-Sep-2017,000006466657627,ASDA SUPERSTORE,5411,Catering costs - provisions,5.93,0.00,5.93
Children and Young Peoples Services,Head of Early Help Assessment and Safeguarding,085100,Child Protection & Disabilty Strategic Manager,Supplies and Services,384199,Miscellaneous Expenses,11-Sep-2017,000006466657707,NEWCASTLE CC INET,9399,Other hired and contracted services,26.52,0.00,26.52
Regeneration and Local Services,Direct Services,021235,Catering - Wharton Park,Supplies and Services,324117,Provisions,11-Sep-2017,000006466657721,HOPWELLS LTD,5811,Catering costs - provisions,215.70,35.95,179.75
Regeneration and Local Services,Direct Services,021235,Catering - Wharton Park,Supplies and Services,324117,Provisions,11-Sep-2017,000006466657721 - 1,HOPWELLS LTD,5811,Catering costs - provisions,37.69,,37.69
Regeneration and Local Services,Direct Services,021235,Catering - Wharton Park,Supplies and Services,324117,Provisions,11-Sep-2017,000006466657725,HOPWELLS LTD,5811,Catering costs - provisions,195.84,32.64,163.20
Regeneration and Local Services,Direct Services,021235,Catering - Wharton Park,Supplies and Services,324117,Provisions,11-Sep-2017,000006466657725 - 1,HOPWELLS LTD,5811,Catering costs - provisions,37.23,,37.23
Regeneration and Local Services,Direct Services,021235,Catering - Wharton Park,Supplies and Services,324117,Provisions,11-Sep-2017,000006466657729,HOPWELLS LTD,5811,Catering costs - provisions,176.40,29.40,147.00
Regeneration and Local Services,Direct Services,021235,Catering - Wharton Park,Supplies and Services,324117,Provisions,11-Sep-2017,000006466657729 - 1,HOPWELLS LTD,5811,Catering costs - provisions,40.17,,40.17
Regeneration and Local Services,Direct Services,021235,Catering - Wharton Park,Supplies and Services,324117,Provisions,11-Sep-2017,000006466657733,HOPWELLS LTD,5811,Catering costs - provisions,130.14,21.69,108.45
Regeneration and Local Services,Direct Services,021235,Catering - Wharton Park,Supplies and Services,324117,Provisions,11-Sep-2017,000006466657733 - 1,HOPWELLS LTD,5811,Catering costs - provisions,48.67,,48.67
Regeneration and Local Services,Direct Services,021235,Catering - Wharton Park,Supplies and Services,324117,Provisions,11-Sep-2017,000006466657737,HOPWELLS LTD,5811,Catering costs - provisions,96.30,16.05,80.25
Regeneration and Local Services,Direct Services,021235,Catering - Wharton Park,Supplies and Services,324117,Provisions,11-Sep-2017,000006466657737 - 1,HOPWELLS LTD,5811,Catering costs - provisions,57.74,,57.74
Regeneration and Local Services,Direct Services,021235,Catering - Wharton Park,Supplies and Services,324117,Provisions,11-Sep-2017,000006466657741,HOPWELLS LTD,5811,Catering costs - provisions,78.06,13.01,65.05
Regeneration and Local Services,Direct Services,021235,Catering - Wharton Park,Supplies and Services,324117,Provisions,11-Sep-2017,000006466657741 - 1,HOPWELLS LTD,5811,Catering costs - provisions,43.06,,43.06
Regeneration and Local Services,Direct Services,021235,Catering - Wharton Park,Supplies and Services,324117,Provisions,11-Sep-2017,000006466657743,HOPWELLS LTD,5811,Catering costs - provisions,41.22,6.87,34.35
Regeneration and Local Services,Direct Services,021235,Catering - Wharton Park,Supplies and Services,324117,Provisions,11-Sep-2017,000006466657743 - 1,HOPWELLS LTD,5811,Catering costs - provisions,0.03,,0.03
Regeneration and Local Services,Direct Services,021235,Catering - Wharton Park,Supplies and Services,324117,Provisions,11-Sep-2017,000006466657747,JR HOLLAND FOODSERVICE,5422,Catering costs - provisions,20.23,0.00,20.23
Regeneration and Local Services,Direct Services,021235,Catering - Wharton Park,Supplies and Services,324117,Provisions,11-Sep-2017,000006466657755,HOPWELLS LTD,5811,Catering costs - provisions,-22.94,-3.82,-19.12
Adult and Health Services,Head of Adults,055309,Peterlee Pathways,Supplies and Services,324117,Provisions,11-Sep-2017,000006466657761,LIDL UK,5411,Catering costs - provisions,2.90,0.00,2.90
Regeneration and Local Services,Culture & Sport,010605,Woodhouse Close Leisure Complex,Supplies and Services,324117,Provisions,11-Sep-2017,000006466657775,HOPWELLS LTD,5811,Catering costs - provisions,104.92,0.00,104.92
Regeneration and Local Services,Culture & Sport,010605,Woodhouse Close Leisure Complex,Supplies and Services,324117,Provisions,11-Sep-2017,000006466657777,HOPWELLS LTD,5811,Catering costs - provisions,77.36,0.00,77.36
Regeneration and Local Services,Culture & Sport,010605,Woodhouse Close Leisure Complex,Supplies and Services,324117,Provisions,11-Sep-2017,000006466657781,HOPWELLS LTD,5811,Catering costs - provisions,42.45,0.00,42.45
Regeneration and Local Services,Culture & Sport,010605,Woodhouse Close Leisure Complex,Supplies and Services,324117,Provisions,11-Sep-2017,000006466657783,HOPWELLS LTD,5811,Catering costs - provisions,29.79,0.00,29.79
Regeneration and Local Services,Economic Development and Housing,030737,Durham Works Flexible Fund,Transport,235057,Public Transport,11-Sep-2017,000006466657815,WWW.SIMPLYGO.COM,4131,Staff travelling,40.00,0.00,40.00
Regeneration and Local Services,Economic Development and Housing,030737,Durham Works Flexible Fund,Supplies and Services,328041,Clothing Uniforms and Laundry,11-Sep-2017,000006466657817,MATALAN,5691,Clothing uniforms and laundry,103.05,0.00,103.05
Regeneration and Local Services,Spatial Policy Planning Assets & Environment,031200,North Pennines Core,Supplies and Services,312011,Newspapers Books and Periodicals,11-Sep-2017,000006466657825,Amazon UK Marketplace,5942,Books-school library,26.98,0.00,26.98
Regeneration and Local Services,Spatial Policy Planning Assets & Environment,031200,North Pennines Core,Supplies and Services,312011,Newspapers Books and Periodicals,11-Sep-2017,000006466657827,Amazon UK Marketplace,5942,Books-school library,26.49,0.00,26.49
Regeneration and Local Services,Spatial Policy Planning Assets & Environment,031200,North Pennines Core,Supplies and Services,312011,Newspapers Books and Periodicals,11-Sep-2017,000006466657831,Amazon EU,5969,Books-school library,20.98,0.00,20.98
Regeneration and Local Services,Spatial Policy Planning Assets & Environment,031200,North Pennines Core,Supplies and Services,304403,Equipment and Materials,11-Sep-2017,000006466657833,AMAZON UK RETAIL AMAZO,5999,Other consumables,13.47,0.00,13.47
Regeneration and Local Services,Spatial Policy Planning Assets & Environment,031200,North Pennines Core,Supplies and Services,304403,Equipment and Materials,11-Sep-2017,000006466657837,AMAZON UK RETAIL AMAZO,5999,Other consumables,16.93,0.00,16.93
Children and Young Peoples Services,Head of Early Help Assessment and Safeguarding,085801,CDYOS - Support,Supplies and Services,312011,Newspapers Books and Periodicals,11-Sep-2017,000006466657847,AMAZON.CO.UK,5942,Books-school library,50.81,0.00,50.81
Regeneration and Local Services,Economic Development and Housing,030692,Durham Dales Centre - Management and Admin,Supplies and Services,324117,Provisions,11-Sep-2017,000006466657851,SCOTMID CO-OP STANHOPE,5411,Catering costs - provisions,5.88,0.00,5.88
Regeneration and Local Services,Economic Development and Housing,030554,International Relations,Transport,235057,Public Transport,11-Sep-2017,000006466657861,WALKERGATE CAR PAR,7523,Staff travelling,1.80,0.30,1.50
Resources,Digital and Customer Services,065481,Technical Services,Supplies and Services,342033,Computers and Communications,11-Sep-2017,000006470117473,RS COMPONENTS,5065,Computer hardware,16.13,0.00,16.13
Regeneration and Local Services,Culture & Sport,054812,Gala Theatre - Catering etc,Supplies and Services,324117,Provisions,11-Sep-2017,000006470117649,BATLEYS PERTH,5300,Catering costs - provisions,9.60,1.60,8.00
Regeneration and Local Services,Culture & Sport,054812,Gala Theatre - Catering etc,Supplies and Services,324117,Provisions,11-Sep-2017,000006470117649 - 1,BATLEYS PERTH,5300,Catering costs - provisions,94.43,,94.43
Children and Young Peoples Services,Head of Education,071732,Dean Bank Childcare,Supplies and Services,312011,Newspapers Books and Periodicals,11-Sep-2017,000006470117791,AMAZON.CO.UK,5942,Books-school library,12.69,0.00,12.69
Children and Young Peoples Services,Head of Looked After Provision Permanence and Care Leavers,085957,Secure Management,Supplies and Services,328041,Clothing Uniforms and Laundry,11-Sep-2017,000006470117885,NEW LOOK INTERNET,5621,Clothing uniforms and laundry,-27.98,0.00,-27.98
Regeneration and Local Services,Economic Development and Housing,030749,Employability - Youth Contract,Supplies and Services,328041,Clothing Uniforms and Laundry,11-Sep-2017,000006470118099,NEW LOOK INTERNET,5621,Clothing uniforms and laundry,88.96,0.00,88.96
Regeneration and Local Services,Economic Development and Housing,031576,B& B - Temp Accom,Employees,040149,Recruitment Instruction and Training,11-Sep-2017,000006470118135,PREMIER INN,3811,Training-all costs,68.00,11.33,56.67
Children and Young Peoples Services,Head of Looked After Provision Permanence and Care Leavers,085333,Coxhoe Satelite Home,Supplies and Services,304999,Equipment and Materials,11-Sep-2017,000006470118255,AMAZON UK PRIME AMZN.C,5968,Misc equipment tools and materials,79.00,0.00,79.00
Regeneration and Local Services,Spatial Policy Planning Assets & Environment,031200,North Pennines Core,Supplies and Services,304403,Equipment and Materials,11-Sep-2017,000006470118503,AMAZON UK RETAIL AMAZO,5999,Other consumables,23.67,0.00,23.67
Regeneration and Local Services,Spatial Policy Planning Assets & Environment,031200,North Pennines Core,Supplies and Services,348037,Subsistence,12-Sep-2017,000006466657515,BURGUER KING,5812,Subsistence,0.22,0.00,0.22
Children and Young Peoples Services,Head of Looked After Provision Permanence and Care Leavers,085341,High Etherley Satelite Home,Supplies and Services,324117,Provisions,12-Sep-2017,000006470117453,TESCO STORES 6329,5411,Catering costs - provisions,140.70,0.00,140.70
Children and Young Peoples Services,Head of Education,071801,Selby Cottage Childcare Centre,Supplies and Services,324117,Provisions,12-Sep-2017,000006470117461,TESCO STORES 2278,5411,Catering costs - provisions,2.25,0.00,2.25
Adult and Health Services,Head of Adults,055302,Durham Pathways,Supplies and Services,324117,Provisions,12-Sep-2017,000006470117517,SAINSBURYS SACAT 0776,5411,Catering costs - provisions,11.55,0.00,11.55
Regeneration and Local Services,Direct Services,010383,C&G - South Street Cleansing,Supplies and Services,324117,Provisions,12-Sep-2017,000006470117523,J M RAINE,5399,Catering costs - provisions,100.08,16.68,83.40
Regeneration and Local Services,Direct Services,010383,C&G - South Street Cleansing,Supplies and Services,324117,Provisions,12-Sep-2017,000006470117523 - 1,J M RAINE,5399,Catering costs - provisions,60.00,,60.00
Children and Young Peoples Services,Head of Looked After Provision Permanence and Care Leavers,085342,9 Cedar Drive Aycliffe,Supplies and Services,324117,Provisions,12-Sep-2017,000006470117545,ALDI 74 774 S,5411,Catering costs - provisions,10.04,0.00,10.04
Regeneration and Local Services,Direct Services,021242,Catering - County Hall,Supplies and Services,324117,Provisions,12-Sep-2017,000006470117615,JR HOLLAND FOODSERVICE,5422,Catering costs - provisions,80.83,0.00,80.83
Regeneration and Local Services,Direct Services,021242,Catering - County Hall,Supplies and Services,324117,Provisions,12-Sep-2017,000006470117621,JR HOLLAND FOODSERVICE,5422,Catering costs - provisions,9.12,0.00,9.12
Regeneration and Local Services,Direct Services,021242,Catering - County Hall,Supplies and Services,324117,Provisions,12-Sep-2017,000006470117625,JR HOLLAND FOODSERVICE,5422,Catering costs - provisions,6.58,0.00,6.58
Regeneration and Local Services,Culture & Sport,054812,Gala Theatre - Catering etc,Supplies and Services,324117,Provisions,12-Sep-2017,000006470117645,JR HOLLAND FOODSERVICE,5422,Catering costs - provisions,22.11,0.00,22.11
Children and Young Peoples Services,Head of Looked After Provision Permanence and Care Leavers,085351,Framwellgate Moor CU,Supplies and Services,324117,Provisions,12-Sep-2017,000006470117719,ASDA HOME SHOPPING,5411,Catering costs - provisions,90.41,0.00,90.41
Children and Young Peoples Services,Head of Early Help Assessment and Safeguarding,088063,Bishop Auckland 0 - 5,Supplies and Services,324117,Provisions,12-Sep-2017,000006470117733,ASDA HOME SHOPPING,5411,Catering costs - provisions,3.60,0.60,3.00
Children and Young Peoples Services,Head of Early Help Assessment and Safeguarding,088066,Bishop Auckland Teenage Parent Programme,Supplies and Services,324117,Provisions,12-Sep-2017,000006470117733 - 1,ASDA HOME SHOPPING,5411,Catering costs - provisions,43.24,,43.24
Children and Young Peoples Services,Head of Education,071732,Dean Bank Childcare,Supplies and Services,328041,Clothing Uniforms and Laundry,12-Sep-2017,000006470117797,B&M RETAIL LTD,5310,Clothing uniforms and laundry,8.95,0.00,8.95
Children and Young Peoples Services,Head of Education,071732,Dean Bank Childcare,Supplies and Services,324117,Provisions,12-Sep-2017,000006470117801,CO-OP GROUP 010518,5411,Catering costs - provisions,3.77,0.00,3.77
Resources,Corporate Finance,069800,Corporate Procurement,Employees,040149,Recruitment Instruction and Training,12-Sep-2017,000006470117809,WWW.CIPS.ORG,8699,Training-all costs,121.83,0.00,121.83
Resources,Corporate Finance,069800,Corporate Procurement,Employees,040149,Recruitment Instruction and Training,12-Sep-2017,000006470117811,WWW.CIPS.ORG,8699,Training-all costs,126.48,0.00,126.48
Children and Young Peoples Services,Head of Early Help Assessment and Safeguarding,071445,Chester le Street One Point Hub,Supplies and Services,324117,Provisions,12-Sep-2017,000006470117855,BESTWAY WHOLESALE,5451,Catering costs - provisions,29.56,0.00,29.56
Children and Young Peoples Services,Head of Early Help Assessment and Safeguarding,071445,Chester le Street One Point Hub,Supplies and Services,324117,Provisions,12-Sep-2017,000006470117859,BESTWAY WHOLESALE,5451,Catering costs - provisions,48.25,0.00,48.25
Children and Young Peoples Services,Head of Looked After Provision Permanence and Care Leavers,085957,Secure Management,Supplies and Services,328041,Clothing Uniforms and Laundry,12-Sep-2017,000006470117867,M and M Direct Ltd,5941,Clothing uniforms and laundry,24.99,0.00,24.99
Children and Young Peoples Services,Head of Looked After Provision Permanence and Care Leavers,085957,Secure Management,Supplies and Services,328041,Clothing Uniforms and Laundry,12-Sep-2017,000006470117873,M and M Direct Ltd,5941,Clothing uniforms and laundry,25.98,0.00,25.98
Children and Young Peoples Services,Head of Looked After Provision Permanence and Care Leavers,085957,Secure Management,Supplies and Services,328041,Clothing Uniforms and Laundry,12-Sep-2017,000006470117877,WWW.FOOTASYLUM.COM,5941,Clothing uniforms and laundry,57.98,0.00,57.98
Children and Young Peoples Services,Head of Looked After Provision Permanence and Care Leavers,085957,Secure Management,Supplies and Services,328041,Clothing Uniforms and Laundry,12-Sep-2017,000006470117881,VERY.CO.UK,5964,Clothing uniforms and laundry,255.99,0.00,255.99
Regeneration and Local Services,Culture & Sport,011060,Hardwick Park Catering,Supplies and Services,324117,Provisions,12-Sep-2017,000006470117907,JR HOLLAND FOODSERVICE,5422,Catering costs - provisions,31.09,0.00,31.09
Regeneration and Local Services,Culture & Sport,054815,Gala Theatre Stage School,Supplies and Services,312011,Newspapers Books and Periodicals,12-Sep-2017,000006470117919,Amazon UK Marketplace,5942,Books-school library,14.25,0.00,14.25
Children and Young Peoples Services,Central Charges (CYPS),085823,CDYOS North Area,Supplies and Services,312011,Newspapers Books and Periodicals,12-Sep-2017,000006470117983,Amazon UK Marketplace,5942,Books-school library,6.90,0.00,6.90
Children and Young Peoples Services,Head of Looked After Provision Permanence and Care Leavers,085352,Tow Law CU,Supplies and Services,324117,Provisions,12-Sep-2017,000006470117999,TESCO STORES 2371,5411,Catering costs - provisions,234.14,0.00,234.14
Regeneration and Local Services,Economic Development and Housing,030749,Employability - Youth Contract,Transport,235057,Public Transport,12-Sep-2017,000006470118097,WWW.SIMPLYGO.COM,4131,Staff travelling,21.00,3.50,17.50
Children and Young Peoples Services,Head of Early Help Assessment and Safeguarding,088001,Peterlee Locality,Supplies and Services,312011,Newspapers Books and Periodicals,12-Sep-2017,000006470118203,Amazon UK Marketplace,5942,Books-school library,2.94,0.00,2.94
Children and Young Peoples Services,Head of Early Help Assessment and Safeguarding,088001,Peterlee Locality,Supplies and Services,312011,Newspapers Books and Periodicals,12-Sep-2017,000006470118209,Amazon UK Marketplace,5942,Books-school library,13.77,0.00,13.77
Children and Young Peoples Services,Head of Looked After Provision Permanence and Care Leavers,085333,Coxhoe Satelite Home,Supplies and Services,304259,Equipment and Materials,12-Sep-2017,000006470118259,SPORTSDIRECT 178,5941,Equipment-purchase and rental,52.98,0.00,52.98
Regeneration and Local Services,Economic Development and Housing,031576,B& B - Temp Accom,Supplies and Services,364320,Grants to Voluntary Organisations,12-Sep-2017,000006470118291,TRAVELODGE,3615,Accommodation assistance,41.00,0.00,41.00
Regeneration and Local Services,Economic Development and Housing,031576,B& B - Temp Accom,Supplies and Services,364320,Grants to Voluntary Organisations,12-Sep-2017,000006470118297,TRAVELODGE,3615,Accommodation assistance,41.00,6.83,34.17
Regeneration and Local Services,Economic Development and Housing,031576,B& B - Temp Accom,Supplies and Services,364320,Grants to Voluntary Organisations,12-Sep-2017,000006470118301,TRAVELODGE,3615,Accommodation assistance,41.00,0.00,41.00
Regeneration and Local Services,Direct Services,010301,C&G - North Grounds Maintenance,Supplies and Services,304259,Equipment and Materials,12-Sep-2017,000006470118311,HEXHAM MACHINERY CENTR,5261,Equipment-purchase and rental,198.00,0.00,198.00
Children and Young Peoples Services,Head of Looked After Provision Permanence and Care Leavers,085331,New Lea Childrens Home,Supplies and Services,304403,Equipment and Materials,12-Sep-2017,000006470118391,WWW ELLISONS CO UK,5999,Other consumables,-187.90,0.00,-187.90
Children and Young Peoples Services,Head of Early Help Assessment and Safeguarding,074000,TTF-Attachment and Results,Transfer Payments,525033,Other,12-Sep-2017,000006470118411,WILKO.COM,5722,Grants to individuals,10.00,1.67,8.33
Children and Young Peoples Services,Head of Early Help Assessment and Safeguarding,074000,TTF-Attachment and Results,Transfer Payments,525033,Other,12-Sep-2017,000006470118419,ASDA GEORGE COM LEEDS,5411,Grants to individuals,120.95,20.16,100.79
Children and Young Peoples Services,Head of Early Help Assessment and Safeguarding,074000,TTF-Attachment and Results,Transfer Payments,525033,Other,12-Sep-2017,000006470118425,TESCO DIRECT,5999,Grants to individuals,101.00,16.83,84.17
Children and Young Peoples Services,Head of Early Help Assessment and Safeguarding,074000,TTF-Attachment and Results,Transfer Payments,525033,Other,12-Sep-2017,000006470118427,TESCO DIRECT,5999,Grants to individuals,63.00,10.50,52.50
Resources,Corporate Finance,065109,Pensions,Supplies and Services,364320,Grants to Voluntary Organisations,12-Sep-2017,000006470118433,THE PRINCIPAL YORK,7011,Accommodation assistance,556.00,92.67,463.33
Regeneration and Local Services,Economic Development and Housing,030737,Durham Works Flexible Fund,Transport,235057,Public Transport,12-Sep-2017,000006470118491,WWW.SIMPLYGO.COM,4131,Staff travelling,105.00,0.00,105.00
Children and Young Peoples Services,Head of Early Help Assessment and Safeguarding,088003,Peterlee 0 - 5,Supplies and Services,312009,Newspapers Books and Periodicals,12-Sep-2017,000006470118521,MAG EVENTS,5192,Newspapers books and periodicals,360.00,0.00,360.00
Regeneration and Local Services,Technical Services,018300,Highways Operations - East,Supplies and Services,344033,Telephones,12-Sep-2017,000006474472437,AMAZON.CO.UK,5942,Telephones general-all costs,12.48,0.00,12.48
Regeneration and Local Services,Direct Services,021242,Catering - County Hall,Supplies and Services,324117,Provisions,12-Sep-2017,000006474472571,BATLEYS PERTH,5300,Catering costs - provisions,243.72,40.62,203.10
Regeneration and Local Services,Direct Services,021242,Catering - County Hall,Supplies and Services,324117,Provisions,12-Sep-2017,000006474472571 - 1,BATLEYS PERTH,5300,Catering costs - provisions,185.90,,185.90
Children and Young Peoples Services,Head of Looked After Provision Permanence and Care Leavers,085955,Auckland,Supplies and Services,384999,Miscellaneous Expenses,12-Sep-2017,000006474472705,WWW.ARGOS.CO.UK,5310,Other expenses,33.94,5.66,28.28
Children and Young Peoples Services,Head of Looked After Provision Permanence and Care Leavers,085957,Secure Management,Supplies and Services,328041,Clothing Uniforms and Laundry,12-Sep-2017,000006474472711,SPORTSDIRECT.COM,5941,Clothing uniforms and laundry,44.98,0.00,44.98
Regeneration and Local Services,Culture & Sport,011060,Hardwick Park Catering,Supplies and Services,324117,Provisions,12-Sep-2017,000006474472745,BATLEYS PERTH,5300,Catering costs - provisions,187.68,31.28,156.40
Regeneration and Local Services,Culture & Sport,011060,Hardwick Park Catering,Supplies and Services,324117,Provisions,12-Sep-2017,000006474472745 - 1,BATLEYS PERTH,5300,Catering costs - provisions,183.25,,183.25
Regeneration and Local Services,Direct Services,021234,Catering - Locomotion,Supplies and Services,324117,Provisions,12-Sep-2017,000006474472781,BATLEYS PERTH,5300,Catering costs - provisions,94.50,15.75,78.75
Regeneration and Local Services,Direct Services,021234,Catering - Locomotion,Supplies and Services,324117,Provisions,12-Sep-2017,000006474472781 - 1,BATLEYS PERTH,5300,Catering costs - provisions,313.14,,313.14
Regeneration and Local Services,Direct Services,021324,Catering - Meadowfield,Supplies and Services,324117,Provisions,12-Sep-2017,000006474473041,BATLEYS PERTH,5300,Catering costs - provisions,103.56,17.26,86.30
Regeneration and Local Services,Direct Services,021324,Catering - Meadowfield,Supplies and Services,324117,Provisions,12-Sep-2017,000006474473041 - 1,BATLEYS PERTH,5300,Catering costs - provisions,102.83,,102.83
Regeneration and Local Services,Direct Services,021324,Catering - Meadowfield,Supplies and Services,324117,Provisions,12-Sep-2017,000006474473045,BATLEYS PERTH,5300,Catering costs - provisions,3.75,0.00,3.75
Regeneration and Local Services,Direct Services,021324,Catering - Meadowfield,Supplies and Services,324117,Provisions,12-Sep-2017,000006474473049,BATLEYS PERTH,5300,Catering costs - provisions,-8.70,-1.45,-7.25
Transformation and Partnerships,Comms & Information Management,060270,Communications and Marketing,Supplies and Services,336005,Advertising,12-Sep-2017,000006474473149,BANDSINTOWN LLC,7311,Advertising other than for staff,150.53,0.00,150.53
Children and Young Peoples Services,Head of Education,071801,Selby Cottage Childcare Centre,Supplies and Services,304259,Equipment and Materials,13-Sep-2017,000006474472421,WILKO DURHAM 426,5722,Equipment-purchase and rental,148.25,0.00,148.25
Children and Young Peoples Services,Head of Education,071801,Selby Cottage Childcare Centre,Supplies and Services,324117,Provisions,13-Sep-2017,000006474472423,ASDA STORES LTD 4313,5411,Catering costs - provisions,28.25,0.00,28.25
Children and Young Peoples Services,Head of Education,071801,Selby Cottage Childcare Centre,Supplies and Services,328041,Clothing Uniforms and Laundry,13-Sep-2017,000006474472427,THE WORKS,5310,Clothing uniforms and laundry,70.10,0.00,70.10
Regeneration and Local Services,Economic Development and Housing,031576,B& B - Temp Accom,Supplies and Services,364320,Grants to Voluntary Organisations,13-Sep-2017,000006474472431,TRAVELODGE,3615,Accommodation assistance,41.00,6.83,34.17
Regeneration and Local Services,Economic Development and Housing,030699,Business Growth and Innovation General,Supplies and Services,384999,Miscellaneous Expenses,13-Sep-2017,000006474472499,LIVEBUZZ,7922,Other expenses,397.99,66.33,331.66
Children and Young Peoples Services,Head of Early Help Assessment and Safeguarding,088037,One Point YEI,Supplies and Services,304259,Equipment and Materials,13-Sep-2017,000006474472541,WWW.DURHAM.GOV.UK,9399,Equipment-purchase and rental,12.00,0.00,12.00
Regeneration and Local Services,Economic Development and Housing,030737,Durham Works Flexible Fund,Transport,230031,Contract Hire,13-Sep-2017,000006474472545,ARRIVA NORTH EAST,4131,Pupils-transport to play fields etc,5.00,0.00,5.00
Regeneration and Local Services,Economic Development and Housing,030737,Durham Works Flexible Fund,Supplies and Services,328041,Clothing Uniforms and Laundry,13-Sep-2017,000006474472549,ASDA STORES LTD,5411,Clothing uniforms and laundry,75.05,0.00,75.05
Regeneration and Local Services,Direct Services,021242,Catering - County Hall,Supplies and Services,324117,Provisions,13-Sep-2017,000006474472555,JR HOLLAND FOODSERVICE,5422,Catering costs - provisions,166.45,0.00,166.45
Regeneration and Local Services,Direct Services,021242,Catering - County Hall,Supplies and Services,324117,Provisions,13-Sep-2017,000006474472565,JR HOLLAND FOODSERVICE,5422,Catering costs - provisions,37.64,0.00,37.64
Regeneration and Local Services,Direct Services,021242,Catering - County Hall,Supplies and Services,324117,Provisions,13-Sep-2017,000006474472569,JR HOLLAND FOODSERVICE,5422,Catering costs - provisions,31.35,0.00,31.35
Children and Young Peoples Services,Head of Education,070169,Durham SSP,Supplies and Services,384199,Miscellaneous Expenses,13-Sep-2017,000006474472585,CURRYS ONLINE,5732,Other hired and contracted services,99.99,16.67,83.32
Regeneration and Local Services,Economic Development and Housing,030737,Durham Works Flexible Fund,Transport,235057,Public Transport,13-Sep-2017,000006474472591,ARRIVA NORTH EAST,4131,Staff travelling,7.00,0.00,7.00
Children and Young Peoples Services,Head of Education,079599,Psychological-HQ,Employees,040149,Recruitment Instruction and Training,13-Sep-2017,000006474472611,DISABLED LIVING,8398,Training-all costs,15.45,0.00,15.45
Regeneration and Local Services,Culture & Sport,010664,Freemans Quay Leisure Centre,Supplies and Services,312011,Newspapers Books and Periodicals,13-Sep-2017,000006474472637,Amazon UK Marketplace,5942,Books-school library,20.98,0.00,20.98
Regeneration and Local Services,Economic Development and Housing,030544,Rural Employability - Client Engagement,Supplies and Services,304259,Equipment and Materials,13-Sep-2017,000006474472643,SCREWFIX,5211,Equipment-purchase and rental,73.96,0.00,73.96
Resources,Corporate Finance,069800,Corporate Procurement,Employees,040149,Recruitment Instruction and Training,13-Sep-2017,000006474472677,WWW.CIPS.ORG,8699,Training-all costs,206.04,0.00,206.04
Resources,Corporate Finance,069800,Corporate Procurement,Employees,040149,Recruitment Instruction and Training,13-Sep-2017,000006474472681,WWW.CIPS.ORG,8699,Training-all costs,126.48,0.00,126.48
Regeneration and Local Services,Direct Services,010301,C&G - North Grounds Maintenance,Supplies and Services,304999,Equipment and Materials,13-Sep-2017,000006474472693,NEW ROW FARM NURSERIES,5193,Misc equipment tools and materials,455.04,0.00,455.04
Children and Young Peoples Services,Head of Looked After Provision Permanence and Care Leavers,085955,Auckland,Supplies and Services,324117,Provisions,13-Sep-2017,000006474472715,TESCO STORES 6329,5411,Catering costs - provisions,71.98,0.00,71.98
Children and Young Peoples Services,Head of Looked After Provision Permanence and Care Leavers,085954,Walworth,Supplies and Services,304649,Equipment and Materials,13-Sep-2017,000006474472719,ARGOS RETAIL GROUP,5310,Toys,119.92,19.99,99.93
Children and Young Peoples Services,Head of Looked After Provision Permanence and Care Leavers,085957,Secure Management,Supplies and Services,328041,Clothing Uniforms and Laundry,13-Sep-2017,000006474472723,M and M Direct Ltd,5941,Clothing uniforms and laundry,-34.98,0.00,-34.98
Regeneration and Local Services,Culture & Sport,011060,Hardwick Park Catering,Supplies and Services,324117,Provisions,13-Sep-2017,000006474472737,JR HOLLAND FOODSERVICE,5422,Catering costs - provisions,84.36,0.00,84.36
Regeneration and Local Services,Culture & Sport,011060,Hardwick Park Catering,Supplies and Services,324117,Provisions,13-Sep-2017,000006474472743,JR HOLLAND FOODSERVICE,5422,Catering costs - provisions,21.42,0.00,21.42
Resources,Digital and Customer Services,065335,School Services - Implementations,Supplies and Services,304639,Equipment and Materials,13-Sep-2017,000006474472767,AMAZON.CO.UK,5942,Technicians-supplies,8.52,0.00,8.52
Regeneration and Local Services,Direct Services,021234,Catering - Locomotion,Supplies and Services,324117,Provisions,13-Sep-2017,000006474472771,JR HOLLAND FOODSERVICE,5422,Catering costs - provisions,29.85,0.00,29.85
Regeneration and Local Services,Direct Services,021234,Catering - Locomotion,Supplies and Services,324117,Provisions,13-Sep-2017,000006474472779,JR HOLLAND FOODSERVICE,5422,Catering costs - provisions,1.98,0.00,1.98
Regeneration and Local Services,Economic Development and Housing,031576,B& B - Temp Accom,Supplies and Services,364320,Grants to Voluntary Organisations,13-Sep-2017,000006474472837,TRAVELODGE,3615,Accommodation assistance,41.00,6.83,34.17
Regeneration and Local Services,Direct Services,010525,Catering - Green Lane,Supplies and Services,324117,Provisions,13-Sep-2017,000006474472841,JR HOLLAND FOODSERVICE,5422,Catering costs - provisions,44.16,0.00,44.16
Transformation and Partnerships,Comms & Information Management,060270,Communications and Marketing,Supplies and Services,312011,Newspapers Books and Periodicals,13-Sep-2017,000006474472865,Amazon UK Marketplace,5942,Books-school library,24.98,0.00,24.98
Children and Young Peoples Services,Head of Looked After Provision Permanence and Care Leavers,085352,Tow Law CU,Supplies and Services,304259,Equipment and Materials,13-Sep-2017,000006474472869,AO RETAIL LIMITED,5722,Equipment-purchase and rental,235.98,0.00,235.98
Regeneration and Local Services,Direct Services,010814,Bldg Serv - R&M General,Supplies and Services,344033,Telephones,13-Sep-2017,000006474472913,Amazon UK Marketplace,5942,Telephones general-all costs,15.98,0.00,15.98
Adult and Health Services,Head of Adults,055301,Stanley Pathways,Supplies and Services,324117,Provisions,13-Sep-2017,000006474472931,ASDA SUPERSTORE,5411,Catering costs - provisions,9.97,0.00,9.97
Regeneration and Local Services,Direct Services,010301,C&G - North Grounds Maintenance,Supplies and Services,328041,Clothing Uniforms and Laundry,13-Sep-2017,000006474472985,THOMAS OWEN & SONS /N/,5611,Clothing uniforms and laundry,308.16,0.00,308.16
Dedicated Schools Grant,Dedicated Schools Grant,079040,SENSS-HQ,Employees,040149,Recruitment Instruction and Training,13-Sep-2017,000006474473007,WWW.NURTUREGROUPS.ORG,8398,Training-all costs,125.46,0.00,125.46
Children and Young Peoples Services,Head of Early Help Assessment and Safeguarding,088001,Peterlee Locality,Supplies and Services,304259,Equipment and Materials,13-Sep-2017,000006474473015,HARTLEPOOL BC CNP,9399,Equipment-purchase and rental,14.21,0.00,14.21
Children and Young Peoples Services,Head of Early Help Assessment and Safeguarding,088001,Peterlee Locality,Supplies and Services,312011,Newspapers Books and Periodicals,13-Sep-2017,000006474473019,AMAZON.CO.UK,5942,Books-school library,2.86,0.00,2.86
Regeneration and Local Services,Culture & Sport,054235,Bishop Auckland Town Hall Cafe,Supplies and Services,324117,Provisions,13-Sep-2017,000006474473031,JR HOLLAND FOODSERVICE,5422,Catering costs - provisions,46.17,0.00,46.17
Regeneration and Local Services,Direct Services,021324,Catering - Meadowfield,Supplies and Services,324117,Provisions,13-Sep-2017,000006474473033,JR HOLLAND FOODSERVICE,5422,Catering costs - provisions,27.09,0.00,27.09
Regeneration and Local Services,Direct Services,021324,Catering - Meadowfield,Supplies and Services,324117,Provisions,13-Sep-2017,000006474473037,JR HOLLAND FOODSERVICE,5422,Catering costs - provisions,13.87,0.00,13.87
Children and Young Peoples Services,Head of Looked After Provision Permanence and Care Leavers,085333,Coxhoe Satelite Home,Supplies and Services,324117,Provisions,13-Sep-2017,000006474473059,TESCO STORES 2371,5411,Catering costs - provisions,3.00,0.00,3.00
Children and Young Peoples Services,Head of Looked After Provision Permanence and Care Leavers,085333,Coxhoe Satelite Home,Supplies and Services,328041,Clothing Uniforms and Laundry,13-Sep-2017,000006474473063,B & M RETAIL,5310,Clothing uniforms and laundry,66.20,0.00,66.20
Regeneration and Local Services,Culture & Sport,011086,Positive Futures,Supplies and Services,324117,Provisions,13-Sep-2017,000006474473089,W M MORRISONS,5411,Catering costs - provisions,17.17,0.00,17.17
Children and Young Peoples Services,Head of Early Help Assessment and Safeguarding,085100,Child Protection & Disabilty Strategic Manager,Supplies and Services,384199,Miscellaneous Expenses,13-Sep-2017,000006474473153,DARLINGTON BC INTERNET,9399,Other hired and contracted services,12.00,0.00,12.00
Regeneration and Local Services,Spatial Policy Planning Assets & Environment,031116,Durham Woodland Revival,Supplies and Services,352001,Conference Expenses,13-Sep-2017,000006474473157,EB CWAMAKING LOCAL W,7399,Conferencesseminars fees etc,20.00,0.00,20.00
Resources,Corporate Finance,069810,Health and Safety,Supplies and Services,372009,Subscriptions,13-Sep-2017,000006474473161,WWW.CHAS.CO.UK,9399,Subscriptions,574.02,0.00,574.02
Regeneration and Local Services,Direct Services,021235,Catering - Wharton Park,Supplies and Services,324117,Provisions,13-Sep-2017,000006474473171,JR HOLLAND FOODSERVICE,5422,Catering costs - provisions,9.92,0.00,9.92
Children and Young Peoples Services,Head of Early Help Assessment and Safeguarding,071693,Brandon Childrens Centre,Supplies and Services,324117,Provisions,13-Sep-2017,000006474473189,TESCO STORES 5970,5411,Catering costs - provisions,10.09,0.00,10.09
Children and Young Peoples Services,Head of Early Help Assessment and Safeguarding,085801,CDYOS - Support,Supplies and Services,312011,Newspapers Books and Periodicals,13-Sep-2017,000006474473191,Amazon UK Marketplace,5942,Books-school library,8.68,0.00,8.68
Regeneration and Local Services,Economic Development and Housing,030699,Business Growth and Innovation General,Supplies and Services,352001,Conference Expenses,13-Sep-2017,000006479295565,SPROUT SOCIAL,7392,Conferencesseminars fees etc,377.75,0.00,377.75
Regeneration and Local Services,Economic Development and Housing,030699,Business Growth and Innovation General,Supplies and Services,352001,Conference Expenses,13-Sep-2017,000006479295569,SPROUT SOCIAL,7392,Conferencesseminars fees etc,377.75,0.00,377.75
Children and Young Peoples Services,Head of Early Help Assessment and Safeguarding,085801,CDYOS - Support,Supplies and Services,312011,Newspapers Books and Periodicals,13-Sep-2017,000006479296253,AMAZON.CO.UK,5942,Books-school library,10.87,0.00,10.87
Regeneration and Local Services,Economic Development and Housing,030699,Business Growth and Innovation General,Supplies and Services,342033,Computers and Communications,14-Sep-2017,000006474472497,AdRoll_EMEA,7372,Computer hardware,18.60,0.00,18.60
Regeneration and Local Services,Economic Development and Housing,030699,Business Growth and Innovation General,Supplies and Services,342033,Computers and Communications,14-Sep-2017,000006474472503,AdRoll_EMEA,7372,Computer hardware,0.51,0.00,0.51
Transformation and Partnerships,Comms & Information Management,060270,Communications and Marketing,Supplies and Services,384199,Miscellaneous Expenses,14-Sep-2017,000006474473163,BANDSINTOWN LLC,7311,Other hired and contracted services,4.14,0.00,4.14
Children and Young Peoples Services,Head of Education,071801,Selby Cottage Childcare Centre,Supplies and Services,308011,Furniture,14-Sep-2017,000006479295495,IKEA LIMITED,5712,Furniture repair and replacement,222.25,0.00,222.25
Children and Young Peoples Services,Head of Education,071801,Selby Cottage Childcare Centre,Supplies and Services,328041,Clothing Uniforms and Laundry,14-Sep-2017,000006479295499,THE RANGE,5311,Clothing uniforms and laundry,328.78,0.00,328.78
Children and Young Peoples Services,Head of Education,054640,Durham Learning Resources,Supplies and Services,312011,Newspapers Books and Periodicals,14-Sep-2017,000006479295507,Amazon UK Marketplace,5942,Books-school library,27.99,0.00,27.99
Children and Young Peoples Services,Head of Education,054640,Durham Learning Resources,Supplies and Services,304259,Equipment and Materials,14-Sep-2017,000006479295511,PASTHORIZON,5099,Equipment-purchase and rental,35.82,5.97,29.85
Adult and Health Services,Head of Adults,055302,Durham Pathways,Supplies and Services,324117,Provisions,14-Sep-2017,000006479295543,LIDL UK,5411,Catering costs - provisions,3.00,0.50,2.50
Adult and Health Services,Head of Adults,055302,Durham Pathways,Supplies and Services,324117,Provisions,14-Sep-2017,000006479295543 - 1,LIDL UK,5411,Catering costs - provisions,6.67,,6.67
Children and Young Peoples Services,Head of Early Help Assessment and Safeguarding,088037,One Point YEI,Supplies and Services,328041,Clothing Uniforms and Laundry,14-Sep-2017,000006479295611,WWW.LABEEBY.CO.UK,5691,Clothing uniforms and laundry,35.95,0.00,35.95
Children and Young Peoples Services,Head of Early Help Assessment and Safeguarding,088037,One Point YEI,Supplies and Services,384999,Miscellaneous Expenses,14-Sep-2017,000006479295615,WWW.DAVINESONLINE.COM,7230,Other expenses,134.14,0.00,134.14
Regeneration and Local Services,Economic Development and Housing,030737,Durham Works Flexible Fund,Transport,230031,Contract Hire,14-Sep-2017,000006479295619,ARRIVA NORTH EAST,4131,Pupils-transport to play fields etc,23.00,0.00,23.00
Regeneration and Local Services,Direct Services,021242,Catering - County Hall,Supplies and Services,324117,Provisions,14-Sep-2017,000006479295623,HOPWELLS LTD,5811,Catering costs - provisions,254.92,0.00,254.92
Regeneration and Local Services,Direct Services,021242,Catering - County Hall,Supplies and Services,324117,Provisions,14-Sep-2017,000006479295629,HOPWELLS LTD,5811,Catering costs - provisions,227.79,0.00,227.79
Regeneration and Local Services,Direct Services,021242,Catering - County Hall,Supplies and Services,324117,Provisions,14-Sep-2017,000006479295635,HOPWELLS LTD,5811,Catering costs - provisions,212.16,0.00,212.16
Regeneration and Local Services,Direct Services,021242,Catering - County Hall,Supplies and Services,324117,Provisions,14-Sep-2017,000006479295639,HOPWELLS LTD,5811,Catering costs - provisions,181.67,0.00,181.67
Regeneration and Local Services,Direct Services,021242,Catering - County Hall,Supplies and Services,324117,Provisions,14-Sep-2017,000006479295647,HOPWELLS LTD,5811,Catering costs - provisions,177.94,0.00,177.94
Regeneration and Local Services,Direct Services,021242,Catering - County Hall,Supplies and Services,324117,Provisions,14-Sep-2017,000006479295651,HOPWELLS LTD,5811,Catering costs - provisions,121.97,0.00,121.97
Regeneration and Local Services,Direct Services,021242,Catering - County Hall,Supplies and Services,324117,Provisions,14-Sep-2017,000006479295653,HOPWELLS LTD,5811,Catering costs - provisions,113.04,0.00,113.04
Regeneration and Local Services,Direct Services,021242,Catering - County Hall,Supplies and Services,324117,Provisions,14-Sep-2017,000006479295657,HOPWELLS LTD,5811,Catering costs - provisions,68.58,0.00,68.58
Regeneration and Local Services,Direct Services,021242,Catering - County Hall,Supplies and Services,324117,Provisions,14-Sep-2017,000006479295661,JR HOLLAND FOODSERVICE,5422,Catering costs - provisions,43.26,0.00,43.26
Regeneration and Local Services,Direct Services,021242,Catering - County Hall,Supplies and Services,324117,Provisions,14-Sep-2017,000006479295665,JR HOLLAND FOODSERVICE,5422,Catering costs - provisions,13.16,0.00,13.16
Regeneration and Local Services,Culture & Sport,054233,Bishop Auckland Town Hall Library,Supplies and Services,312011,Newspapers Books and Periodicals,14-Sep-2017,000006479295667,Amazon EU,5969,Books-school library,14.99,0.00,14.99
Regeneration and Local Services,Culture & Sport,054233,Bishop Auckland Town Hall Library,Supplies and Services,312011,Newspapers Books and Periodicals,14-Sep-2017,000006479295671,Amazon EU,5969,Books-school library,39.97,0.00,39.97
Regeneration and Local Services,Economic Development and Housing,030737,Durham Works Flexible Fund,Transport,235057,Public Transport,14-Sep-2017,000006479295675,ARRIVA NORTH EAST,4131,Staff travelling,7.00,0.00,7.00
Regeneration and Local Services,Economic Development and Housing,030737,Durham Works Flexible Fund,Transport,235057,Public Transport,14-Sep-2017,000006479295679,ARRIVA NORTH EAST,4131,Staff travelling,50.00,0.00,50.00
Regeneration and Local Services,Culture & Sport,054812,Gala Theatre - Catering etc,Supplies and Services,324117,Provisions,14-Sep-2017,000006479295683,HOPWELLS LTD,5811,Catering costs - provisions,57.64,0.00,57.64
Regeneration and Local Services,Culture & Sport,054812,Gala Theatre - Catering etc,Supplies and Services,324117,Provisions,14-Sep-2017,000006479295685,HOPWELLS LTD,5811,Catering costs - provisions,18.92,0.00,18.92
Regeneration and Local Services,Culture & Sport,054812,Gala Theatre - Catering etc,Supplies and Services,324117,Provisions,14-Sep-2017,000006479295691,JR HOLLAND FOODSERVICE,5422,Catering costs - provisions,54.59,0.00,54.59
Regeneration and Local Services,Economic Development and Housing,030737,Durham Works Flexible Fund,Supplies and Services,328041,Clothing Uniforms and Laundry,14-Sep-2017,000006479295741,SELECT,5691,Clothing uniforms and laundry,17.97,0.00,17.97
Regeneration and Local Services,Economic Development and Housing,030737,Durham Works Flexible Fund,Supplies and Services,328041,Clothing Uniforms and Laundry,14-Sep-2017,000006479295745,DENCOWEAR,5137,Clothing uniforms and laundry,103.20,0.00,103.20
Children and Young Peoples Services,Head of Education,071732,Dean Bank Childcare,Supplies and Services,324117,Provisions,14-Sep-2017,000006479295763,CO-OP GROUP 310027,5411,Catering costs - provisions,6.00,0.00,6.00
Children and Young Peoples Services,Head of Looked After Provision Permanence and Care Leavers,085341,High Etherley Satelite Home,Supplies and Services,324117,Provisions,14-Sep-2017,000006479295767,TESCO STORES 6329,5411,Catering costs - provisions,94.70,0.00,94.70
Regeneration and Local Services,Economic Development and Housing,030737,Durham Works Flexible Fund,Supplies and Services,328041,Clothing Uniforms and Laundry,14-Sep-2017,000006479295797,ARGOS LTD,5310,Clothing uniforms and laundry,230.04,0.00,230.04
Children and Young Peoples Services,Head of Looked After Provision Permanence and Care Leavers,085965,Barnard,Supplies and Services,384999,Miscellaneous Expenses,14-Sep-2017,000006479295801,PAYPAL WORKSSTORES,5310,Other expenses,56.00,0.00,56.00
Children and Young Peoples Services,Head of Looked After Provision Permanence and Care Leavers,085965,Barnard,Supplies and Services,324117,Provisions,14-Sep-2017,000006479295803,TESCO STORES 6329,5411,Catering costs - provisions,66.82,0.00,66.82
Regeneration and Local Services,Culture & Sport,011060,Hardwick Park Catering,Supplies and Services,324117,Provisions,14-Sep-2017,000006479295825,HOPWELLS LTD,5811,Catering costs - provisions,476.88,79.48,397.40
Regeneration and Local Services,Culture & Sport,011060,Hardwick Park Catering,Supplies and Services,324117,Provisions,14-Sep-2017,000006479295825 - 1,HOPWELLS LTD,5811,Catering costs - provisions,53.48,,53.48
Regeneration and Local Services,Culture & Sport,011060,Hardwick Park Catering,Supplies and Services,324117,Provisions,14-Sep-2017,000006479295835,HOPWELLS LTD,5811,Catering costs - provisions,215.10,35.85,179.25
Regeneration and Local Services,Culture & Sport,011060,Hardwick Park Catering,Supplies and Services,324117,Provisions,14-Sep-2017,000006479295835 - 1,HOPWELLS LTD,5811,Catering costs - provisions,173.20,,173.20
Regeneration and Local Services,Culture & Sport,011060,Hardwick Park Catering,Supplies and Services,324117,Provisions,14-Sep-2017,000006479295841,HOPWELLS LTD,5811,Catering costs - provisions,56.70,9.45,47.25
Regeneration and Local Services,Culture & Sport,011060,Hardwick Park Catering,Supplies and Services,324117,Provisions,14-Sep-2017,000006479295841 - 1,HOPWELLS LTD,5811,Catering costs - provisions,63.03,,63.03
Regeneration and Local Services,Culture & Sport,011060,Hardwick Park Catering,Supplies and Services,324117,Provisions,14-Sep-2017,000006479295845,HOPWELLS LTD,5811,Catering costs - provisions,35.40,5.90,29.50
Regeneration and Local Services,Culture & Sport,011060,Hardwick Park Catering,Supplies and Services,324117,Provisions,14-Sep-2017,000006479295845 - 1,HOPWELLS LTD,5811,Catering costs - provisions,67.80,,67.80
Regeneration and Local Services,Culture & Sport,011060,Hardwick Park Catering,Supplies and Services,324117,Provisions,14-Sep-2017,000006479295849,HOPWELLS LTD,5811,Catering costs - provisions,84.72,14.12,70.60
Regeneration and Local Services,Culture & Sport,011060,Hardwick Park Catering,Supplies and Services,324117,Provisions,14-Sep-2017,000006479295849 - 1,HOPWELLS LTD,5811,Catering costs - provisions,5.28,,5.28
Resources,Digital and Customer Services,065335,School Services - Implementations,Supplies and Services,304639,Equipment and Materials,14-Sep-2017,000006479295857,AMZ replacebase,4816,Technicians-supplies,227.63,0.00,227.63
Resources,Digital and Customer Services,065335,School Services - Implementations,Supplies and Services,304639,Equipment and Materials,14-Sep-2017,000006479295859,Amazon UK Marketplace,5942,Technicians-supplies,9.96,0.00,9.96
Regeneration and Local Services,Direct Services,021234,Catering - Locomotion,Supplies and Services,324117,Provisions,14-Sep-2017,000006479295871,HOPWELLS LTD,5811,Catering costs - provisions,36.12,6.02,30.10
Regeneration and Local Services,Direct Services,021234,Catering - Locomotion,Supplies and Services,324117,Provisions,14-Sep-2017,000006479295871 - 1,HOPWELLS LTD,5811,Catering costs - provisions,114.74,,114.74
Regeneration and Local Services,Direct Services,021234,Catering - Locomotion,Supplies and Services,324117,Provisions,14-Sep-2017,000006479295875,HOPWELLS LTD,5811,Catering costs - provisions,102.59,0.00,102.59
Regeneration and Local Services,Direct Services,021234,Catering - Locomotion,Supplies and Services,324117,Provisions,14-Sep-2017,000006479295879,HOPWELLS LTD,5811,Catering costs - provisions,96.45,0.00,96.45
Regeneration and Local Services,Direct Services,021234,Catering - Locomotion,Supplies and Services,324117,Provisions,14-Sep-2017,000006479295881,HOPWELLS LTD,5811,Catering costs - provisions,52.13,0.00,52.13
Regeneration and Local Services,Economic Development and Housing,031576,B& B - Temp Accom,Supplies and Services,364320,Grants to Voluntary Organisations,14-Sep-2017,000006479295939,TRAVELODGE,3615,Accommodation assistance,41.00,6.83,34.17
Regeneration and Local Services,Economic Development and Housing,031576,B& B - Temp Accom,Supplies and Services,364320,Grants to Voluntary Organisations,14-Sep-2017,000006479295943,TRAVELODGE,3615,Accommodation assistance,41.00,6.83,34.17
Regeneration and Local Services,Economic Development and Housing,031576,B& B - Temp Accom,Supplies and Services,364320,Grants to Voluntary Organisations,14-Sep-2017,000006479295947,TRAVELODGE,3615,Accommodation assistance,41.00,6.83,34.17
Children and Young Peoples Services,Head of Early Help Assessment and Safeguarding,085623,Families First Bishop Auckland,Supplies and Services,308011,Furniture,14-Sep-2017,000006479296001,Amazon UK Marketplace,5942,Furniture repair and replacement,47.00,0.00,47.00
Children and Young Peoples Services,Head of Early Help Assessment and Safeguarding,085556,Child Protection Team Stanley,Supplies and Services,304259,Equipment and Materials,14-Sep-2017,000006479296015,OMBC TEL PAYMENT,9399,Equipment-purchase and rental,11.00,0.00,11.00
Children and Young Peoples Services,Head of Early Help Assessment and Safeguarding,085556,Child Protection Team Stanley,Supplies and Services,328041,Clothing Uniforms and Laundry,14-Sep-2017,000006479296019,WWW.ARGOS.CO.UK,5310,Clothing uniforms and laundry,98.91,0.00,98.91
Children and Young Peoples Services,Head of Early Help Assessment and Safeguarding,085556,Child Protection Team Stanley,Supplies and Services,328041,Clothing Uniforms and Laundry,14-Sep-2017,000006479296021,WWW.ARGOS.CO.UK,5310,Clothing uniforms and laundry,284.97,0.00,284.97
Regeneration and Local Services,Direct Services,021324,Catering - Meadowfield,Supplies and Services,324117,Provisions,14-Sep-2017,000006479296083,HOPWELLS LTD,5811,Catering costs - provisions,45.86,0.00,45.86
Children and Young Peoples Services,Head of Looked After Provision Permanence and Care Leavers,085333,Coxhoe Satelite Home,Supplies and Services,328041,Clothing Uniforms and Laundry,14-Sep-2017,000006479296095,ARGOS LTD,5310,Clothing uniforms and laundry,24.99,0.00,24.99
Children and Young Peoples Services,Head of Looked After Provision Permanence and Care Leavers,085333,Coxhoe Satelite Home,Supplies and Services,308011,Furniture,14-Sep-2017,000006479296099,IKEA ONLINE,5719,Furniture repair and replacement,200.00,0.00,200.00
Children and Young Peoples Services,Head of Looked After Provision Permanence and Care Leavers,085333,Coxhoe Satelite Home,Supplies and Services,324117,Provisions,14-Sep-2017,000006479296103,TESCO STORES 2916,5411,Catering costs - provisions,70.72,0.00,70.72
Regeneration and Local Services,Direct Services,010301,C&G - North Grounds Maintenance,Supplies and Services,304403,Equipment and Materials,14-Sep-2017,000006479296107,TIMPSON LTD,7251,Other consumables,12.00,0.00,12.00
Children and Young Peoples Services,Head of Early Help Assessment and Safeguarding,088083,Ferryhill 0 - 5,Supplies and Services,328041,Clothing Uniforms and Laundry,14-Sep-2017,000006479296149,B&M RETAIL LTD,5310,Clothing uniforms and laundry,12.23,0.00,12.23
Regeneration and Local Services,Economic Development and Housing,030737,Durham Works Flexible Fund,Transport,235057,Public Transport,14-Sep-2017,000006479296207,ARRIVA NORTH EAST,4131,Staff travelling,8.00,0.00,8.00
Children and Young Peoples Services,Head of Early Help Assessment and Safeguarding,085100,Child Protection & Disabilty Strategic Manager,Supplies and Services,384199,Miscellaneous Expenses,14-Sep-2017,000006479296211,SUNDERLAND CC,9399,Other hired and contracted services,40.00,0.00,40.00
Regeneration and Local Services,Economic Development and Housing,031500,Housing Solutions - Core Team,Employees,040149,Recruitment Instruction and Training,14-Sep-2017,000006485143931,PREMIER INN,3811,Training-all costs,82.98,13.83,69.15
Regeneration and Local Services,Economic Development and Housing,030699,Business Growth and Innovation General,Supplies and Services,342033,Computers and Communications,14-Sep-2017,000006485143991,WATCHFULPAYPAL,7379,Computer hardware,15.16,0.00,15.16
Children and Young Peoples Services,Head of Education,070264,EDC Premises,Supplies and Services,384956,Miscellaneous Expenses,14-Sep-2017,000006485144097,TVLICENSING.CO.UK,7392,Licences,147.00,0.00,147.00
Regeneration and Local Services,Direct Services,021242,Catering - County Hall,Supplies and Services,324117,Provisions,14-Sep-2017,000006492797831,BATLEYS PERTH,5300,Catering costs - provisions,287.64,47.94,239.70
Regeneration and Local Services,Direct Services,021242,Catering - County Hall,Supplies and Services,324117,Provisions,14-Sep-2017,000006492797831 - 1,BATLEYS PERTH,5300,Catering costs - provisions,101.48,,101.48
Regeneration and Local Services,Culture & Sport,011060,Hardwick Park Catering,Supplies and Services,324117,Provisions,14-Sep-2017,000006492798083,BATLEYS PERTH,5300,Catering costs - provisions,126.90,21.15,105.75
Regeneration and Local Services,Culture & Sport,011060,Hardwick Park Catering,Supplies and Services,324117,Provisions,14-Sep-2017,000006492798083 - 1,BATLEYS PERTH,5300,Catering costs - provisions,164.01,,164.01
Regeneration and Local Services,Culture & Sport,011060,Hardwick Park Catering,Supplies and Services,324117,Provisions,14-Sep-2017,000006492798093,BATLEYS PERTH,5300,Catering costs - provisions,142.08,23.68,118.40
Regeneration and Local Services,Culture & Sport,011060,Hardwick Park Catering,Supplies and Services,324117,Provisions,14-Sep-2017,000006492798093 - 1,BATLEYS PERTH,5300,Catering costs - provisions,113.64,,113.64
Regeneration and Local Services,Direct Services,021234,Catering - Locomotion,Supplies and Services,324117,Provisions,14-Sep-2017,000006492798147,BATLEYS PERTH,5300,Catering costs - provisions,393.78,65.63,328.15
Regeneration and Local Services,Direct Services,021234,Catering - Locomotion,Supplies and Services,324117,Provisions,14-Sep-2017,000006492798147 - 1,BATLEYS PERTH,5300,Catering costs - provisions,84.63,,84.63
Regeneration and Local Services,Direct Services,021235,Catering - Wharton Park,Supplies and Services,324117,Provisions,14-Sep-2017,000006492798437,BATLEYS PERTH,5300,Catering costs - provisions,117.90,19.66,98.24
Regeneration and Local Services,Economic Development and Housing,030699,Business Growth and Innovation General,Supplies and Services,352001,Conference Expenses,15-Sep-2017,000006479295571,SPROUT SOCIAL,7392,Conferencesseminars fees etc,10.39,0.00,10.39
Regeneration and Local Services,Economic Development and Housing,030699,Business Growth and Innovation General,Supplies and Services,352001,Conference Expenses,15-Sep-2017,000006479295575,SPROUT SOCIAL,7392,Conferencesseminars fees etc,10.39,0.00,10.39
Children and Young Peoples Services,Head of Education,071801,Selby Cottage Childcare Centre,Supplies and Services,324117,Provisions,15-Sep-2017,000006485143845,TESCO STORES 2278,5411,Catering costs - provisions,18.36,0.00,18.36
Children and Young Peoples Services,Head of Education,071801,Selby Cottage Childcare Centre,Supplies and Services,324117,Provisions,15-Sep-2017,000006485143849,ASDA HOME SHOPPING,5411,Catering costs - provisions,5.00,0.00,5.00
Regeneration and Local Services,Economic Development and Housing,030732,Rural Employability Project - South Durham,Supplies and Services,304259,Equipment and Materials,15-Sep-2017,000006485143925,SCREWFIX CHESTER L,5211,Equipment-purchase and rental,137.96,22.99,114.97
Regeneration and Local Services,Economic Development and Housing,031500,Housing Solutions - Core Team,Employees,040149,Recruitment Instruction and Training,15-Sep-2017,000006485143937,PREMIER INN,3811,Training-all costs,-17.98,0.00,-17.98
Adult and Health Services,Head of Adults,055302,Durham Pathways,Supplies and Services,340001,Postages,15-Sep-2017,000006485144061,POST OFFICE COUNTER,9402,Postages,2.08,0.00,2.08
Regeneration and Local Services,Direct Services,021242,Catering - County Hall,Supplies and Services,324117,Provisions,15-Sep-2017,000006485144103,JR HOLLAND FOODSERVICE,5422,Catering costs - provisions,86.60,0.00,86.60
Regeneration and Local Services,Direct Services,021242,Catering - County Hall,Supplies and Services,324117,Provisions,15-Sep-2017,000006485144109,JR HOLLAND FOODSERVICE,5422,Catering costs - provisions,22.04,0.00,22.04
Regeneration and Local Services,Direct Services,021242,Catering - County Hall,Supplies and Services,324117,Provisions,15-Sep-2017,000006485144113,JR HOLLAND FOODSERVICE,5422,Catering costs - provisions,13.16,0.00,13.16
Regeneration and Local Services,Direct Services,010367,C&G - South Grounds Maintenance,Supplies and Services,304259,Equipment and Materials,15-Sep-2017,000006485144145,SCREWFIX DIRECT LT,5211,Equipment-purchase and rental,4.49,0.75,3.74
Regeneration and Local Services,Economic Development and Housing,030737,Durham Works Flexible Fund,Supplies and Services,328041,Clothing Uniforms and Laundry,15-Sep-2017,000006485144157,STERLING SAFETY SERVIC,5691,Clothing uniforms and laundry,18.10,3.02,15.08
Regeneration and Local Services,Economic Development and Housing,030737,Durham Works Flexible Fund,Transport,235057,Public Transport,15-Sep-2017,000006485144161,ARRIVA NORTH EAST,4131,Staff travelling,8.00,0.00,8.00
Regeneration and Local Services,Economic Development and Housing,030737,Durham Works Flexible Fund,Supplies and Services,328041,Clothing Uniforms and Laundry,15-Sep-2017,000006485144165,TESCO STORES 2916,5411,Clothing uniforms and laundry,10.00,0.00,10.00
Regeneration and Local Services,Economic Development and Housing,030544,Rural Employability - Client Engagement,Transport,235057,Public Transport,15-Sep-2017,000006485144267,WWW.SIMPLYGO.COM,4131,Staff travelling,92.00,0.00,92.00
Regeneration and Local Services,Economic Development and Housing,030737,Durham Works Flexible Fund,Supplies and Services,304999,Equipment and Materials,15-Sep-2017,000006485144271,TOOLSTOP,5072,Misc equipment tools and materials,35.00,0.00,35.00
Regeneration and Local Services,Economic Development and Housing,030737,Durham Works Flexible Fund,Supplies and Services,312011,Newspapers Books and Periodicals,15-Sep-2017,000006485144277,MAP UK,5251,Books-school library,49.16,0.00,49.16
Regeneration and Local Services,Economic Development and Housing,030737,Durham Works Flexible Fund,Supplies and Services,312011,Newspapers Books and Periodicals,15-Sep-2017,000006485144281,POWER TOOLS DIRECT ONL,5251,Books-school library,5.67,0.00,5.67
Regeneration and Local Services,Economic Development and Housing,030737,Durham Works Flexible Fund,Supplies and Services,304259,Equipment and Materials,15-Sep-2017,000006485144283,SCREWFIX DIRECT,5211,Equipment-purchase and rental,104.99,0.00,104.99
Regeneration and Local Services,Economic Development and Housing,030737,Durham Works Flexible Fund,Supplies and Services,304403,Equipment and Materials,15-Sep-2017,000006485144289,RS COMPONENTS,5065,Other consumables,9.30,0.00,9.30
Children and Young Peoples Services,Head of Looked After Provision Permanence and Care Leavers,085341,High Etherley Satelite Home,Supplies and Services,308011,Furniture,15-Sep-2017,000006485144301,Amazon UK Marketplace,5942,Furniture repair and replacement,8.74,0.00,8.74
Children and Young Peoples Services,Head of Looked After Provision Permanence and Care Leavers,085341,High Etherley Satelite Home,Supplies and Services,312009,Newspapers Books and Periodicals,15-Sep-2017,000006485144305,AMAZON UK RETAIL AMAZO,5999,Newspapers books and periodicals,29.64,0.00,29.64
Regeneration and Local Services,Economic Development and Housing,030737,Durham Works Flexible Fund,Supplies and Services,348037,Subsistence,15-Sep-2017,000006485144341,WWW.SIMPLYGO.COM,4131,Subsistence,70.00,0.00,70.00
Children and Young Peoples Services,Head of Looked After Provision Permanence and Care Leavers,085957,Secure Management,Supplies and Services,328041,Clothing Uniforms and Laundry,15-Sep-2017,000006485144367,M and M Direct Ltd,5941,Clothing uniforms and laundry,139.93,0.00,139.93
Children and Young Peoples Services,Head of Looked After Provision Permanence and Care Leavers,085956,Lumley,Supplies and Services,324117,Provisions,15-Sep-2017,000006485144373,TESCO STORES 6329,5411,Catering costs - provisions,98.82,0.00,98.82
Children and Young Peoples Services,Head of Looked After Provision Permanence and Care Leavers,085957,Secure Management,Supplies and Services,338064,Services,15-Sep-2017,000006485144375,CAPITA RECRUITMENT VET,8999,Disclosure & Barring (DBS) Fees,52.10,0.00,52.10
Regeneration and Local Services,Culture & Sport,011060,Hardwick Park Catering,Supplies and Services,324117,Provisions,15-Sep-2017,000006485144439,JR HOLLAND FOODSERVICE,5422,Catering costs - provisions,42.49,0.00,42.49
Regeneration and Local Services,Direct Services,021234,Catering - Locomotion,Supplies and Services,324117,Provisions,15-Sep-2017,000006485144507,JR HOLLAND FOODSERVICE,5422,Catering costs - provisions,41.45,0.00,41.45
Regeneration and Local Services,Direct Services,010525,Catering - Green Lane,Supplies and Services,324117,Provisions,15-Sep-2017,000006485144555,JR HOLLAND FOODSERVICE,5422,Catering costs - provisions,54.11,0.00,54.11
Children and Young Peoples Services,Head of Looked After Provision Permanence and Care Leavers,085333,Coxhoe Satelite Home,Supplies and Services,324117,Provisions,15-Sep-2017,000006485144621,ALDI 74 774 S,5411,Catering costs - provisions,76.08,0.00,76.08
Children and Young Peoples Services,Head of Looked After Provision Permanence and Care Leavers,085333,Coxhoe Satelite Home,Supplies and Services,324117,Provisions,15-Sep-2017,000006485144625,ASDA SUPERSTORE 4987,5411,Catering costs - provisions,59.23,0.00,59.23
Regeneration and Local Services,Economic Development and Housing,031576,B& B - Temp Accom,Supplies and Services,352001,Conference Expenses,15-Sep-2017,000006485144685,TRAVELODGE,3615,Conferencesseminars fees etc,180.00,30.00,150.00
Regeneration and Local Services,Economic Development and Housing,031576,B& B - Temp Accom,Supplies and Services,352001,Conference Expenses,15-Sep-2017,000006485144689,TRAVELODGE,3615,Conferencesseminars fees etc,180.00,30.00,150.00
Regeneration and Local Services,Spatial Policy Planning Assets & Environment,031200,North Pennines Core,Transport,235057,Public Transport,15-Sep-2017,000006485144705,NEWCASTLE PARK AND FLY,7523,Staff travelling,34.94,0.00,34.94
Regeneration and Local Services,Direct Services,021324,Catering - Meadowfield,Supplies and Services,324117,Provisions,15-Sep-2017,000006485144761,JR HOLLAND FOODSERVICE,5422,Catering costs - provisions,28.94,0.00,28.94
Regeneration and Local Services,Direct Services,021324,Catering - Meadowfield,Supplies and Services,324117,Provisions,15-Sep-2017,000006485144769,JR HOLLAND FOODSERVICE,5422,Catering costs - provisions,9.87,0.00,9.87
Adult and Health Services,Head of Adults,055301,Stanley Pathways,Supplies and Services,308011,Furniture,15-Sep-2017,000006485144779,POUNDSTRETCHER 354,5714,Furniture repair and replacement,20.00,0.00,20.00
Children and Young Peoples Services,Head of Looked After Provision Permanence and Care Leavers,085331,New Lea Childrens Home,Supplies and Services,328041,Clothing Uniforms and Laundry,15-Sep-2017,000006485144923,WWW.SALONWEAR4U.CO.UK,5691,Clothing uniforms and laundry,-72.00,0.00,-72.00
Transformation and Partnerships,Comms & Information Management,060270,Communications and Marketing,Supplies and Services,336005,Advertising,15-Sep-2017,000006485144951,FACEBK MEMRDC65B2,7311,Advertising other than for staff,500.00,0.00,500.00
Transformation and Partnerships,Partnerships & Community Engagement Div.,060470,Partnership and Comm Eng Management,Supplies and Services,352001,Conference Expenses,15-Sep-2017,000006485144957,EB THE DEAL CONFERENC,7399,Conferencesseminars fees etc,118.80,19.80,99.00
Resources,Legal & Democratic Services,067910,Democratic Representation,Supplies and Services,304259,Equipment and Materials,15-Sep-2017,000006485144961,AMERICANGOLF.CO.UK,5941,Equipment-purchase and rental,324.95,0.00,324.95
Resources,Digital and Customer Services,065432,Web Development Group,Supplies and Services,384956,Miscellaneous Expenses,15-Sep-2017,000006485144967,CSS - COMODO GROUP IN,7399,Licences,805.61,0.00,805.61
Adult and Health Services,Head of Adults,055309,Peterlee Pathways,Supplies and Services,304259,Equipment and Materials,15-Sep-2017,000006485145023,CURRYS ONLINE,5732,Equipment-purchase and rental,72.97,0.00,72.97
Regeneration and Local Services,Economic Development and Housing,030737,Durham Works Flexible Fund,Transport,235057,Public Transport,15-Sep-2017,000006485145055,WWW.SIMPLYGO.COM,4131,Staff travelling,105.00,0.00,105.00
Regeneration and Local Services,Economic Development and Housing,030737,Durham Works Flexible Fund,Supplies and Services,328041,Clothing Uniforms and Laundry,15-Sep-2017,000006485145059,MATALAN,5691,Clothing uniforms and laundry,70.05,0.00,70.05
Regeneration and Local Services,Direct Services,010525,Catering - Green Lane,Supplies and Services,324117,Provisions,15-Sep-2017,000006492798197,BATLEYS PERTH,5300,Catering costs - provisions,104.52,17.42,87.10
Regeneration and Local Services,Direct Services,010525,Catering - Green Lane,Supplies and Services,324117,Provisions,15-Sep-2017,000006492798197 - 1,BATLEYS PERTH,5300,Catering costs - provisions,74.82,,74.82
Children and Young Peoples Services,Head of Education,054640,Durham Learning Resources,Supplies and Services,312011,Newspapers Books and Periodicals,16-Sep-2017,000006485143865,Amazon UK Marketplace,5942,Books-school library,24.99,0.00,24.99
Regeneration and Local Services,Culture & Sport,054233,Bishop Auckland Town Hall Library,Supplies and Services,324117,Provisions,16-Sep-2017,000006485144121,ASDA STORES,5411,Catering costs - provisions,68.56,0.00,68.56
Children and Young Peoples Services,Head of Early Help Assessment and Safeguarding,085511,Emergency Duty Team,Supplies and Services,352001,Conference Expenses,16-Sep-2017,000006485144199,SYKES COTTAGES,7011,Conferencesseminars fees etc,290.50,0.00,290.50
Children and Young Peoples Services,Head of Looked After Provision Permanence and Care Leavers,085954,Walworth,Supplies and Services,324117,Provisions,16-Sep-2017,000006485144379,TESCO STORES 6329,5411,Catering costs - provisions,78.95,0.00,78.95
Regeneration and Local Services,Culture & Sport,011210,Parks & Countryside,Supplies and Services,304259,Equipment and Materials,16-Sep-2017,000006485144395,SCREWFIX,5211,Equipment-purchase and rental,40.47,6.75,33.72
Children and Young Peoples Services,Head of Looked After Provision Permanence and Care Leavers,085551,Short Break Services-Park Hse Sher,Supplies and Services,384999,Miscellaneous Expenses,16-Sep-2017,000006485144473,SMYTHS TOYS UK LTD,5945,Other expenses,9.99,0.00,9.99
Regeneration and Local Services,Spatial Policy Planning Assets & Environment,031200,North Pennines Core,Supplies and Services,352001,Conference Expenses,16-Sep-2017,000006485144707,HILTON,3504,Conferencesseminars fees etc,95.42,0.00,95.42
Regeneration and Local Services,Spatial Policy Planning Assets & Environment,031200,North Pennines Core,Supplies and Services,304999,Equipment and Materials,16-Sep-2017,000006485145077,AMAZON UK PRIME AMZN.C,5968,Misc equipment tools and materials,7.99,0.00,7.99
Children and Young Peoples Services,Head of Looked After Provision Permanence and Care Leavers,085341,High Etherley Satelite Home,Supplies and Services,348037,Subsistence,17-Sep-2017,000006485143823,THE RANGE DARLINGTON,5814,Subsistence,11.40,0.00,11.40
Resources,Resources Management,069000,Resources Management,Supplies and Services,324117,Provisions,17-Sep-2017,000006485144651,ASDA STORES LTD,5411,Catering costs - provisions,1.98,0.00,1.98
Children and Young Peoples Services,Head of Looked After Provision Permanence and Care Leavers,085341,High Etherley Satelite Home,Supplies and Services,328041,Clothing Uniforms and Laundry,17-Sep-2017,000006492797615,WWW.ARGOS.CO.UK,5310,Clothing uniforms and laundry,57.94,0.00,57.94
Regeneration and Local Services,Economic Development and Housing,030699,Business Growth and Innovation General,Supplies and Services,342033,Computers and Communications,18-Sep-2017,000006485143999,WATCHFULPAYPAL,7379,Computer hardware,0.42,0.00,0.42
Regeneration and Local Services,Spatial Policy Planning Assets & Environment,031200,North Pennines Core,Supplies and Services,352001,Conference Expenses,18-Sep-2017,000006485144711,HILTON,3504,Conferencesseminars fees etc,2.62,0.00,2.62
Resources,Digital and Customer Services,065432,Web Development Group,Supplies and Services,384956,Miscellaneous Expenses,18-Sep-2017,000006485144971,CSS - COMODO GROUP IN,7399,Licences,22.15,0.00,22.15
Children and Young Peoples Services,Head of Looked After Provision Permanence and Care Leavers,085341,High Etherley Satelite Home,Supplies and Services,312011,Newspapers Books and Periodicals,18-Sep-2017,000006492797609,Amazon UK Marketplace,5942,Books-school library,14.99,0.00,14.99
Children and Young Peoples Services,Head of Looked After Provision Permanence and Care Leavers,085341,High Etherley Satelite Home,Supplies and Services,312011,Newspapers Books and Periodicals,18-Sep-2017,000006492797613,Amazon UK Marketplace,5942,Books-school library,20.26,0.00,20.26
Children and Young Peoples Services,Head of Looked After Provision Permanence and Care Leavers,085341,High Etherley Satelite Home,Employees,040149,Recruitment Instruction and Training,18-Sep-2017,000006492797619,SCHOOLGATEWAY.COM,8220,Training-all costs,10.00,0.00,10.00
Children and Young Peoples Services,Head of Education,071801,Selby Cottage Childcare Centre,Supplies and Services,324117,Provisions,18-Sep-2017,000006492797631,ASDA HOME SHOPPING,5411,Catering costs - provisions,78.39,0.00,78.39
Children and Young Peoples Services,Head of Looked After Provision Permanence and Care Leavers,085342,9 Cedar Drive Aycliffe,Supplies and Services,324117,Provisions,18-Sep-2017,000006492797685,ALDI 74 774 S,5411,Catering costs - provisions,24.60,0.00,24.60
Children and Young Peoples Services,Head of Looked After Provision Permanence and Care Leavers,085342,9 Cedar Drive Aycliffe,Supplies and Services,324117,Provisions,18-Sep-2017,000006492797689,TESCO STORES 2916,5411,Catering costs - provisions,201.76,0.00,201.76
Children and Young Peoples Services,Head of Looked After Provision Permanence and Care Leavers,085342,9 Cedar Drive Aycliffe,Supplies and Services,324117,Provisions,18-Sep-2017,000006492797693,TESCO STORES 2916,5411,Catering costs - provisions,14.36,0.00,14.36
Children and Young Peoples Services,Head of Looked After Provision Permanence and Care Leavers,085342,9 Cedar Drive Aycliffe,Supplies and Services,328041,Clothing Uniforms and Laundry,18-Sep-2017,000006492797705,WWW.SWI.CO.UK,5655,Clothing uniforms and laundry,-25.64,0.00,-25.64
Children and Young Peoples Services,Head of Early Help Assessment and Safeguarding,088074,Barnard Castle 5 - 19,Supplies and Services,328041,Clothing Uniforms and Laundry,18-Sep-2017,000006492797789,POUNDWORLD RETAIL,5310,Clothing uniforms and laundry,2.00,0.00,2.00
Children and Young Peoples Services,Head of Early Help Assessment and Safeguarding,088074,Barnard Castle 5 - 19,Supplies and Services,328041,Clothing Uniforms and Laundry,18-Sep-2017,000006492797793,B&M RETAIL LTD,5310,Clothing uniforms and laundry,17.52,0.00,17.52
Regeneration and Local Services,Direct Services,021242,Catering - County Hall,Supplies and Services,324117,Provisions,18-Sep-2017,000006492797801,WWW.ADELIEFOODS.CO.UK,5499,Catering costs - provisions,198.38,0.00,198.38
Regeneration and Local Services,Direct Services,021242,Catering - County Hall,Supplies and Services,324117,Provisions,18-Sep-2017,000006492797805,WWW.ADELIEFOODS.CO.UK,5499,Catering costs - provisions,115.03,0.00,115.03
Regeneration and Local Services,Direct Services,021242,Catering - County Hall,Supplies and Services,324117,Provisions,18-Sep-2017,000006492797809,WWW.ADELIEFOODS.CO.UK,5499,Catering costs - provisions,114.40,0.00,114.40
Regeneration and Local Services,Direct Services,021242,Catering - County Hall,Supplies and Services,324117,Provisions,18-Sep-2017,000006492797813,WWW.ADELIEFOODS.CO.UK,5499,Catering costs - provisions,52.32,0.00,52.32
Regeneration and Local Services,Direct Services,021242,Catering - County Hall,Supplies and Services,324117,Provisions,18-Sep-2017,000006492797817,WWW.ADELIEFOODS.CO.UK,5499,Catering costs - provisions,52.31,0.00,52.31
Regeneration and Local Services,Direct Services,021242,Catering - County Hall,Supplies and Services,324117,Provisions,18-Sep-2017,000006492797819,JR HOLLAND FOODSERVICE,5422,Catering costs - provisions,127.08,0.00,127.08
Regeneration and Local Services,Direct Services,021242,Catering - County Hall,Supplies and Services,324117,Provisions,18-Sep-2017,000006492797823,JR HOLLAND FOODSERVICE,5422,Catering costs - provisions,6.94,0.00,6.94
Regeneration and Local Services,Direct Services,021242,Catering - County Hall,Supplies and Services,324117,Provisions,18-Sep-2017,000006492797829,JR HOLLAND FOODSERVICE,5422,Catering costs - provisions,6.24,0.00,6.24
Children and Young Peoples Services,Head of Education,070169,Durham SSP,Supplies and Services,384199,Miscellaneous Expenses,18-Sep-2017,000006492797841,CURRYS,5732,Other hired and contracted services,239.99,40.00,199.99
Regeneration and Local Services,Economic Development and Housing,030737,Durham Works Flexible Fund,Transport,235057,Public Transport,18-Sep-2017,000006492797849,CO-OP GROUP 010518,5411,Staff travelling,25.00,0.00,25.00
Regeneration and Local Services,Economic Development and Housing,030737,Durham Works Flexible Fund,Transport,235057,Public Transport,18-Sep-2017,000006492797853,CO-OP GROUP 010518,5411,Staff travelling,25.00,0.00,25.00
Regeneration and Local Services,Economic Development and Housing,030737,Durham Works Flexible Fund,Transport,235057,Public Transport,18-Sep-2017,000006492797859,CO-OP GROUP 010518,5411,Staff travelling,25.00,0.00,25.00
Regeneration and Local Services,Culture & Sport,010664,Freemans Quay Leisure Centre,Supplies and Services,324117,Provisions,18-Sep-2017,000006492797963,TESCO STORES 6029,5411,Catering costs - provisions,3.00,0.00,3.00
Children and Young Peoples Services,Head of Early Help Assessment and Safeguarding,088063,Bishop Auckland 0 - 5,Supplies and Services,324117,Provisions,18-Sep-2017,000006492797969,WM MORRISON 040,5411,Catering costs - provisions,24.20,0.00,24.20
Children and Young Peoples Services,Head of Education,071732,Dean Bank Childcare,Supplies and Services,324117,Provisions,18-Sep-2017,000006492797977,SAINSBURYS SACAT (2303,5411,Catering costs - provisions,36.95,0.00,36.95
Children and Young Peoples Services,Head of Education,071732,Dean Bank Childcare,Supplies and Services,324117,Provisions,18-Sep-2017,000006492797987,ASDA HOME SHOPPING,5411,Catering costs - provisions,51.78,0.00,51.78
Children and Young Peoples Services,Head of Education,071732,Dean Bank Childcare,Supplies and Services,324117,Provisions,18-Sep-2017,000006492797993,ASDA HOME SHOPPING,5411,Catering costs - provisions,-0.57,0.00,-0.57
Resources,Corporate Finance,069800,Corporate Procurement,Employees,040149,Recruitment Instruction and Training,18-Sep-2017,000006492798013,WWW.CIPS.ORG,8699,Training-all costs,103.02,0.00,103.02
Regeneration and Local Services,Economic Development and Housing,030737,Durham Works Flexible Fund,Supplies and Services,342033,Computers and Communications,18-Sep-2017,000006492798039,ARGOS RETAIL GROUP,5310,Computer hardware,229.99,0.00,229.99
Children and Young Peoples Services,Head of Looked After Provision Permanence and Care Leavers,085957,Secure Management,Supplies and Services,384999,Miscellaneous Expenses,18-Sep-2017,000006492798049,Amazon UK Marketplace,5942,Other expenses,43.12,0.00,43.12
Children and Young Peoples Services,Head of Looked After Provision Permanence and Care Leavers,085957,Secure Management,Supplies and Services,304335,Equipment and Materials,18-Sep-2017,000006492798053,Amazon UK Marketplace,5942,ICT supplies etc,16.90,0.00,16.90
Children and Young Peoples Services,Head of Looked After Provision Permanence and Care Leavers,085952,Secure Education,Supplies and Services,324117,Provisions,18-Sep-2017,000006492798057,TESCO STORES 6329,5411,Catering costs - provisions,92.94,0.00,92.94
Children and Young Peoples Services,Head of Early Help Assessment and Safeguarding,071444,Consett One Point Hub,Supplies and Services,308011,Furniture,18-Sep-2017,000006492798063,EDS BEDS LTD,5712,Furniture repair and replacement,59.00,0.00,59.00
Regeneration and Local Services,Culture & Sport,011210,Parks & Countryside,Supplies and Services,304259,Equipment and Materials,18-Sep-2017,000006492798067,WWW.PIPESTOCK.COM,5072,Equipment-purchase and rental,24.78,0.00,24.78
Regeneration and Local Services,Culture & Sport,011060,Hardwick Park Catering,Supplies and Services,324117,Provisions,18-Sep-2017,000006492798079,JR HOLLAND FOODSERVICE,5422,Catering costs - provisions,22.23,0.00,22.23
Regeneration and Local Services,Culture & Sport,011060,Hardwick Park Catering,Supplies and Services,324117,Provisions,18-Sep-2017,000006492798103,JR HOLLAND FOODSERVICE,5422,Catering costs - provisions,-0.68,0.00,-0.68
Resources,Digital and Customer Services,065335,School Services - Implementations,Supplies and Services,304639,Equipment and Materials,18-Sep-2017,000006492798115,AMZ replacebase,4816,Technicians-supplies,36.16,0.00,36.16
Regeneration and Local Services,Direct Services,021234,Catering - Locomotion,Supplies and Services,324117,Provisions,18-Sep-2017,000006492798129,WWW.ADELIEFOODS.CO.UK,5499,Catering costs - provisions,334.50,0.00,334.50
Regeneration and Local Services,Direct Services,021234,Catering - Locomotion,Supplies and Services,324117,Provisions,18-Sep-2017,000006492798135,WWW.ADELIEFOODS.CO.UK,5499,Catering costs - provisions,46.70,0.00,46.70
Regeneration and Local Services,Direct Services,021234,Catering - Locomotion,Supplies and Services,324117,Provisions,18-Sep-2017,000006492798137,WWW.ADELIEFOODS.CO.UK,5499,Catering costs - provisions,46.70,0.00,46.70
Regeneration and Local Services,Direct Services,021234,Catering - Locomotion,Supplies and Services,324117,Provisions,18-Sep-2017,000006492798139,WWW.ADELIEFOODS.CO.UK,5499,Catering costs - provisions,46.70,0.00,46.70
Regeneration and Local Services,Direct Services,021234,Catering - Locomotion,Supplies and Services,324117,Provisions,18-Sep-2017,000006492798143,WWW.ADELIEFOODS.CO.UK,5499,Catering costs - provisions,33.44,0.00,33.44
Regeneration and Local Services,Economic Development and Housing,031576,B& B - Temp Accom,Supplies and Services,364320,Grants to Voluntary Organisations,18-Sep-2017,000006492798159,TRAVELODGE,3615,Accommodation assistance,41.00,6.83,34.17
Regeneration and Local Services,Economic Development and Housing,031576,B& B - Temp Accom,Supplies and Services,364320,Grants to Voluntary Organisations,18-Sep-2017,000006492798165,TRAVELODGE,3615,Accommodation assistance,44.00,7.33,36.67
Regeneration and Local Services,Direct Services,010525,Catering - Green Lane,Supplies and Services,324117,Provisions,18-Sep-2017,000006492798185,WWW.ADELIEFOODS.CO.UK,5499,Catering costs - provisions,37.38,0.00,37.38
Regeneration and Local Services,Direct Services,010525,Catering - Green Lane,Supplies and Services,324117,Provisions,18-Sep-2017,000006492798189,WWW.ADELIEFOODS.CO.UK,5499,Catering costs - provisions,34.99,0.00,34.99
Regeneration and Local Services,Culture & Sport,011060,Hardwick Park Catering,Supplies and Services,384999,Miscellaneous Expenses,18-Sep-2017,000006492798273,Amazon UK Marketplace,5942,Other expenses,155.75,0.00,155.75
Regeneration and Local Services,Culture & Sport,054235,Bishop Auckland Town Hall Cafe,Supplies and Services,324117,Provisions,18-Sep-2017,000006492798331,JR HOLLAND FOODSERVICE,5422,Catering costs - provisions,8.20,0.00,8.20
Regeneration and Local Services,Direct Services,010301,C&G - North Grounds Maintenance,Supplies and Services,304259,Equipment and Materials,18-Sep-2017,000006492798337,TRAVIS PERKINS,5211,Equipment-purchase and rental,202.08,33.68,168.40
Children and Young Peoples Services,Head of Early Help Assessment and Safeguarding,088083,Ferryhill 0 - 5,Supplies and Services,324117,Provisions,18-Sep-2017,000006492798371,SAINSBURYS LOC4628,5411,Catering costs - provisions,4.00,0.00,4.00
Children and Young Peoples Services,Head of Early Help Assessment and Safeguarding,088083,Ferryhill 0 - 5,Premises,120037,Energy Costs,18-Sep-2017,000006492798375,NORTHUMBRIAN WATER,4900,Other fuels,"1,028.00",0.00,1028.00
Regeneration and Local Services,Direct Services,021235,Catering - Wharton Park,Supplies and Services,324117,Provisions,18-Sep-2017,000006492798425,WWW.ADELIEFOODS.CO.UK,5499,Catering costs - provisions,53.77,0.00,53.77
Regeneration and Local Services,Direct Services,021235,Catering - Wharton Park,Supplies and Services,324117,Provisions,18-Sep-2017,000006492798429,WWW.ADELIEFOODS.CO.UK,5499,Catering costs - provisions,53.77,0.00,53.77
Regeneration and Local Services,Direct Services,021235,Catering - Wharton Park,Supplies and Services,324117,Provisions,18-Sep-2017,000006492798433,WWW.ADELIEFOODS.CO.UK,5499,Catering costs - provisions,29.48,0.00,29.48
Regeneration and Local Services,Direct Services,021235,Catering - Wharton Park,Supplies and Services,324117,Provisions,18-Sep-2017,000006492798435,WWW.ADELIEFOODS.CO.UK,5499,Catering costs - provisions,28.09,0.00,28.09
Adult and Health Services,Head of Adults,055309,Peterlee Pathways,Supplies and Services,324117,Provisions,18-Sep-2017,000006492798455,LIDL UK,5411,Catering costs - provisions,2.97,0.00,2.97
Children and Young Peoples Services,Head of Early Help Assessment and Safeguarding,071693,Brandon Childrens Centre,Supplies and Services,324117,Provisions,18-Sep-2017,000006492798487,CO-OP GROUP 010460,5411,Catering costs - provisions,4.00,0.00,4.00
Regeneration and Local Services,Economic Development and Housing,030737,Durham Works Flexible Fund,Transport,235057,Public Transport,18-Sep-2017,000006492798505,WWW.SIMPLYGO.COM,4131,Staff travelling,68.00,0.00,68.00
Transformation and Partnerships,Comms & Information Management,060131,County Records,Supplies and Services,332047,Printing Stationery and Gen Off Exps,18-Sep-2017,000006492798537,WWW.UKPOS.COM,5943,Stationery,32.34,5.39,26.95
Regeneration and Local Services,Economic Development and Housing,030737,Durham Works Flexible Fund,Supplies and Services,328041,Clothing Uniforms and Laundry,18-Sep-2017,000006496365631,MATALAN.CO.UK,5691,Clothing uniforms and laundry,59.00,0.00,59.00
Regeneration and Local Services,Culture & Sport,054233,Bishop Auckland Town Hall Library,Employees,040149,Recruitment Instruction and Training,18-Sep-2017,000006496365673,PREMIER INN,3811,Training-all costs,120.28,0.00,120.28
Regeneration and Local Services,Culture & Sport,054812,Gala Theatre - Catering etc,Supplies and Services,324117,Provisions,18-Sep-2017,000006496365699,BATLEYS PERTH,5300,Catering costs - provisions,10.56,1.76,8.80
Regeneration and Local Services,Culture & Sport,054812,Gala Theatre - Catering etc,Supplies and Services,324117,Provisions,18-Sep-2017,000006496365699 - 1,BATLEYS PERTH,5300,Catering costs - provisions,85.14,,85.14
Regeneration and Local Services,Direct Services,021324,Catering - Meadowfield,Supplies and Services,324117,Provisions,18-Sep-2017,000006496366355,BATLEYS PERTH,5300,Catering costs - provisions,-3.89,0.00,-3.89
Regeneration and Local Services,Direct Services,021235,Catering - Wharton Park,Supplies and Services,324117,Provisions,18-Sep-2017,000006496366497,BATLEYS PERTH,5300,Catering costs - provisions,88.86,14.81,74.05
Regeneration and Local Services,Direct Services,021235,Catering - Wharton Park,Supplies and Services,324117,Provisions,18-Sep-2017,000006496366497 - 1,BATLEYS PERTH,5300,Catering costs - provisions,22.36,,22.36
Children and Young Peoples Services,Head of Education,071801,Selby Cottage Childcare Centre,Supplies and Services,304403,Equipment and Materials,19-Sep-2017,000006496365457,WWW.LIGHTS4FUN.CO.,5999,Other consumables,55.98,0.00,55.98
Children and Young Peoples Services,Head of Education,071801,Selby Cottage Childcare Centre,Supplies and Services,324117,Provisions,19-Sep-2017,000006496365467,TESCO STORES 2278,5411,Catering costs - provisions,21.63,0.00,21.63
Regeneration and Local Services,Direct Services,010301,C&G - North Grounds Maintenance,Supplies and Services,304259,Equipment and Materials,19-Sep-2017,000006496365475,HARELAW SAWMILL,5211,Equipment-purchase and rental,180.60,0.00,180.60
Regeneration and Local Services,Economic Development and Housing,030699,Business Growth and Innovation General,Transport,235057,Public Transport,19-Sep-2017,000006496365559,VIRGINTRAINSEC WI-FI,4112,Staff travelling,5.00,0.00,5.00
Regeneration and Local Services,Economic Development and Housing,030737,Durham Works Flexible Fund,Transport,230031,Contract Hire,19-Sep-2017,000006496365633,ARRIVA NORTH EAST,4131,Pupils-transport to play fields etc,11.40,0.00,11.40
Regeneration and Local Services,Direct Services,021242,Catering - County Hall,Supplies and Services,324117,Provisions,19-Sep-2017,000006496365641,HOPWELLS LTD,5811,Catering costs - provisions,254.74,0.00,254.74
Regeneration and Local Services,Direct Services,021242,Catering - County Hall,Supplies and Services,324117,Provisions,19-Sep-2017,000006496365647,HOPWELLS LTD,5811,Catering costs - provisions,13.14,0.00,13.14
Regeneration and Local Services,Direct Services,021242,Catering - County Hall,Supplies and Services,324117,Provisions,19-Sep-2017,000006496365649,FREEMAN CATERING BUTCH,5422,Catering costs - provisions,209.81,0.00,209.81
Regeneration and Local Services,Direct Services,021242,Catering - County Hall,Supplies and Services,324117,Provisions,19-Sep-2017,000006496365657,FREEMAN CATERING BUTCH,5422,Catering costs - provisions,132.02,0.00,132.02
Regeneration and Local Services,Direct Services,021242,Catering - County Hall,Supplies and Services,324117,Provisions,19-Sep-2017,000006496365661,JR HOLLAND FOODSERVICE,5422,Catering costs - provisions,27.82,0.00,27.82
Regeneration and Local Services,Direct Services,021242,Catering - County Hall,Supplies and Services,324117,Provisions,19-Sep-2017,000006496365669,JR HOLLAND FOODSERVICE,5422,Catering costs - provisions,6.58,0.00,6.58
Regeneration and Local Services,Direct Services,021242,Catering - County Hall,Supplies and Services,324117,Provisions,19-Sep-2017,000006496365671,HOPWELLS LTD,5811,Catering costs - provisions,-19.58,0.00,-19.58
Children and Young Peoples Services,Head of Education,070169,Durham SSP,Supplies and Services,384199,Miscellaneous Expenses,19-Sep-2017,000006496365677,WORKWEAR EXPRESS LIMIT,5699,Other hired and contracted services,23.83,3.97,19.86
Regeneration and Local Services,Economic Development and Housing,030737,Durham Works Flexible Fund,Transport,235057,Public Transport,19-Sep-2017,000006496365683,ARRIVA NORTH EAST,4131,Staff travelling,16.00,0.00,16.00
Regeneration and Local Services,Culture & Sport,054812,Gala Theatre - Catering etc,Supplies and Services,324117,Provisions,19-Sep-2017,000006496365689,FREEMAN CATERING BUTCH,5422,Catering costs - provisions,27.57,0.00,27.57
Regeneration and Local Services,Culture & Sport,054812,Gala Theatre - Catering etc,Supplies and Services,324117,Provisions,19-Sep-2017,000006496365695,JR HOLLAND FOODSERVICE,5422,Catering costs - provisions,25.49,0.00,25.49
Children and Young Peoples Services,Head of Early Help Assessment and Safeguarding,085511,Emergency Duty Team,Transport,235057,Public Transport,19-Sep-2017,000006496365735,PHOENIX TAXIS AND COAC,4121,Staff travelling,40.00,0.00,40.00
Regeneration and Local Services,Economic Development and Housing,030725,Community Economic Development,Transport,235057,Public Transport,19-Sep-2017,000006496365745,ARRIVA NORTH EAST,4131,Staff travelling,14.00,0.00,14.00
Regeneration and Local Services,Economic Development and Housing,031576,B& B - Temp Accom,Supplies and Services,352001,Conference Expenses,19-Sep-2017,000006496365763,TRAVELODGE,3615,Conferencesseminars fees etc,58.00,9.67,48.33
Regeneration and Local Services,Economic Development and Housing,031576,B& B - Temp Accom,Supplies and Services,352001,Conference Expenses,19-Sep-2017,000006496365769,TRAVELODGE,3615,Conferencesseminars fees etc,53.00,8.83,44.17
Regeneration and Local Services,Economic Development and Housing,030544,Rural Employability - Client Engagement,Transport,235057,Public Transport,19-Sep-2017,000006496365797,WWW.SIMPLYGO.COM,4131,Staff travelling,21.00,0.00,21.00
Regeneration and Local Services,Economic Development and Housing,030737,Durham Works Flexible Fund,Supplies and Services,328041,Clothing Uniforms and Laundry,19-Sep-2017,000006496365803,UNIFORM,5137,Clothing uniforms and laundry,110.35,18.39,91.96
Children and Young Peoples Services,Head of Looked After Provision Permanence and Care Leavers,085341,High Etherley Satelite Home,Supplies and Services,308011,Furniture,19-Sep-2017,000006496365867,Amazon UK Marketplace,5942,Furniture repair and replacement,17.98,0.00,17.98
Resources,Legal & Democratic Services,067910,Democratic Representation,Supplies and Services,384965,Miscellaneous Expenses,19-Sep-2017,000006496365881,RYMAN,5943,Civic Functions,7.96,1.33,6.63
Children and Young Peoples Services,Head of Looked After Provision Permanence and Care Leavers,085955,Auckland,Supplies and Services,384999,Miscellaneous Expenses,19-Sep-2017,000006496365919,Amazon UK Marketplace,5942,Other expenses,2.99,0.00,2.99
Children and Young Peoples Services,Head of Looked After Provision Permanence and Care Leavers,085957,Secure Management,Supplies and Services,328041,Clothing Uniforms and Laundry,19-Sep-2017,000006496365921,Amazon EU,5969,Clothing uniforms and laundry,27.14,0.00,27.14
Children and Young Peoples Services,Head of Looked After Provision Permanence and Care Leavers,085957,Secure Management,Supplies and Services,328041,Clothing Uniforms and Laundry,19-Sep-2017,000006496365927,M and M Direct Ltd,5941,Clothing uniforms and laundry,84.96,0.00,84.96
Children and Young Peoples Services,Head of Looked After Provision Permanence and Care Leavers,085957,Secure Management,Supplies and Services,328041,Clothing Uniforms and Laundry,19-Sep-2017,000006496365931,M and M Direct Ltd,5941,Clothing uniforms and laundry,89.99,0.00,89.99
Children and Young Peoples Services,Head of Looked After Provision Permanence and Care Leavers,085957,Secure Management,Supplies and Services,324117,Provisions,19-Sep-2017,000006496365937,TESCO STORES 6329,5411,Catering costs - provisions,48.40,0.00,48.40
Children and Young Peoples Services,Head of Looked After Provision Permanence and Care Leavers,085957,Secure Management,Supplies and Services,328041,Clothing Uniforms and Laundry,19-Sep-2017,000006496365939,VERY.CO.UK,5964,Clothing uniforms and laundry,224.49,0.00,224.49
Regeneration and Local Services,Culture & Sport,011060,Hardwick Park Catering,Supplies and Services,324117,Provisions,19-Sep-2017,000006496365951,HOPWELLS LTD,5811,Catering costs - provisions,77.34,12.89,64.45
Regeneration and Local Services,Culture & Sport,011060,Hardwick Park Catering,Supplies and Services,324117,Provisions,19-Sep-2017,000006496365951 - 1,HOPWELLS LTD,5811,Catering costs - provisions,45.82,,45.82
Regeneration and Local Services,Culture & Sport,011060,Hardwick Park Catering,Supplies and Services,324117,Provisions,19-Sep-2017,000006496365961,HOPWELLS LTD,5811,Catering costs - provisions,68.34,0.00,68.34
Regeneration and Local Services,Culture & Sport,011060,Hardwick Park Catering,Supplies and Services,324117,Provisions,19-Sep-2017,000006496365965,FREEMAN CATERING BUTCH,5422,Catering costs - provisions,30.15,0.00,30.15
Regeneration and Local Services,Culture & Sport,011060,Hardwick Park Catering,Supplies and Services,324117,Provisions,19-Sep-2017,000006496365969,FREEMAN CATERING BUTCH,5422,Catering costs - provisions,29.62,0.00,29.62
Regeneration and Local Services,Direct Services,021234,Catering - Locomotion,Supplies and Services,324117,Provisions,19-Sep-2017,000006496366017,HOPWELLS LTD,5811,Catering costs - provisions,54.12,9.02,45.10
Regeneration and Local Services,Direct Services,021234,Catering - Locomotion,Supplies and Services,324117,Provisions,19-Sep-2017,000006496366017 - 1,HOPWELLS LTD,5811,Catering costs - provisions,279.74,,279.74
